Workbook

Sheet Home
B5: Ontwerp van stookafdelingen
E6: NBN B 61-001/002:2019
E8: Ontwikkeld in het kader van het Belgische project "KMO - normenantenne"
B10: Bezoek onze website : http://www.wtcb.be
B12: Het WTCB kan niet verantwoordelijk gesteld worden voor de ingevoerde
B13: gegevens, noch voor het verkeerde gebruik van de software
B14: of de verkeerde resultaten die eruit zouden voortkomen.
E21: Conception des chaufferies
E22: NBN B 61-001/002:2019
E24: Développé dans le cadre du projet belge "PME - antenne normes"
B26: Visitez notre site web : http://www.cstc.be
B28: Le CSTC ne peut être tenu responsable des données introduites, de la
B29: mauvaise utilisation du programme ou des erreurs qui en résulteraient.
E31: Versie - Version 2.3 (2021)

Sheet Data
D2: Français | G2: =Langage!A33 -> Nouveau calcul
B4: =Langage!A28 -> Données administratives
B7: =Langage!A31 -> Conception des chaufferies
B8: =Langage!A32 -> NBN B 61-001/002:2019
B12: =Langage!A27 -> Références
B14: =Langage!A21 -> Dossier | G14: =Langage!A26 -> Date
B15: =Langage!A22 -> Nom
B16: =Langage!A23 -> Adresse
B17: =Langage!A24 -> Commune
B18: =Langage!A25 -> Commentaire
B20: =Langage!A29 -> Bâtiment
B22: =Langage!A23 -> Adresse
B23: =Langage!A24 -> Commune
B24: =Langage!A7 -> Entité de bâtiment
B25: =Langage!A25 -> Commentaire
B27: =Langage!A30 -> Installateur
B29: =Langage!A22 -> Nom
B30: =Langage!A23 -> Adresse
B31: =Langage!A24 -> Commune
B32: =Langage!A25 -> Commentaire

Sheet Devices
B4: =Langage!A5 -> Données techniques
B6: =Langage!A8 -> Données relatives aux appareils de combustion
C8: =Langage!A10 -> Appareil | D8: =Langage!A11 -> Puissance nominale | E8: =Langage!A9 -> Circuit de combustion | F8: =Langage!A48 -> Combustible | G8: =Langage!A49 -> Brûleur | H8: =Langage!A99 -> Débit calorifique nominal sur Hs ou sur Hi (indiquer un des deux) | J8: =Langage!A47 -> Débit d’air comburant spécifique | K8: =Langage!A46 -> Débit d’air comburant
U10: https://exceljet.net/formula/index-and-match-with-multiple-criteria
D11: Pn kW | H11: Qn,s kW | I11: Qn,i kW | J11: m³/(h.kW) | K11: m³/h
B12: 1 | J12: =IF(E12="RS",0,IF(OR(D12="",S12=""),"",IF(E12="NRS",INDEX('Tab 2'!F$4:F$29,MATCH(1,(Devices!F12='Tab 2'!A$4:A$29)*(Devices!U12='Tab 2'!B$4:B$29)*(Devices!S12='Tab 2'!C$4:C$29),0)),""))) ->  | K12: =IF(J12="","",J12*T12) ->  | R12: =IF(F12="","",VLOOKUP(F12,'Tab 2'!A$4:F$29,2,FALSE)) ->  | S12: =IF(H12<>"","HS",IF(I12<>"","HI","")) ->  | T12: =IF(H12<>"",H12,IF(I12<>"",I12,0)) -> 0 | U12: =IF(OR(R12=0,R12=""),"",G12) -> 
B13: 2 | J13: =IF(E13="RS",0,IF(OR(D13="",S13=""),"",IF(E13="NRS",INDEX('Tab 2'!F$4:F$29,MATCH(1,(Devices!F13='Tab 2'!A$4:A$29)*(Devices!U13='Tab 2'!B$4:B$29)*(Devices!S13='Tab 2'!C$4:C$29),0)),""))) ->  | K13: =IF(J13="","",J13*T13) ->  | R13: =IF(F13="","",VLOOKUP(F13,'Tab 2'!A$4:F$29,2,FALSE)) ->  | S13: =IF(H13<>"","HS",IF(I13<>"","HI","")) ->  | T13: =IF(H13<>"",H13,IF(I13<>"",I13,0)) -> 0 | U13: =IF(OR(R13=0,R13=""),"",G13) -> 
B14: 3 | J14: =IF(E14="RS",0,IF(OR(D14="",S14=""),"",IF(E14="NRS",INDEX('Tab 2'!F$4:F$29,MATCH(1,(Devices!F14='Tab 2'!A$4:A$29)*(Devices!U14='Tab 2'!B$4:B$29)*(Devices!S14='Tab 2'!C$4:C$29),0)),""))) ->  | K14: =IF(J14="","",J14*T14) ->  | R14: =IF(F14="","",VLOOKUP(F14,'Tab 2'!A$4:F$29,2,FALSE)) ->  | T14: 0
B15: 4 | J15: =IF(E15="RS",0,IF(OR(D15="",S15=""),"",IF(E15="NRS",INDEX('Tab 2'!F$4:F$29,MATCH(1,(Devices!F15='Tab 2'!A$4:A$29)*(Devices!U15='Tab 2'!B$4:B$29)*(Devices!S15='Tab 2'!C$4:C$29),0)),""))) ->  | R15: =IF(F15="","",VLOOKUP(F15,'Tab 2'!A$4:F$29,2,FALSE)) ->  | T15: 0
B16: 5 | J16: =IF(E16="RS",0,IF(OR(D16="",S16=""),"",IF(E16="NRS",INDEX('Tab 2'!F$4:F$29,MATCH(1,(Devices!F16='Tab 2'!A$4:A$29)*(Devices!U16='Tab 2'!B$4:B$29)*(Devices!S16='Tab 2'!C$4:C$29),0)),""))) ->  | R16: =IF(F16="","",VLOOKUP(F16,'Tab 2'!A$4:F$29,2,FALSE)) ->  | T16: 0
B17: 6 | J17: =IF(E17="RS",0,IF(OR(D17="",S17=""),"",IF(E17="NRS",INDEX('Tab 2'!F$4:F$29,MATCH(1,(Devices!F17='Tab 2'!A$4:A$29)*(Devices!U17='Tab 2'!B$4:B$29)*(Devices!S17='Tab 2'!C$4:C$29),0)),""))) ->  | R17: =IF(F17="","",VLOOKUP(F17,'Tab 2'!A$4:F$29,2,FALSE)) ->  | T17: 0
B18: 7 | J18: =IF(E18="RS",0,IF(OR(D18="",S18=""),"",IF(E18="NRS",INDEX('Tab 2'!F$4:F$29,MATCH(1,(Devices!F18='Tab 2'!A$4:A$29)*(Devices!U18='Tab 2'!B$4:B$29)*(Devices!S18='Tab 2'!C$4:C$29),0)),""))) ->  | R18: =IF(F18="","",VLOOKUP(F18,'Tab 2'!A$4:F$29,2,FALSE)) ->  | T18: 0
B19: 8 | J19: =IF(E19="RS",0,IF(OR(D19="",S19=""),"",IF(E19="NRS",INDEX('Tab 2'!F$4:F$29,MATCH(1,(Devices!F19='Tab 2'!A$4:A$29)*(Devices!U19='Tab 2'!B$4:B$29)*(Devices!S19='Tab 2'!C$4:C$29),0)),""))) ->  | R19: =IF(F19="","",VLOOKUP(F19,'Tab 2'!A$4:F$29,2,FALSE)) ->  | T19: 0
B20: 9 | J20: =IF(E20="RS",0,IF(OR(D20="",S20=""),"",IF(E20="NRS",INDEX('Tab 2'!F$4:F$29,MATCH(1,(Devices!F20='Tab 2'!A$4:A$29)*(Devices!U20='Tab 2'!B$4:B$29)*(Devices!S20='Tab 2'!C$4:C$29),0)),""))) ->  | R20: =IF(F20="","",VLOOKUP(F20,'Tab 2'!A$4:F$29,2,FALSE)) ->  | T20: 0
B21: 10 | J21: =IF(E21="RS",0,IF(OR(D21="",S21=""),"",IF(E21="NRS",INDEX('Tab 2'!F$4:F$29,MATCH(1,(Devices!F21='Tab 2'!A$4:A$29)*(Devices!U21='Tab 2'!B$4:B$29)*(Devices!S21='Tab 2'!C$4:C$29),0)),""))) ->  | R21: =IF(F21="","",VLOOKUP(F21,'Tab 2'!A$4:F$29,2,FALSE)) ->  | T21: 0
C23: =Langage!A6 -> Total | D23: =IF(COUNTBLANK(D12:D21)=10,"",SUM(D12:D21)) -> 
B25: =Langage!A35 -> Dispositions techniques
C27: =Langage!A12 -> Surface au sol | F27: =Langage!A43 -> Débit | I27: =Langage!A67 -> Norme applicable | R27: qv,iaq | S27: qv,cool | T27: qv,comb | V27: Pn,tot
I28: =IF(D23="","-",IF(D23>=70,"NBN B 61-001","NBN B 61-002")) -> -
C29: m² | F29: m³/h | R29: m³/h | S29: m³/h | T29: m³/h | V29: kW
E30: =Langage!A36 -> Air comburant | F30: =IF(COUNTBLANK(K12:K21)=10,"",SUM(K12:K21)) ->  | R30: =3*C30 -> 0 | S30: =12*D23^0.6 ->  | T30: =IF(F30="",0,F30) -> 0 | U30: =COUNTIF(E12:E21,"NRS") -> 0 | V30: =IF(COUNTBLANK(D12:D21)=10,"",SUM(D12:D21)) ->  | X30: =F30 -> 
E31: =Langage!A37 -> Amenée d’air | F31: =IF(OR(D23="",C30=""),"",MAX(S30-T30,R30-T30,0)) ->  | X31: =F30+F31 -> 
E32: =Langage!A38 -> Evacuation d’air | F32: =IF(OR(D23="",C30=""),"",MAX(S30-T30,R30)) ->  | R32: =#REF! ->  | S32: =IF(U30<>0,"NAT","MEC") -> MEC
B36: =Langage!A98 -> Sigles
C38: RS | D38: =Langage!A44 -> Etanche | F38: NG | G38: =Langage!A53 -> Gaz naturel | I38: q/Dp | J38: =Langage!A$79 -> Couple Débit / Pression
C39: NRS | D39: =Langage!A45 -> Non-étanche | F39: LPG | G39: =Langage!A54 -> Propane - Butane
F40: HO | G40: =Langage!A55 -> Gasoil de chauffage | I40: Kin | J40: =Langage!A$77 -> Facteur K (aspiration)
C41: BWI | D41: =Langage!A62 -> Brûleur avec coupe-tirage | F41: CO | G41: =Langage!A56 -> Coke | I41: Kout | J41: =Langage!A$78 -> Facteur K (extraction)
C42: BWO | D42: =Langage!A63 -> Brûleur sans coupe-tirage | F42: KE | G42: =Langage!A57 -> Pétrole lampant
C43: ICE | D43: =Langage!A64 -> Moteur à combustion interne | F43: SC | G43: =Langage!A58 -> Charbon | I43: CE | J43: =Langage!A$80 -> Coefficient de perte d'entrée
F44: BC | G44: =Langage!A59 -> Lignite | I44: CD | J44: =Langage!A$81 -> Coefficient de perte de décharge
C45: HS | D45: =Langage!A66 -> Pouvoir calorifique supérieur | F45: WL | G45: =Langage!A60 -> Bois (bûches)
C46: HI | D46: =Langage!A65 -> Pouvoir calorifique inférieur | F46: WP | G46: =Langage!A61 -> Bois (granulés)

Sheet Transfer
B4: =Langage!A86 -> Dispositif de transfert d’air monté dans une paroi extérieure du local
B6: =Langage!A36 -> Air comburant | AA6: Critère d'acceptation | AB6: Pa | AC6: 3
C8: =Langage!A$43 -> Débit | M8: q/Dp | N8: q/Dp | AA8: Masse volumique air 20°C | AB8: kg/m³ | AC8: 1.204
C9: m³/h | M9: CE | N9: CD | AA9: Viscosité cinématique air 20°C | AB9: m²/s | AC9: =0.000015 -> 1.5e-05
M10: Kin | N10: Kout | AA10: Rugosité absolue | AB10: m | AC10: =0.00015 -> 0.00015 | AE10: Acier à joint lonitudinal
C12: =Langage!A$87 -> Dispositif de transfert d’air | D12: =Langage!A$82 -> Données | E12: =IF(D15="","",VLOOKUP(D15,M14:R16,2,FALSE)) ->  | F12: =IF(D15="","",VLOOKUP(D15,M14:R16,4,FALSE)) ->  | G12: =Langage!A$88 -> Dimensions | H12: =IF(D15="","",VLOOKUP(D15,M14:X16,8,FALSE)) ->  | I12: =IF(D15="","",VLOOKUP(D15,M14:X16,10,FALSE)) -> 
E14: =IF(D15="","",VLOOKUP(D15,M14:R16,3,FALSE)) ->  | F14: =IF(D15="","",VLOOKUP(D15,M14:R16,5,FALSE)) ->  | G14: mm | H14: =IF(D15="","",VLOOKUP(D15,M14:X16,9,FALSE)) ->  | I14: =IF(D15="","",VLOOKUP(D15,M14:X16,11,FALSE)) ->  | M14: Kin | N14: =Langage!A$77 -> Facteur K (aspiration) | O14: - | P14: =Langage!A$90 -> Surface minimum | Q14: m² | R14: =IF(AND(D15=M14,E15<>""),C10/3600/SQRT(2*AC$6/E15/AC$8),"") ->  | S14: =IF(R14="","",IF(R14>1,"OUT",HLOOKUP(MIN(IF(AB15:BT15>R14,AB15:BT15)),AB15:BT16,2,TRUE))) ->  | V14: =Langage!A$89 -> Surface | W14: m² | X14: =IF(G15="","",HLOOKUP(G15,AB14:BT15,2,FALSE)) ->  | Y14: =IF(X14>R14,"OK","NOK") -> NOK | AB14: 200x100 | AC14: 250x100 | AD14: 200x150 | AE14: 300x100 | AF14: 250x150 | AG14: 200x200 | AH14: 400x100 | AI14: 300x150 | AJ14: 250x200 | AK14: 300x200 | AL14: 400x150 | AM14: 250x250 | AN14: 300x250 | AO14: 500x150 | AP14: 400x200 | AQ14: 300x300 | AR14: 600x150 | AS14: 400x250 | AT14: 500x200 | AU14: 400x300 | AV14: 600x200 | AW14: 500x250 | AX14: 500x300 | AY14: 600x250 | AZ14: 400x400 | BA14: 800x200 | BB14: 600x300 | BC14: 500x400 | BD14: 800x250 | BE14: 600x400 | BF14: 800x300 | BG14: 1000x250 | BH14: 500x500 | BI14: 1000x300 | BJ14: 600x500 | BK14: 800x400 | BL14: 600x600 | BM14: 1000x400 | BN14: 800x500 | BO14: 800x600 | BP14: 1000x500 | BQ14: 1000x600 | BR14: 800x800 | BS14: 1000x800 | BT14: 1000x1000
F15: =IF(D15="","",VLOOKUP(D15,M14:R16,6,FALSE)) ->  | I15: =IF(D15="","",VLOOKUP(D15,M14:X16,12,FALSE)) ->  | M15: q/Dp | N15: =Langage!A$83 -> Différence de pression | O15: Pa | P15: =Langage!A$91 -> Débit minimum | Q15: m³/h | R15: =IF(D15=M15,C10*SQRT(E15/AC$6),"") ->  | T15: =Langage!A$92 -> Débit nominal | U15: m³/h | V15: =Langage!A$72 -> Perte de pression | W15: Pa | X15: =IF(OR(G15="",H15=""),"",(C10/H15)^2*E15) ->  | Y15: =IF(X15<=AC$6,"OK","NOK") -> NOK | Z15: =Langage!A$93 -> Max. 3.0 Pa | AB15: =(0.2*0.1) -> 0.02 | AC15: =(0.25*0.1) -> 0.025 | AD15: =(0.2*0.15) -> 0.03 | AE15: =(0.3*0.1) -> 0.03 | AF15: =(0.25*0.15) -> 0.0375 | AG15: =(0.2*0.2) -> 0.04 | AH15: =(0.4*0.1) -> 0.04 | AI15: =(0.3*0.15) -> 0.045 | AJ15: =(0.25*0.2) -> 0.05 | AK15: =(0.3*0.2) -> 0.06 | AL15: =(0.4*0.15) -> 0.06 | AM15: =(0.25*0.25) -> 0.0625 | AN15: =(0.3*0.25) -> 0.075 | AO15: =(0.5*0.15) -> 0.075 | AP15: =(0.4*0.2) -> 0.08 | AQ15: =(0.3*0.3) -> 0.09 | AR15: =(0.6*0.15) -> 0.09 | AS15: =(0.4*0.25) -> 0.1 | AT15: =(0.5*0.2) -> 0.1 | AU15: =(0.4*0.3) -> 0.12 | AV15: =(0.6*0.2) -> 0.12 | AW15: =(0.5*0.25) -> 0.125 | AX15: =(0.5*0.3) -> 0.15 | AY15: =(0.6*0.25) -> 0.15 | AZ15: =(0.4*0.4) -> 0.16 | BA15: =(0.8*0.2) -> 0.16 | BB15: =(0.6*0.3) -> 0.18 | BC15: =(0.5*0.4) -> 0.2 | BD15: =(0.8*0.25) -> 0.2 | BE15: =(0.6*0.4) -> 0.24 | BF15: =(0.8*0.3) -> 0.24 | BG15: =(1*0.25) -> 0.25 | BH15: =(0.5*0.5) -> 0.25 | BI15: =(1*0.3) -> 0.3 | BJ15: =(0.6*0.5) -> 0.3 | BK15: =(0.8*0.4) -> 0.32 | BL15: =(0.6*0.6) -> 0.36 | BM15: =(1*0.4) -> 0.4 | BN15: =(0.8*0.5) -> 0.4 | BO15: =(0.8*0.6) -> 0.48 | BP15: =(1*0.5) -> 0.5 | BQ15: =(1*0.6) -> 0.6 | BR15: =(0.8*0.8) -> 0.64 | BS15: =(1*0.8) -> 0.8 | BT15: =(1*1) -> 1
F16: =IF(D15="","",VLOOKUP(D15,M14:S16,7,FALSE)) ->  | M16: CE | N16: =Langage!A$80 -> Coefficient de perte d'entrée | O16: - | P16: =Langage!A$90 -> Surface minimum | Q16: m² | R16: =IF(AND(D15=M16,E15<>""),C10/3600/SQRT(2*AC$6*E15^2/AC$8),"") ->  | S16: =IF(R16="","",IF(R16>1,"OUT",HLOOKUP(MIN(IF(AB15:BT15>R16,AB15:BT15)),AB15:BT16,2,TRUE))) ->  | V16: =Langage!A$89 -> Surface | W16: m² | X16: =IF(G15="","",HLOOKUP(G15,AB14:BT15,2,FALSE)) ->  | Y16: =IF(X16>R16,"OK","NOK") -> NOK | AB16: =AB14 -> 200x100 | AC16: =AC14 -> 250x100 | AD16: 200x150 | AE16: 300x100 | AF16: 250x150 | AG16: 200x200 | AH16: 400x100 | AI16: 300x150 | AJ16: 250x200 | AK16: 300x200 | AL16: 400x150 | AM16: 250x250 | AN16: 300x250 | AO16: 500x150 | AP16: 400x200 | AQ16: 300x300 | AR16: 600x150 | AS16: 400x250 | AT16: 500x200 | AU16: 400x300 | AV16: 600x200 | AW16: 500x250 | AX16: 500x300 | AY16: 600x250 | AZ16: 400x400 | BA16: 800x200 | BB16: 600x300 | BC16: 500x400 | BD16: 800x250 | BE16: 600x400 | BF16: 800x300 | BG16: 1000x250 | BH16: 500x500 | BI16: 1000x300 | BJ16: 600x500 | BK16: 800x400 | BL16: 600x600 | BM16: 1000x400 | BN16: 800x500 | BO16: 800x600 | BP16: 1000x500 | BQ16: 1000x600 | BR16: 800x800 | BS16: 1000x800 | BT16: 1000x1000
I17: =IF(D15="","",VLOOKUP(D15,M14:Z16,14,FALSE)) ->  | Y17: =IF(D15="","",VLOOKUP(D15,M14:Y16,13,FALSE)) -> 
C19: =IF(OR(R19=0,G15=0,G15=""),"",R19+G15) -> 
B21: =Langage!A$37 -> Amenée d’air
C23: =Langage!A$43 -> Débit
C24: m³/h
C27: =Langage!A$87 -> Dispositif de transfert d’air | D27: =Langage!A$82 -> Données | E27: =IF(D30="","",VLOOKUP(D30,M29:R31,2,FALSE)) ->  | F27: =IF(D30="","",VLOOKUP(D30,M29:R31,4,FALSE)) ->  | G27: =Langage!A$88 -> Dimensions | H27: =IF(D30="","",VLOOKUP(D30,M29:X31,8,FALSE)) ->  | I27: =IF(D30="","",VLOOKUP(D30,M29:X31,10,FALSE)) -> 
E29: =IF(D30="","",VLOOKUP(D30,M29:R31,3,FALSE)) ->  | F29: =IF(D30="","",VLOOKUP(D30,M29:R31,5,FALSE)) ->  | G29: mm | H29: =IF(D30="","",VLOOKUP(D30,M29:X31,9,FALSE)) ->  | I29: =IF(D30="","",VLOOKUP(D30,M29:X31,11,FALSE)) ->  | M29: Kin | N29: =Langage!A$77 -> Facteur K (aspiration) | O29: - | P29: =Langage!A$90 -> Surface minimum | Q29: m² | R29: =IF(AND(D30=M29,E30<>""),C25/3600/SQRT(2*AC$6/E30/AC$8),"") ->  | S29: =IF(R29="","",IF(R29>1,"OUT",HLOOKUP(MIN(IF(AB30:BT30>R29,AB30:BT30)),AB30:BT31,2,TRUE))) ->  | V29: =Langage!A$89 -> Surface | W29: m² | X29: =IF(G30="","",HLOOKUP(G30,AB29:BT30,2,FALSE)) ->  | Y29: =IF(X29>R29,"OK","NOK") -> NOK | AB29: 200x100 | AC29: 250x100 | AD29: 200x150 | AE29: 300x100 | AF29: 250x150 | AG29: 200x200 | AH29: 400x100 | AI29: 300x150 | AJ29: 250x200 | AK29: 300x200 | AL29: 400x150 | AM29: 250x250 | AN29: 300x250 | AO29: 500x150 | AP29: 400x200 | AQ29: 300x300 | AR29: 600x150 | AS29: 400x250 | AT29: 500x200 | AU29: 400x300 | AV29: 600x200 | AW29: 500x250 | AX29: 500x300 | AY29: 600x250 | AZ29: 400x400 | BA29: 800x200 | BB29: 600x300 | BC29: 500x400 | BD29: 800x250 | BE29: 600x400 | BF29: 800x300 | BG29: 1000x250 | BH29: 500x500 | BI29: 1000x300 | BJ29: 600x500 | BK29: 800x400 | BL29: 600x600 | BM29: 1000x400 | BN29: 800x500 | BO29: 800x600 | BP29: 1000x500 | BQ29: 1000x600 | BR29: 800x800 | BS29: 1000x800 | BT29: 1000x1000
F30: =IF(D30="","",VLOOKUP(D30,M29:R31,6,FALSE)) ->  | I30: =IF(D30="","",VLOOKUP(D30,M29:X31,12,FALSE)) ->  | M30: q/Dp | N30: =Langage!A$83 -> Différence de pression | O30: Pa | P30: =Langage!A$91 -> Débit minimum | Q30: m³/h | R30: =IF(D30=M30,C25*SQRT(E30/AC$6),"") ->  | T30: =Langage!A$92 -> Débit nominal | U30: m³/h | V30: =Langage!A$72 -> Perte de pression | W30: Pa | X30: =IF(OR(G30="",H30=""),"",(C25/H30)^2*E30) ->  | Y30: =IF(X30<=AC$6,"OK","NOK") -> NOK | Z30: =Langage!A$93 -> Max. 3.0 Pa | AB30: =(0.2*0.1) -> 0.02 | AC30: =(0.25*0.1) -> 0.025 | AD30: =(0.2*0.15) -> 0.03 | AE30: =(0.3*0.1) -> 0.03 | AF30: =(0.25*0.15) -> 0.0375 | AG30: =(0.2*0.2) -> 0.04 | AH30: =(0.4*0.1) -> 0.04 | AI30: =(0.3*0.15) -> 0.045 | AJ30: =(0.25*0.2) -> 0.05 | AK30: =(0.3*0.2) -> 0.06 | AL30: =(0.4*0.15) -> 0.06 | AM30: =(0.25*0.25) -> 0.0625 | AN30: =(0.3*0.25) -> 0.075 | AO30: =(0.5*0.15) -> 0.075 | AP30: =(0.4*0.2) -> 0.08 | AQ30: =(0.3*0.3) -> 0.09 | AR30: =(0.6*0.15) -> 0.09 | AS30: =(0.4*0.25) -> 0.1 | AT30: =(0.5*0.2) -> 0.1 | AU30: =(0.4*0.3) -> 0.12 | AV30: =(0.6*0.2) -> 0.12 | AW30: =(0.5*0.25) -> 0.125 | AX30: =(0.5*0.3) -> 0.15 | AY30: =(0.6*0.25) -> 0.15 | AZ30: =(0.4*0.4) -> 0.16 | BA30: =(0.8*0.2) -> 0.16 | BB30: =(0.6*0.3) -> 0.18 | BC30: =(0.5*0.4) -> 0.2 | BD30: =(0.8*0.25) -> 0.2 | BE30: =(0.6*0.4) -> 0.24 | BF30: =(0.8*0.3) -> 0.24 | BG30: =(1*0.25) -> 0.25 | BH30: =(0.5*0.5) -> 0.25 | BI30: =(1*0.3) -> 0.3 | BJ30: =(0.6*0.5) -> 0.3 | BK30: =(0.8*0.4) -> 0.32 | BL30: =(0.6*0.6) -> 0.36 | BM30: =(1*0.4) -> 0.4 | BN30: =(0.8*0.5) -> 0.4 | BO30: =(0.8*0.6) -> 0.48 | BP30: =(1*0.5) -> 0.5 | BQ30: =(1*0.6) -> 0.6 | BR30: =(0.8*0.8) -> 0.64 | BS30: =(1*0.8) -> 0.8 | BT30: =(1*1) -> 1
F31: =IF(D30="","",VLOOKUP(D30,M29:S31,7,FALSE)) ->  | M31: CE | N31: =Langage!A$80 -> Coefficient de perte d'entrée | O31: - | P31: =Langage!A$90 -> Surface minimum | Q31: m² | R31: =IF(AND(D30=M31,E30<>""),C25/3600/SQRT(2*AC$6*E30^2/AC$8),"") ->  | S31: =IF(R31="","",IF(R31>1,"OUT",HLOOKUP(MIN(IF(AB30:BT30>R31,AB30:BT30)),AB30:BT31,2,TRUE))) ->  | V31: =Langage!A$89 -> Surface | W31: m² | X31: =IF(G30="","",HLOOKUP(G30,AB29:BT30,2,FALSE)) ->  | Y31: =IF(X31>R31,"OK","NOK") -> NOK | AB31: =AB29 -> 200x100 | AC31: =AC29 -> 250x100 | AD31: 200x150 | AE31: 300x100 | AF31: 250x150 | AG31: 200x200 | AH31: 400x100 | AI31: 300x150 | AJ31: 250x200 | AK31: 300x200 | AL31: 400x150 | AM31: 250x250 | AN31: 300x250 | AO31: 500x150 | AP31: 400x200 | AQ31: 300x300 | AR31: 600x150 | AS31: 400x250 | AT31: 500x200 | AU31: 400x300 | AV31: 600x200 | AW31: 500x250 | AX31: 500x300 | AY31: 600x250 | AZ31: 400x400 | BA31: 800x200 | BB31: 600x300 | BC31: 500x400 | BD31: 800x250 | BE31: 600x400 | BF31: 800x300 | BG31: 1000x250 | BH31: 500x500 | BI31: 1000x300 | BJ31: 600x500 | BK31: 800x400 | BL31: 600x600 | BM31: 1000x400 | BN31: 800x500 | BO31: 800x600 | BP31: 1000x500 | BQ31: 1000x600 | BR31: 800x800 | BS31: 1000x800 | BT31: 1000x1000
I32: =IF(D30="","",VLOOKUP(D30,M29:Z31,14,FALSE)) ->  | Y32: =IF(D30="","",VLOOKUP(D30,M29:Y31,13,FALSE)) -> 
B36: =Langage!A$38 -> Evacuation d’air
C38: =Langage!A$43 -> Débit
C39: m³/h
C42: =Langage!A$87 -> Dispositif de transfert d’air | D42: =Langage!A$82 -> Données | E42: =IF(D45="","",VLOOKUP(D45,M44:R46,2,FALSE)) ->  | F42: =IF(D45="","",VLOOKUP(D45,M44:R46,4,FALSE)) ->  | G42: =Langage!A$88 -> Dimensions | H42: =IF(D45="","",VLOOKUP(D45,M44:X46,8,FALSE)) ->  | I42: =IF(D45="","",VLOOKUP(D45,M44:X46,10,FALSE)) -> 
E44: =IF(D45="","",VLOOKUP(D45,M44:R46,3,FALSE)) ->  | F44: =IF(D45="","",VLOOKUP(D45,M44:R46,5,FALSE)) ->  | G44: mm | H44: =IF(D45="","",VLOOKUP(D45,M44:X46,9,FALSE)) ->  | I44: =IF(D45="","",VLOOKUP(D45,M44:X46,11,FALSE)) ->  | M44: Kout | N44: =Langage!A$78 -> Facteur K (extraction) | O44: - | P44: =Langage!A$90 -> Surface minimum | Q44: m² | R44: =IF(AND(D45=M44,E45<>""),C40/3600/SQRT(2*AC$6/E45/AC$8),"") ->  | S44: =IF(R44="","",IF(R44>1,"OUT",HLOOKUP(MIN(IF(AB45:BT45>R44,AB45:BT45)),AB45:BT46,2,TRUE))) ->  | V44: =Langage!A$89 -> Surface | W44: m² | X44: =IF(G45="","",HLOOKUP(G45,AB44:BT45,2,FALSE)) ->  | Y44: =IF(X44>R44,"OK","NOK") -> NOK | AB44: 200x100 | AC44: 250x100 | AD44: 200x150 | AE44: 300x100 | AF44: 250x150 | AG44: 200x200 | AH44: 400x100 | AI44: 300x150 | AJ44: 250x200 | AK44: 300x200 | AL44: 400x150 | AM44: 250x250 | AN44: 300x250 | AO44: 500x150 | AP44: 400x200 | AQ44: 300x300 | AR44: 600x150 | AS44: 400x250 | AT44: 500x200 | AU44: 400x300 | AV44: 600x200 | AW44: 500x250 | AX44: 500x300 | AY44: 600x250 | AZ44: 400x400 | BA44: 800x200 | BB44: 600x300 | BC44: 500x400 | BD44: 800x250 | BE44: 600x400 | BF44: 800x300 | BG44: 1000x250 | BH44: 500x500 | BI44: 1000x300 | BJ44: 600x500 | BK44: 800x400 | BL44: 600x600 | BM44: 1000x400 | BN44: 800x500 | BO44: 800x600 | BP44: 1000x500 | BQ44: 1000x600 | BR44: 800x800 | BS44: 1000x800 | BT44: 1000x1000
F45: =IF(D45="","",VLOOKUP(D45,M44:R46,6,FALSE)) ->  | I45: =IF(D45="","",VLOOKUP(D45,M44:X46,12,FALSE)) ->  | M45: q/Dp | N45: =Langage!A$83 -> Différence de pression | O45: Pa | P45: =Langage!A$91 -> Débit minimum | Q45: m³/h | R45: =IF(D45=M45,C40*SQRT(E45/AC$6),"") ->  | T45: =Langage!A$92 -> Débit nominal | U45: m³/h | V45: =Langage!A$72 -> Perte de pression | W45: Pa | X45: =IF(OR(G45="",H45=""),"",(C40/H45)^2*E45) ->  | Y45: =IF(X45<=AC$6,"OK","NOK") -> NOK | Z45: =Langage!A$93 -> Max. 3.0 Pa | AB45: =(0.2*0.1) -> 0.02 | AC45: =(0.25*0.1) -> 0.025 | AD45: =(0.2*0.15) -> 0.03 | AE45: =(0.3*0.1) -> 0.03 | AF45: =(0.25*0.15) -> 0.0375 | AG45: =(0.2*0.2) -> 0.04 | AH45: =(0.4*0.1) -> 0.04 | AI45: =(0.3*0.15) -> 0.045 | AJ45: =(0.25*0.2) -> 0.05 | AK45: =(0.3*0.2) -> 0.06 | AL45: =(0.4*0.15) -> 0.06 | AM45: =(0.25*0.25) -> 0.0625 | AN45: =(0.3*0.25) -> 0.075 | AO45: =(0.5*0.15) -> 0.075 | AP45: =(0.4*0.2) -> 0.08 | AQ45: =(0.3*0.3) -> 0.09 | AR45: =(0.6*0.15) -> 0.09 | AS45: =(0.4*0.25) -> 0.1 | AT45: =(0.5*0.2) -> 0.1 | AU45: =(0.4*0.3) -> 0.12 | AV45: =(0.6*0.2) -> 0.12 | AW45: =(0.5*0.25) -> 0.125 | AX45: =(0.5*0.3) -> 0.15 | AY45: =(0.6*0.25) -> 0.15 | AZ45: =(0.4*0.4) -> 0.16 | BA45: =(0.8*0.2) -> 0.16 | BB45: =(0.6*0.3) -> 0.18 | BC45: =(0.5*0.4) -> 0.2 | BD45: =(0.8*0.25) -> 0.2 | BE45: =(0.6*0.4) -> 0.24 | BF45: =(0.8*0.3) -> 0.24 | BG45: =(1*0.25) -> 0.25 | BH45: =(0.5*0.5) -> 0.25 | BI45: =(1*0.3) -> 0.3 | BJ45: =(0.6*0.5) -> 0.3 | BK45: =(0.8*0.4) -> 0.32 | BL45: =(0.6*0.6) -> 0.36 | BM45: =(1*0.4) -> 0.4 | BN45: =(0.8*0.5) -> 0.4 | BO45: =(0.8*0.6) -> 0.48 | BP45: =(1*0.5) -> 0.5 | BQ45: =(1*0.6) -> 0.6 | BR45: =(0.8*0.8) -> 0.64 | BS45: =(1*0.8) -> 0.8 | BT45: =(1*1) -> 1
F46: =IF(D45="","",VLOOKUP(D45,M44:S46,7,FALSE)) ->  | M46: CD | N46: =Langage!A$81 -> Coefficient de perte de décharge | O46: - | P46: =Langage!A$90 -> Surface minimum | Q46: m² | R46: =IF(AND(D45=M46,E45<>""),C40/3600/SQRT(2*AC$6*E45^2/AC$8),"") ->  | S46: =IF(R46="","",IF(R46>1,"OUT",HLOOKUP(MIN(IF(AB45:BT45>R46,AB45:BT45)),AB45:BT46,2,TRUE))) ->  | V46: =Langage!A$89 -> Surface | W46: m² | X46: =IF(G45="","",HLOOKUP(G45,AB44:BT45,2,FALSE)) ->  | Y46: =IF(X46>R46,"OK","NOK") -> NOK | AB46: =AB44 -> 200x100 | AC46: =AC44 -> 250x100 | AD46: 200x150 | AE46: 300x100 | AF46: 250x150 | AG46: 200x200 | AH46: 400x100 | AI46: 300x150 | AJ46: 250x200 | AK46: 300x200 | AL46: 400x150 | AM46: 250x250 | AN46: 300x250 | AO46: 500x150 | AP46: 400x200 | AQ46: 300x300 | AR46: 600x150 | AS46: 400x250 | AT46: 500x200 | AU46: 400x300 | AV46: 600x200 | AW46: 500x250 | AX46: 500x300 | AY46: 600x250 | AZ46: 400x400 | BA46: 800x200 | BB46: 600x300 | BC46: 500x400 | BD46: 800x250 | BE46: 600x400 | BF46: 800x300 | BG46: 1000x250 | BH46: 500x500 | BI46: 1000x300 | BJ46: 600x500 | BK46: 800x400 | BL46: 600x600 | BM46: 1000x400 | BN46: 800x500 | BO46: 800x600 | BP46: 1000x500 | BQ46: 1000x600 | BR46: 800x800 | BS46: 1000x800 | BT46: 1000x1000
I47: =IF(D45="","",VLOOKUP(D45,M44:Z46,14,FALSE)) ->  | Y47: =IF(D45="","",VLOOKUP(D45,M44:Y46,13,FALSE)) -> 
C49: =IF(OR(R49=0,G45=0,G45=""),"",R49+G45) -> 

Sheet Ducts Rect
B4: =Langage!A85 -> Conduits de ventilation - Rectangulaires - Tôle d'acier galvanisé
B6: =Langage!A36 -> Air comburant | V6: Critère d'acceptation | W6: Pa | X6: 3
C8: =Langage!A43 -> Débit | D8: =Langage!A69 -> Longueur droite | E8: =Langage!A70 -> Coude 90° | F8: =Langage!A71 -> Coude 45° | G8: =Langage!A88 -> Dimensions | H8: =Langage!A73 -> Options | I8: =Langage!A94 -> Minimum | J8: =Langage!A72 -> Perte de pression | M8: q/Dp | N8: q/Dp | V8: Masse volumique air 20°C | W8: kg/m³ | X8: 1.204
C9: m³/h | D9: m | E9: # | F9: # | G9: mm | I9: mm | J9: Pa | M9: CE | N9: CD | V9: Viscosité cinématique air 20°C | W9: m²/s | X9: =0.000015 -> 1.5e-05
I10: =IF(C10="","",HLOOKUP("OK",X12:BP27,2,FALSE)) ->  | J10: =IF(C10="","",HLOOKUP("OK",X12:BP27,16,FALSE)) ->  | M10: Kin | N10: Kout | V10: Rugosité absolue | W10: m | X10: =0.00015 -> 0.00015 | AD10: Acier à joint lonitudinal
I11: =IF(C10="","",VLOOKUP(T12,BW$12:BX$56,2,FALSE)) ->  | J11: =IF(C10="","",HLOOKUP(I11,X13:BP27,15,FALSE)) -> 
C12: =Langage!A75 -> Bouche de prise d'air | D12: =Langage!A82 -> Données | E12: =IF(D15="","",VLOOKUP(D15,N14:S16,2,FALSE)) ->  | F12: =IF(D15="","",VLOOKUP(D15,N14:S16,4,FALSE)) ->  | I12: =IF(C10="","",VLOOKUP(U12,BW$12:BX$56,2,FALSE)) ->  | J12: =IF(C10="","",HLOOKUP(I12,X13:BP27,15,FALSE)) ->  | S12: =IF(I10="","",HLOOKUP(I10,X13:BP14,2,FALSE)) ->  | T12: =IF(C10="","",MIN(IF(X14:BP14>S12,X14:BP14))) ->  | U12: =IF(T12=0,0,IF(C10="","",MIN(IF(X14:BP14>T12,X14:BP14)))) ->  | V12: Air comburant | X12: =IF(OR(X27="OUT",X27>$X$6),"OUT","OK") -> OK | Y12: =IF(OR(Y27="OUT",Y27>$X$6),"OUT","OK") -> OK | Z12: =IF(OR(Z27="OUT",Z27>$X$6),"OUT","OK") -> OK | AA12: OK | AB12: OK | AC12: OK | AD12: OK | AE12: OK | AF12: OK | AG12: OK | AH12: OK | AI12: OK | AJ12: OK | AK12: OK | AL12: OK | AM12: OK | AN12: OK | AO12: OK | AP12: OK | AQ12: OK | AR12: OK | AS12: OK | AT12: OK | AU12: OK | AV12: OK | AW12: OK | AX12: OK | AY12: OK | AZ12: OK | BA12: OK | BB12: OK | BC12: OK | BD12: OK | BE12: OK | BF12: OK | BG12: OK | BH12: OK | BI12: OK | BJ12: OK | BK12: OK | BL12: OK | BM12: OK | BN12: OK | BO12: OK | BP12: OK | BV12: 200x100 | BW12: 0.133 | BX12: =BV12 -> 200x100
S13: Perte de pression | T13: Vitesse | V13: Dimensions possibles | W13: mm | X13: 200x100 | Y13: 250x100 | Z13: 300x100 | AA13: 400x100 | AB13: 200x150 | AC13: 250x150 | AD13: 200x200 | AE13: 300x150 | AF13: 400x150 | AG13: 250x200 | AH13: 500x150 | AI13: 300x200 | AJ13: 600x150 | AK13: 250x250 | AL13: 400x200 | AM13: 300x250 | AN13: 500x200 | AO13: 300x300 | AP13: 600x200 | AQ13: 400x250 | AR13: 800x200 | AS13: 500x250 | AT13: 400x300 | AU13: 600x250 | AV13: 500x300 | AW13: 800x250 | AX13: 400x400 | AY13: 600x300 | AZ13: 1000x250 | BA13: 800x300 | BB13: 500x400 | BC13: 1000x300 | BD13: 600x400 | BE13: 500x500 | BF13: 800x400 | BG13: 600x500 | BH13: 1000x400 | BI13: 600x600 | BJ13: 800x500 | BK13: 1000x500 | BL13: 800x600 | BM13: 1000x600 | BN13: 800x800 | BO13: 1000x800 | BP13: 1000x1000 | BV13: 250x100 | BW13: 0.143 | BX13: =BV13 -> 250x100
E14: =IF(D15="","",VLOOKUP(D15,N14:S16,3,FALSE)) ->  | F14: =IF(D15="","",VLOOKUP(D15,N14:S16,5,FALSE)) ->  | I14: =Langage!A$96 -> Conduit | J14: =IF(OR(S19=0,S19=""),"",IF(S19="OUT","OUT",S19)) ->  | N14: Kin | O14: =Langage!A$77 -> Facteur K (aspiration) | P14: - | S14: =IF(D15<>N14,"",E15*X8*T14^2/2) ->  | T14: =IF(G10="","",HLOOKUP(G10,X13:BP28,16,FALSE)) ->  | V14: Diamètre hydraulique | W14: mm | X14: 0.133 | Y14: 0.143 | Z14: 0.15 | AA14: 0.16 | AB14: 0.171 | AC14: 0.188 | AD14: 0.2 | AE14: 0.2 | AF14: 0.218 | AG14: 0.222 | AH14: 0.231 | AI14: 0.24 | AJ14: 0.24 | AK14: 0.25 | AL14: 0.267 | AM14: 0.273 | AN14: 0.286 | AO14: 0.3 | AP14: 0.3 | AQ14: 0.308 | AR14: 0.32 | AS14: 0.333 | AT14: 0.343 | AU14: 0.353 | AV14: 0.375 | AW14: 0.381 | AX14: 0.4 | AY14: 0.4 | AZ14: 0.4 | BA14: 0.436 | BB14: 0.444 | BC14: 0.462 | BD14: 0.48 | BE14: 0.5 | BF14: 0.533 | BG14: 0.545 | BH14: 0.571 | BI14: 0.6 | BJ14: 0.615 | BK14: 0.667 | BL14: 0.686 | BM14: 0.75 | BN14: 0.8 | BO14: 0.889 | BP14: 1 | BV14: 300x100 | BW14: 0.15 | BX14: 300x100
I15: =Langage!A$97 -> Bouche | J15: =IF(D15="","",VLOOKUP(D15,N14:S16,6,FALSE)) ->  | N15: q/Dp | O15: =Langage!A$83 -> Différence de pression | P15: Pa | Q15: =Langage!$A$43 -> Débit | R15: m³/h | S15: =IF(D15<>N15,"",(C10/F15)^2*E15) ->  | V15: Section | W15: m² | BV15: 400x100 | BW15: 0.16 | BX15: 400x100
N16: CE | O16: =Langage!A$80 -> Coefficient de perte d'entrée | P16: - | S16: =IF(D15<>N16,"",1/E15^2*X8*T16^2/2) ->  | T16: =IF(G10="","",HLOOKUP(G10,X13:BP28,16,FALSE)) ->  | V16: Vitesse réelle | W16: m/s | X16: =X28 -> 0 | Y16: =Y28 -> 0 | Z16: 0 | AA16: 0 | AB16: 0 | AC16: 0 | AD16: 0 | AE16: 0 | AF16: 0 | AG16: 0 | AH16: 0 | AI16: 0 | AJ16: 0 | AK16: 0 | AL16: 0 | AM16: 0 | AN16: 0 | AO16: 0 | AP16: 0 | AQ16: 0 | AR16: 0 | AS16: 0 | AT16: 0 | AU16: 0 | AV16: 0 | AW16: 0 | AX16: 0 | AY16: 0 | AZ16: 0 | BA16: 0 | BB16: 0 | BC16: 0 | BD16: 0 | BE16: 0 | BF16: 0 | BG16: 0 | BH16: 0 | BI16: 0 | BJ16: 0 | BK16: 0 | BL16: 0 | BM16: 0 | BN16: 0 | BO16: 0 | BP16: 0 | BV16: 200x150 | BW16: 0.171 | BX16: 200x150
I17: =Langage!A$84 -> Cumulée | J17: =IF(OR(S19=0,S19="",J15=0,J15=""),"",IF(S19="OUT","OUT",S19+J15)) ->  | V17: Nombre de Reynolds | W17: - | X17: =X16*X14/$X$9 -> 0 | Y17: =Y16*Y14/$X$9 -> 0 | Z17: =Z16*Z14/$X$9 -> 0 | AA17: 0 | AB17: 0 | AC17: 0 | AD17: 0 | AE17: 0 | AF17: 0 | AG17: 0 | AH17: 0 | AI17: =AI16*AI14/$X$9 -> 0 | AJ17: =AJ16*AJ14/$X$9 -> 0 | AK17: 0 | AL17: 0 | AM17: 0 | AN17: 0 | AO17: 0 | AP17: =AP16*AP14/$X$9 -> 0 | AQ17: 0 | AR17: =AR16*AR14/$X$9 -> 0 | AS17: 0 | AT17: 0 | AU17: 0 | AV17: 0 | AW17: 0 | AX17: 0 | AY17: 0 | AZ17: 0 | BA17: 0 | BB17: 0 | BC17: 0 | BD17: 0 | BE17: 0 | BF17: 0 | BG17: 0 | BH17: 0 | BI17: 0 | BJ17: 0 | BK17: 0 | BL17: 0 | BM17: 0 | BN17: 0 | BO17: 0 | BP17: =BP16*BP14/$X$9 -> 0 | BV17: 250x150 | BW17: 0.188 | BX17: 250x150
S18: Perte de pression conduit | V18: Coefficient de frottement | W18: - | X18: =IF(X17<3300,"OUT",0.25/(LOG($X$10/X14/3.7+5.74/X17^0.9))^2) -> OUT | Y18: =IF(Y17<3300,"OUT",0.25/(LOG($X$10/Y14/3.7+5.74/Y17^0.9))^2) -> OUT | Z18: =IF(Z17<3300,"OUT",0.25/(LOG($X$10/Z14/3.7+5.74/Z17^0.9))^2) -> OUT | AA18: OUT | AB18: OUT | AC18: OUT | AD18: OUT | AE18: OUT | AF18: OUT | AG18: OUT | AH18: OUT | AI18: =IF(AI17<3300,"OUT",0.25/(LOG($X$10/AI14/3.7+5.74/AI17^0.9))^2) -> OUT | AJ18: =IF(AJ17<3300,"OUT",0.25/(LOG($X$10/AJ14/3.7+5.74/AJ17^0.9))^2) -> OUT | AK18: OUT | AL18: OUT | AM18: OUT | AN18: OUT | AO18: OUT | AP18: =IF(AP17<3300,"OUT",0.25/(LOG($X$10/AP14/3.7+5.74/AP17^0.9))^2) -> OUT | AQ18: OUT | AR18: =IF(AR17<3300,"OUT",0.25/(LOG($X$10/AR14/3.7+5.74/AR17^0.9))^2) -> OUT | AS18: OUT | AT18: OUT | AU18: OUT | AV18: OUT | AW18: OUT | AX18: OUT | AY18: OUT | AZ18: OUT | BA18: OUT | BB18: OUT | BC18: OUT | BD18: OUT | BE18: OUT | BF18: OUT | BG18: OUT | BH18: OUT | BI18: OUT | BJ18: OUT | BK18: OUT | BL18: OUT | BM18: OUT | BN18: OUT | BO18: OUT | BP18: =IF(BP17<3300,"OUT",0.25/(LOG($X$10/BP14/3.7+5.74/BP17^0.9))^2) -> OUT | BV18: 200x200 | BW18: 0.2 | BX18: 200x200
J19: =Langage!$A$93 -> Max. 3.0 Pa | S19: =IF(G10="","",HLOOKUP(G10,X13:BP27,15,FALSE)) ->  | V19: Perte de pression linéique | W19: Pa/m | X19: =IF(X18="OUT","OUT",X18/X14*$X$8/2*X16^2) -> OUT | Y19: =IF(Y18="OUT","OUT",Y18/Y14*$X$8/2*Y16^2) -> OUT | Z19: =IF(Z18="OUT","OUT",Z18/Z14*$X$8/2*Z16^2) -> OUT | AA19: OUT | AB19: OUT | AC19: OUT | AD19: OUT | AE19: OUT | AF19: OUT | AG19: OUT | AH19: OUT | AI19: =IF(AI18="OUT","OUT",AI18/AI14*$X$8/2*AI16^2) -> OUT | AJ19: =IF(AJ18="OUT","OUT",AJ18/AJ14*$X$8/2*AJ16^2) -> OUT | AK19: OUT | AL19: OUT | AM19: OUT | AN19: OUT | AO19: OUT | AP19: =IF(AP18="OUT","OUT",AP18/AP14*$X$8/2*AP16^2) -> OUT | AQ19: OUT | AR19: =IF(AR18="OUT","OUT",AR18/AR14*$X$8/2*AR16^2) -> OUT | AS19: OUT | AT19: OUT | AU19: OUT | AV19: OUT | AW19: OUT | AX19: OUT | AY19: OUT | AZ19: OUT | BA19: OUT | BB19: OUT | BC19: OUT | BD19: OUT | BE19: OUT | BF19: OUT | BG19: OUT | BH19: OUT | BI19: OUT | BJ19: OUT | BK19: OUT | BL19: OUT | BM19: OUT | BN19: OUT | BO19: OUT | BP19: =IF(BP18="OUT","OUT",BP18/BP14*$X$8/2*BP16^2) -> OUT | BV19: 300x150 | BW19: 0.2 | BX19: 300x150
V20: Perte de pression linéaire | W20: Pa | X20: =IF(X19="OUT","OUT",X19*$D10) -> OUT | Y20: =IF(Y19="OUT","OUT",Y19*$D10) -> OUT | Z20: =IF(Z19="OUT","OUT",Z19*$D10) -> OUT | AA20: OUT | AB20: OUT | AC20: OUT | AD20: OUT | AE20: OUT | AF20: OUT | AG20: OUT | AH20: OUT | AI20: =IF(AI19="OUT","OUT",AI19*$D10) -> OUT | AJ20: =IF(AJ19="OUT","OUT",AJ19*$D10) -> OUT | AK20: OUT | AL20: OUT | AM20: OUT | AN20: OUT | AO20: OUT | AP20: =IF(AP19="OUT","OUT",AP19*$D10) -> OUT | AQ20: OUT | AR20: =IF(AR19="OUT","OUT",AR19*$D10) -> OUT | AS20: OUT | AT20: OUT | AU20: OUT | AV20: OUT | AW20: OUT | AX20: OUT | AY20: OUT | AZ20: OUT | BA20: OUT | BB20: OUT | BC20: OUT | BD20: OUT | BE20: OUT | BF20: OUT | BG20: OUT | BH20: OUT | BI20: OUT | BJ20: OUT | BK20: OUT | BL20: OUT | BM20: OUT | BN20: OUT | BO20: OUT | BP20: =IF(BP19="OUT","OUT",BP19*$D10) -> OUT | BV20: 400x150 | BW20: 0.218 | BX20: 400x150
B21: =Langage!A$37 -> Amenée d’air | V21: Coude 90° r/D=1 | W21: - | X21: 0.25 | Y21: 0.26 | Z21: 0.26 | AA21: 0.27 | AB21: 0.23 | AC21: 0.23 | AD21: 0.21 | AE21: 0.25 | AF21: 0.26 | AG21: 0.23 | AH21: 0.27 | AI21: 0.24 | AJ21: 0.27 | AK21: 0.21 | AL21: 0.25 | AM21: 0.22 | AN21: 0.26 | AO21: 0.21 | AP21: 0.26 | AQ21: 0.24 | AR21: 0.27 | AS21: 0.25 | AT21: 0.23 | AU21: 0.26 | AV21: 0.24 | AW21: 0.27 | AX21: 0.21 | AY21: 0.25 | AZ21: 0.27 | BA21: 0.26 | BB21: 0.23 | BC21: 0.27 | BD21: 0.24 | BE21: 0.21 | BF21: 0.25 | BG21: 0.22 | BH21: 0.26 | BI21: 0.21 | BJ21: 0.24 | BK21: 0.25 | BL21: 0.23 | BM21: 0.24 | BN21: 0.21 | BO21: 0.23 | BP21: 0.21 | BV21: 250x200 | BW21: 0.222 | BX21: 250x200
V22: Perte de pression singulière | W22: Pa | X22: =IF(X17<3300,"OUT",$E10*X21*$X$8*X16^2/2) -> OUT | Y22: =IF(Y17<3300,"OUT",$E10*Y21*$X$8*Y16^2/2) -> OUT | AB22: OUT | AC22: =IF(AC17<3300,"OUT",$E10*AC21*$X$8*AC16^2/2) -> OUT | AD22: OUT | AE22: =IF(AE17<3300,"OUT",$E10*AE21*$X$8*AE16^2/2) -> OUT | AF22: OUT | AG22: OUT | AH22: OUT | AI22: OUT | AJ22: OUT | AK22: OUT | AL22: OUT | AM22: OUT | AN22: OUT | AO22: OUT | AP22: =IF(AP17<3300,"OUT",$E10*AP21*$X$8*AP16^2/2) -> OUT | AQ22: =IF(AQ17<3300,"OUT",$E10*AQ21*$X$8*AQ16^2/2) -> OUT | AR22: OUT | AS22: OUT | AT22: OUT | AU22: OUT | AV22: OUT | AW22: OUT | AX22: OUT | AY22: OUT | AZ22: OUT | BA22: OUT | BB22: OUT | BC22: OUT | BD22: OUT | BE22: OUT | BF22: OUT | BG22: OUT | BH22: OUT | BI22: OUT | BJ22: OUT | BK22: OUT | BL22: OUT | BM22: OUT | BN22: OUT | BO22: OUT | BP22: =IF(BP17<3300,"OUT",$E10*BP21*$X$8*BP16^2/2) -> OUT | BV22: 500x150 | BW22: 0.231 | BX22: 500x150
C23: =Langage!A$43 -> Débit | D23: =Langage!A$69 -> Longueur droite | E23: =Langage!A$70 -> Coude 90° | F23: =Langage!A$71 -> Coude 45° | G23: =Langage!A$88 -> Dimensions | H23: =Langage!A$73 -> Options | I23: =Langage!A$94 -> Minimum | J23: =Langage!A$72 -> Perte de pression | V23: Coude 45° r/D=1 | W23: - | X23: =0.6*X21 -> 0.15 | Y23: =0.6*Y21 -> 0.156 | Z23: =0.6*Z21 -> 0.156 | AA23: 0.162 | AB23: 0.138 | AC23: 0.138 | AD23: 0.126 | AE23: =0.6*AE21 -> 0.15 | AF23: 0.156 | AG23: 0.138 | AH23: 0.162 | AI23: 0.144 | AJ23: 0.162 | AK23: 0.126 | AL23: 0.15 | AM23: 0.132 | AN23: 0.156 | AO23: 0.126 | AP23: =0.6*AP21 -> 0.156 | AQ23: =0.6*AQ21 -> 0.144 | AR23: 0.162 | AS23: 0.15 | AT23: 0.138 | AU23: 0.156 | AV23: 0.144 | AW23: 0.162 | AX23: 0.126 | AY23: 0.15 | AZ23: 0.162 | BA23: 0.156 | BB23: 0.138 | BC23: 0.162 | BD23: 0.144 | BE23: 0.126 | BF23: 0.15 | BG23: 0.132 | BH23: 0.156 | BI23: 0.126 | BJ23: 0.144 | BK23: 0.15 | BL23: 0.138 | BM23: 0.144 | BN23: 0.126 | BO23: 0.138 | BP23: =0.6*BP21 -> 0.126 | BV23: 300x200 | BW23: 0.24 | BX23: 300x200
C24: m³/h | D24: m | E24: # | F24: # | G24: mm | I24: mm | J24: Pa | V24: Perte de pression singulière | W24: Pa | X24: =IF(X17<3300,"OUT",$F10*X23*$X$8*X16^2/2) -> OUT | Y24: =IF(Y17<3300,"OUT",$F10*Y23*$X$8*Y16^2/2) -> OUT | Z24: OUT | AA24: OUT | AB24: OUT | AC24: OUT | AD24: OUT | AE24: =IF(AE17<3300,"OUT",$F10*AE23*$X$8*AE16^2/2) -> OUT | AF24: OUT | AG24: OUT | AH24: OUT | AI24: OUT | AJ24: OUT | AK24: OUT | AL24: OUT | AM24: OUT | AN24: OUT | AO24: OUT | AP24: =IF(AP17<3300,"OUT",$F10*AP23*$X$8*AP16^2/2) -> OUT | AQ24: =IF(AQ17<3300,"OUT",$F10*AQ23*$X$8*AQ16^2/2) -> OUT | AR24: OUT | AS24: OUT | AT24: OUT | AU24: OUT | AV24: OUT | AW24: OUT | AX24: OUT | AY24: OUT | AZ24: OUT | BA24: OUT | BB24: OUT | BC24: OUT | BD24: OUT | BE24: OUT | BF24: OUT | BG24: OUT | BH24: OUT | BI24: OUT | BJ24: OUT | BK24: OUT | BL24: OUT | BM24: OUT | BN24: OUT | BO24: OUT | BP24: =IF(BP17<3300,"OUT",$F10*BP23*$X$8*BP16^2/2) -> OUT | BV24: 600x150 | BW24: 0.24 | BX24: 600x150
I25: =IF(C25="","",HLOOKUP("OK",X30:BP45,2,FALSE)) ->  | J25: =IF(C25="","",HLOOKUP("OK",X30:BP45,16,FALSE)) ->  | V25: Sortie libre du conduit | W25: - | X25: 1 | Y25: 1 | Z25: 1 | AA25: 1 | AB25: 1 | AC25: 1 | AD25: 1 | AE25: 1 | AF25: 1 | AG25: 1 | AH25: 1 | AI25: 1 | AJ25: 1 | AK25: 1 | AL25: 1 | AM25: 1 | AN25: 1 | AO25: 1 | AP25: 1 | AQ25: 1 | AR25: 1 | AS25: 1 | AT25: 1 | AU25: 1 | AV25: 1 | AW25: 1 | AX25: 1 | AY25: 1 | AZ25: 1 | BA25: 1 | BB25: 1 | BC25: 1 | BD25: 1 | BE25: 1 | BF25: 1 | BG25: 1 | BH25: 1 | BI25: 1 | BJ25: 1 | BK25: 1 | BL25: 1 | BM25: 1 | BN25: 1 | BO25: 1 | BP25: 1 | BV25: 250x250 | BW25: 0.25 | BX25: 250x250
I26: =IF(C25="","",VLOOKUP(T27,BW$12:BX$56,2,FALSE)) ->  | J26: =IF(C25="","",HLOOKUP(I26,X31:BP45,15,FALSE)) ->  | V26: Perte de pression singulière | W26: Pa | X26: =IF(X17<3300,"OUT",X25*$X$8*X16^2/2) -> OUT | Y26: =IF(Y17<3300,"OUT",Y25*$X$8*Y16^2/2) -> OUT | Z26: =IF(Z17<3300,"OUT",Z25*$X$8*Z16^2/2) -> OUT | AA26: OUT | AB26: OUT | AC26: OUT | AD26: OUT | AE26: OUT | AF26: OUT | AG26: OUT | AH26: OUT | AI26: =IF(AI17<3300,"OUT",AI25*$X$8*AI16^2/2) -> OUT | AJ26: =IF(AJ17<3300,"OUT",AJ25*$X$8*AJ16^2/2) -> OUT | AK26: OUT | AL26: OUT | AM26: =IF(AM17<3300,"OUT",AM25*$X$8*AM16^2/2) -> OUT | AN26: OUT | AO26: OUT | AP26: =IF(AP17<3300,"OUT",AP25*$X$8*AP16^2/2) -> OUT | AQ26: =IF(AQ17<3300,"OUT",AQ25*$X$8*AQ16^2/2) -> OUT | AR26: OUT | AS26: OUT | AT26: OUT | AU26: OUT | AV26: OUT | AW26: OUT | AX26: OUT | AY26: OUT | AZ26: OUT | BA26: OUT | BB26: OUT | BC26: OUT | BD26: OUT | BE26: OUT | BF26: OUT | BG26: OUT | BH26: OUT | BI26: OUT | BJ26: OUT | BK26: OUT | BL26: OUT | BM26: OUT | BN26: OUT | BO26: OUT | BP26: =IF(BP17<3300,"OUT",BP25*$X$8*BP16^2/2) -> OUT | BV26: 400x200 | BW26: 0.267 | BX26: 400x200
C27: =Langage!A$75 -> Bouche de prise d'air | D27: =Langage!A$82 -> Données | E27: =IF(D30="","",VLOOKUP(D30,N29:S31,2,FALSE)) ->  | F27: =IF(D30="","",VLOOKUP(D30,N29:S31,4,FALSE)) ->  | I27: =IF(C25="","",VLOOKUP(U27,BW$12:BX$56,2,FALSE)) ->  | J27: =IF(C25="","",HLOOKUP(I27,X31:BP45,15,FALSE)) ->  | S27: =IF(I25="","",HLOOKUP(I25,X31:BP32,2,FALSE)) ->  | T27: =IF(C25="","",MIN(IF(X32:BP32>S27,X32:BP32))) ->  | U27: =IF(T27=0,0,IF(C25="","",MIN(IF(X32:BP32>T27,X32:BP32)))) ->  | V27: Perte de pression partielle | W27: Pa | X27: =IF(OR($D10="",$D10=0),0,IF(X17<3300,"OUT",X20+X22+X24+X26)) -> 0 | Y27: =IF(OR($D10="",$D10=0),0,IF(Y17<3300,"OUT",Y20+Y22+Y24+Y26)) -> 0 | Z27: =IF(OR($D10="",$D10=0),0,IF(Z17<3300,"OUT",Z20+Z22+Z24+Z26)) -> 0 | AA27: 0 | AB27: 0 | AC27: 0 | AD27: 0 | AE27: 0 | AF27: 0 | AG27: 0 | AH27: 0 | AI27: =IF(OR($D10="",$D10=0),0,IF(AI17<3300,"OUT",AI20+AI22+AI24+AI26)) -> 0 | AJ27: =IF(OR($D10="",$D10=0),0,IF(AJ17<3300,"OUT",AJ20+AJ22+AJ24+AJ26)) -> 0 | AK27: 0 | AL27: 0 | AM27: =IF(OR($D10="",$D10=0),0,IF(AM17<3300,"OUT",AM20+AM22+AM24+AM26)) -> 0 | AN27: 0 | AO27: 0 | AP27: =IF(OR($D10="",$D10=0),0,IF(AP17<3300,"OUT",AP20+AP22+AP24+AP26)) -> 0 | AQ27: =IF(OR($D10="",$D10=0),0,IF(AQ17<3300,"OUT",AQ20+AQ22+AQ24+AQ26)) -> 0 | AR27: 0 | AS27: 0 | AT27: 0 | AU27: 0 | AV27: 0 | AW27: 0 | AX27: 0 | AY27: 0 | AZ27: 0 | BA27: 0 | BB27: 0 | BC27: 0 | BD27: 0 | BE27: 0 | BF27: 0 | BG27: 0 | BH27: 0 | BI27: 0 | BJ27: 0 | BK27: 0 | BL27: 0 | BM27: 0 | BN27: 0 | BO27: 0 | BP27: =IF(OR($D10="",$D10=0),0,IF(BP17<3300,"OUT",BP20+BP22+BP24+BP26)) -> 0 | BV27: 300x250 | BW27: 0.273 | BX27: 300x250
S28: Perte de pression | T28: Vitesse | V28: Vitesse réelle | W28: m/s | X28: =$C10/(0.2*0.1)/3600 -> 0 | Y28: =$C10/(0.25*0.1)/3600 -> 0 | Z28: =$C10/(0.3*0.1)/3600 -> 0 | AA28: =$C10/(0.4*0.1)/3600 -> 0 | AB28: =$C10/(0.2*0.15)/3600 -> 0 | AC28: =$C10/(0.25*0.15)/3600 -> 0 | AD28: =$C10/(0.2*0.2)/3600 -> 0 | AE28: =$C10/(0.3*0.15)/3600 -> 0 | AF28: =$C10/(0.4*0.15)/3600 -> 0 | AG28: =$C10/(0.25*0.2)/3600 -> 0 | AH28: =$C10/(0.5*0.15)/3600 -> 0 | AI28: =$C10/(0.3*0.2)/3600 -> 0 | AJ28: =$C10/(0.6*0.15)/3600 -> 0 | AK28: =$C10/(0.25*0.25)/3600 -> 0 | AL28: =$C10/(0.4*0.2)/3600 -> 0 | AM28: =$C10/(0.3*0.25)/3600 -> 0 | AN28: =$C10/(0.5*0.2)/3600 -> 0 | AO28: =$C10/(0.3*0.3)/3600 -> 0 | AP28: =$C10/(0.6*0.2)/3600 -> 0 | AQ28: =$C10/(0.4*0.25)/3600 -> 0 | AR28: =$C10/(0.8*0.2)/3600 -> 0 | AS28: =$C10/(0.5*0.25)/3600 -> 0 | AT28: =$C10/(0.4*0.3)/3600 -> 0 | AU28: =$C10/(0.6*0.25)/3600 -> 0 | AV28: =$C10/(0.5*0.3)/3600 -> 0 | AW28: =$C10/(0.8*0.25)/3600 -> 0 | AX28: =$C10/(0.4*0.4)/3600 -> 0 | AY28: =$C10/(0.6*0.3)/3600 -> 0 | AZ28: =$C10/(1*0.25)/3600 -> 0 | BA28: =$C10/(0.8*0.3)/3600 -> 0 | BB28: =$C10/(0.5*0.4)/3600 -> 0 | BC28: =$C10/(1*0.3)/3600 -> 0 | BD28: =$C10/(0.6*0.4)/3600 -> 0 | BE28: =$C10/(0.5*0.5)/3600 -> 0 | BF28: =$C10/(0.8*0.4)/3600 -> 0 | BG28: =$C10/(0.6*0.5)/3600 -> 0 | BH28: =$C10/(1*0.4)/3600 -> 0 | BI28: =$C10/(0.6*0.6)/3600 -> 0 | BJ28: =$C10/(0.8*0.5)/3600 -> 0 | BK28: =$C10/(1*0.5)/3600 -> 0 | BL28: =$C10/(0.8*0.6)/3600 -> 0 | BM28: =$C10/(1*0.6)/3600 -> 0 | BN28: =$C10/(0.8*0.8)/3600 -> 0 | BO28: =$C10/(1*0.8)/3600 -> 0 | BP28: =$C10/(1*1)/3600 -> 0 | BV28: 500x200 | BW28: 0.286 | BX28: 500x200
E29: =IF(D30="","",VLOOKUP(D30,N29:S31,3,FALSE)) ->  | F29: =IF(D30="","",VLOOKUP(D30,N29:S31,5,FALSE)) ->  | I29: =Langage!A$96 -> Conduit | J29: =IF(OR(S34=0,S34=""),"",IF(S34="OUT","OUT",S34)) ->  | N29: Kin | O29: =Langage!A$77 -> Facteur K (aspiration) | P29: - | S29: =IF(D30<>N29,"",E30*$X$8*T29^2/2) ->  | T29: =IF(G25="","",HLOOKUP(G25,X31:BP46,16,FALSE)) ->  | BV29: 300x300 | BW29: 0.3 | BX29: 300x300
I30: =Langage!A$97 -> Bouche | J30: =IF(D30="","",VLOOKUP(D30,N29:S31,6,FALSE)) ->  | N30: q/Dp | O30: =Langage!A$83 -> Différence de pression | P30: Pa | Q30: =Langage!$A$43 -> Débit | R30: m³/h | S30: =IF(D30<>N30,"",(C25/F30)^2*E30) ->  | V30: Amenée d'air | X30: =IF(OR(X45="OUT",X45>$X$6),"OUT","OK") -> OK | Y30: =IF(OR(Y45="OUT",Y45>$X$6),"OUT","OK") -> OK | Z30: =IF(OR(Z45="OUT",Z45>$X$6),"OUT","OK") -> OK | AA30: OK | AB30: OK | AC30: OK | AD30: OK | AE30: OK | AF30: OK | AG30: OK | AH30: OK | AI30: OK | AJ30: OK | AK30: OK | AL30: OK | AM30: OK | AN30: OK | AO30: OK | AP30: OK | AQ30: OK | AR30: OK | AS30: OK | AT30: OK | AU30: OK | AV30: OK | AW30: OK | AX30: OK | AY30: OK | AZ30: OK | BA30: OK | BB30: OK | BC30: OK | BD30: OK | BE30: OK | BF30: OK | BG30: OK | BH30: OK | BI30: OK | BJ30: OK | BK30: OK | BL30: OK | BM30: OK | BN30: OK | BO30: OK | BP30: OK | BV30: 600x200 | BW30: 0.3 | BX30: 600x200
N31: CE | O31: =Langage!A$80 -> Coefficient de perte d'entrée | P31: - | S31: =IF(D30<>N31,"",1/E30^2*$X$8*T29^2/2) ->  | T31: =IF(G25="","",HLOOKUP(G25,X31:BP46,16,FALSE)) ->  | V31: Dimensions possibles | W31: mm | X31: =X13 -> 200x100 | Y31: =Y13 -> 250x100 | Z31: =Z13 -> 300x100 | AA31: 400x100 | AB31: 200x150 | AC31: 250x150 | AD31: 200x200 | AE31: 300x150 | AF31: 400x150 | AG31: 250x200 | AH31: 500x150 | AI31: 300x200 | AJ31: 600x150 | AK31: 250x250 | AL31: 400x200 | AM31: 300x250 | AN31: 500x200 | AO31: 300x300 | AP31: 600x200 | AQ31: 400x250 | AR31: 800x200 | AS31: 500x250 | AT31: 400x300 | AU31: 600x250 | AV31: 500x300 | AW31: 800x250 | AX31: 400x400 | AY31: 600x300 | AZ31: 1000x250 | BA31: 800x300 | BB31: 500x400 | BC31: 1000x300 | BD31: 600x400 | BE31: 500x500 | BF31: 800x400 | BG31: 600x500 | BH31: 1000x400 | BI31: 600x600 | BJ31: 800x500 | BK31: 1000x500 | BL31: 800x600 | BM31: 1000x600 | BN31: 800x800 | BO31: 1000x800 | BP31: 1000x1000 | BV31: 400x250 | BW31: 0.308 | BX31: 400x250
I32: =Langage!A$84 -> Cumulée | J32: =IF(OR(S34=0,S34="",J30=0,J30=""),"",IF(S34="OUT","OUT",S34+J30)) ->  | V32: Diamètre hydraulique | W32: mm | X32: =X14 -> 0.133 | Y32: =Y14 -> 0.143 | Z32: =Z14 -> 0.15 | AA32: 0.16 | AB32: 0.171 | AC32: 0.188 | AD32: 0.2 | AE32: 0.2 | AF32: 0.218 | AG32: 0.222 | AH32: 0.231 | AI32: 0.24 | AJ32: 0.24 | AK32: 0.25 | AL32: 0.267 | AM32: 0.273 | AN32: 0.286 | AO32: 0.3 | AP32: 0.3 | AQ32: 0.308 | AR32: 0.32 | AS32: 0.333 | AT32: 0.343 | AU32: 0.353 | AV32: 0.375 | AW32: 0.381 | AX32: 0.4 | AY32: 0.4 | AZ32: 0.4 | BA32: 0.436 | BB32: 0.444 | BC32: 0.462 | BD32: 0.48 | BE32: 0.5 | BF32: 0.533 | BG32: 0.545 | BH32: 0.571 | BI32: 0.6 | BJ32: 0.615 | BK32: 0.667 | BL32: 0.686 | BM32: 0.75 | BN32: 0.8 | BO32: 0.889 | BP32: 1 | BV32: 800x200 | BW32: 0.32 | BX32: 800x200
S33: Perte de pression conduit | V33: Section | W33: m² | BV33: 500x250 | BW33: 0.333 | BX33: 500x250
J34: =Langage!$A$93 -> Max. 3.0 Pa | S34: =IF(G25="","",HLOOKUP(G25,X31:BP45,15,FALSE)) ->  | V34: Vitesse réelle | W34: m/s | X34: =X46 -> 0 | Y34: =Y46 -> 0 | Z34: 0 | AA34: 0 | AB34: 0 | AC34: 0 | AD34: 0 | AE34: 0 | AF34: 0 | AG34: 0 | AH34: 0 | AI34: 0 | AJ34: 0 | AK34: 0 | AL34: 0 | AM34: 0 | AN34: 0 | AO34: 0 | AP34: 0 | AQ34: 0 | AR34: 0 | AS34: 0 | AT34: 0 | AU34: 0 | AV34: 0 | AW34: 0 | AX34: 0 | AY34: 0 | AZ34: 0 | BA34: 0 | BB34: 0 | BC34: 0 | BD34: 0 | BE34: 0 | BF34: 0 | BG34: 0 | BH34: 0 | BI34: 0 | BJ34: 0 | BK34: 0 | BL34: 0 | BM34: 0 | BN34: 0 | BO34: 0 | BP34: 0 | BV34: 400x300 | BW34: 0.343 | BX34: 400x300
V35: Nombre de Reynolds | W35: - | X35: =X34*X32/$X$9 -> 0 | Y35: =Y34*Y32/$X$9 -> 0 | Z35: =Z34*Z32/$X$9 -> 0 | AA35: =AA34*AA32/$X$9 -> 0 | AB35: =AB34*AB32/$X$9 -> 0 | AC35: =AC34*AC32/$X$9 -> 0 | AD35: =AD34*AD32/$X$9 -> 0 | AE35: =AE34*AE32/$X$9 -> 0 | AF35: =AF34*AF32/$X$9 -> 0 | AG35: =AG34*AG32/$X$9 -> 0 | AH35: =AH34*AH32/$X$9 -> 0 | AI35: =AI34*AI32/$X$9 -> 0 | AJ35: =AJ34*AJ32/$X$9 -> 0 | AK35: =AK34*AK32/$X$9 -> 0 | AL35: =AL34*AL32/$X$9 -> 0 | AM35: =AM34*AM32/$X$9 -> 0 | AN35: =AN34*AN32/$X$9 -> 0 | AO35: =AO34*AO32/$X$9 -> 0 | AP35: =AP34*AP32/$X$9 -> 0 | AQ35: =AQ34*AQ32/$X$9 -> 0 | AR35: =AR34*AR32/$X$9 -> 0 | AS35: =AS34*AS32/$X$9 -> 0 | AT35: =AT34*AT32/$X$9 -> 0 | AU35: =AU34*AU32/$X$9 -> 0 | AV35: =AV34*AV32/$X$9 -> 0 | AW35: =AW34*AW32/$X$9 -> 0 | AX35: =AX34*AX32/$X$9 -> 0 | AY35: =AY34*AY32/$X$9 -> 0 | AZ35: =AZ34*AZ32/$X$9 -> 0 | BA35: =BA34*BA32/$X$9 -> 0 | BB35: =BB34*BB32/$X$9 -> 0 | BC35: =BC34*BC32/$X$9 -> 0 | BD35: =BD34*BD32/$X$9 -> 0 | BE35: =BE34*BE32/$X$9 -> 0 | BF35: =BF34*BF32/$X$9 -> 0 | BG35: =BG34*BG32/$X$9 -> 0 | BH35: =BH34*BH32/$X$9 -> 0 | BI35: =BI34*BI32/$X$9 -> 0 | BJ35: =BJ34*BJ32/$X$9 -> 0 | BK35: =BK34*BK32/$X$9 -> 0 | BL35: =BL34*BL32/$X$9 -> 0 | BM35: =BM34*BM32/$X$9 -> 0 | BN35: =BN34*BN32/$X$9 -> 0 | BO35: =BO34*BO32/$X$9 -> 0 | BP35: =BP34*BP32/$X$9 -> 0 | BV35: 600x250 | BW35: 0.353 | BX35: 600x250
B36: =Langage!A$38 -> Evacuation d’air | V36: Coefficient de frottement | W36: - | X36: =IF(X35<3300,"OUT",0.25/(LOG($X$10/X32/3.7+5.74/X35^0.9))^2) -> OUT | Y36: =IF(Y35<3300,"OUT",0.25/(LOG($X$10/Y32/3.7+5.74/Y35^0.9))^2) -> OUT | Z36: =IF(Z35<3300,"OUT",0.25/(LOG($X$10/Z32/3.7+5.74/Z35^0.9))^2) -> OUT | AA36: =IF(AA35<3300,"OUT",0.25/(LOG($X$10/AA32/3.7+5.74/AA35^0.9))^2) -> OUT | AB36: =IF(AB35<3300,"OUT",0.25/(LOG($X$10/AB32/3.7+5.74/AB35^0.9))^2) -> OUT | AC36: =IF(AC35<3300,"OUT",0.25/(LOG($X$10/AC32/3.7+5.74/AC35^0.9))^2) -> OUT | AD36: =IF(AD35<3300,"OUT",0.25/(LOG($X$10/AD32/3.7+5.74/AD35^0.9))^2) -> OUT | AE36: =IF(AE35<3300,"OUT",0.25/(LOG($X$10/AE32/3.7+5.74/AE35^0.9))^2) -> OUT | AF36: =IF(AF35<3300,"OUT",0.25/(LOG($X$10/AF32/3.7+5.74/AF35^0.9))^2) -> OUT | AG36: =IF(AG35<3300,"OUT",0.25/(LOG($X$10/AG32/3.7+5.74/AG35^0.9))^2) -> OUT | AH36: =IF(AH35<3300,"OUT",0.25/(LOG($X$10/AH32/3.7+5.74/AH35^0.9))^2) -> OUT | AI36: =IF(AI35<3300,"OUT",0.25/(LOG($X$10/AI32/3.7+5.74/AI35^0.9))^2) -> OUT | AJ36: =IF(AJ35<3300,"OUT",0.25/(LOG($X$10/AJ32/3.7+5.74/AJ35^0.9))^2) -> OUT | AK36: =IF(AK35<3300,"OUT",0.25/(LOG($X$10/AK32/3.7+5.74/AK35^0.9))^2) -> OUT | AL36: =IF(AL35<3300,"OUT",0.25/(LOG($X$10/AL32/3.7+5.74/AL35^0.9))^2) -> OUT | AM36: =IF(AM35<3300,"OUT",0.25/(LOG($X$10/AM32/3.7+5.74/AM35^0.9))^2) -> OUT | AN36: =IF(AN35<3300,"OUT",0.25/(LOG($X$10/AN32/3.7+5.74/AN35^0.9))^2) -> OUT | AO36: =IF(AO35<3300,"OUT",0.25/(LOG($X$10/AO32/3.7+5.74/AO35^0.9))^2) -> OUT | AP36: =IF(AP35<3300,"OUT",0.25/(LOG($X$10/AP32/3.7+5.74/AP35^0.9))^2) -> OUT | AQ36: =IF(AQ35<3300,"OUT",0.25/(LOG($X$10/AQ32/3.7+5.74/AQ35^0.9))^2) -> OUT | AR36: =IF(AR35<3300,"OUT",0.25/(LOG($X$10/AR32/3.7+5.74/AR35^0.9))^2) -> OUT | AS36: =IF(AS35<3300,"OUT",0.25/(LOG($X$10/AS32/3.7+5.74/AS35^0.9))^2) -> OUT | AT36: =IF(AT35<3300,"OUT",0.25/(LOG($X$10/AT32/3.7+5.74/AT35^0.9))^2) -> OUT | AU36: =IF(AU35<3300,"OUT",0.25/(LOG($X$10/AU32/3.7+5.74/AU35^0.9))^2) -> OUT | AV36: =IF(AV35<3300,"OUT",0.25/(LOG($X$10/AV32/3.7+5.74/AV35^0.9))^2) -> OUT | AW36: =IF(AW35<3300,"OUT",0.25/(LOG($X$10/AW32/3.7+5.74/AW35^0.9))^2) -> OUT | AX36: =IF(AX35<3300,"OUT",0.25/(LOG($X$10/AX32/3.7+5.74/AX35^0.9))^2) -> OUT | AY36: =IF(AY35<3300,"OUT",0.25/(LOG($X$10/AY32/3.7+5.74/AY35^0.9))^2) -> OUT | AZ36: =IF(AZ35<3300,"OUT",0.25/(LOG($X$10/AZ32/3.7+5.74/AZ35^0.9))^2) -> OUT | BA36: =IF(BA35<3300,"OUT",0.25/(LOG($X$10/BA32/3.7+5.74/BA35^0.9))^2) -> OUT | BB36: =IF(BB35<3300,"OUT",0.25/(LOG($X$10/BB32/3.7+5.74/BB35^0.9))^2) -> OUT | BC36: =IF(BC35<3300,"OUT",0.25/(LOG($X$10/BC32/3.7+5.74/BC35^0.9))^2) -> OUT | BD36: =IF(BD35<3300,"OUT",0.25/(LOG($X$10/BD32/3.7+5.74/BD35^0.9))^2) -> OUT | BE36: =IF(BE35<3300,"OUT",0.25/(LOG($X$10/BE32/3.7+5.74/BE35^0.9))^2) -> OUT | BF36: =IF(BF35<3300,"OUT",0.25/(LOG($X$10/BF32/3.7+5.74/BF35^0.9))^2) -> OUT | BG36: =IF(BG35<3300,"OUT",0.25/(LOG($X$10/BG32/3.7+5.74/BG35^0.9))^2) -> OUT | BH36: =IF(BH35<3300,"OUT",0.25/(LOG($X$10/BH32/3.7+5.74/BH35^0.9))^2) -> OUT | BI36: =IF(BI35<3300,"OUT",0.25/(LOG($X$10/BI32/3.7+5.74/BI35^0.9))^2) -> OUT | BJ36: =IF(BJ35<3300,"OUT",0.25/(LOG($X$10/BJ32/3.7+5.74/BJ35^0.9))^2) -> OUT | BK36: =IF(BK35<3300,"OUT",0.25/(LOG($X$10/BK32/3.7+5.74/BK35^0.9))^2) -> OUT | BL36: =IF(BL35<3300,"OUT",0.25/(LOG($X$10/BL32/3.7+5.74/BL35^0.9))^2) -> OUT | BM36: =IF(BM35<3300,"OUT",0.25/(LOG($X$10/BM32/3.7+5.74/BM35^0.9))^2) -> OUT | BN36: =IF(BN35<3300,"OUT",0.25/(LOG($X$10/BN32/3.7+5.74/BN35^0.9))^2) -> OUT | BO36: =IF(BO35<3300,"OUT",0.25/(LOG($X$10/BO32/3.7+5.74/BO35^0.9))^2) -> OUT | BP36: =IF(BP35<3300,"OUT",0.25/(LOG($X$10/BP32/3.7+5.74/BP35^0.9))^2) -> OUT | BV36: 500x300 | BW36: 0.375 | BX36: 500x300
V37: Perte de pression linéique | W37: Pa/m | X37: =IF(X36="OUT","OUT",X36/X32*$X$8/2*X34^2) -> OUT | Y37: =IF(Y36="OUT","OUT",Y36/Y32*$X$8/2*Y34^2) -> OUT | Z37: =IF(Z36="OUT","OUT",Z36/Z32*$X$8/2*Z34^2) -> OUT | AA37: =IF(AA36="OUT","OUT",AA36/AA32*$X$8/2*AA34^2) -> OUT | AB37: =IF(AB36="OUT","OUT",AB36/AB32*$X$8/2*AB34^2) -> OUT | AC37: =IF(AC36="OUT","OUT",AC36/AC32*$X$8/2*AC34^2) -> OUT | AD37: =IF(AD36="OUT","OUT",AD36/AD32*$X$8/2*AD34^2) -> OUT | AE37: =IF(AE36="OUT","OUT",AE36/AE32*$X$8/2*AE34^2) -> OUT | AF37: =IF(AF36="OUT","OUT",AF36/AF32*$X$8/2*AF34^2) -> OUT | AG37: =IF(AG36="OUT","OUT",AG36/AG32*$X$8/2*AG34^2) -> OUT | AH37: =IF(AH36="OUT","OUT",AH36/AH32*$X$8/2*AH34^2) -> OUT | AI37: =IF(AI36="OUT","OUT",AI36/AI32*$X$8/2*AI34^2) -> OUT | AJ37: =IF(AJ36="OUT","OUT",AJ36/AJ32*$X$8/2*AJ34^2) -> OUT | AK37: =IF(AK36="OUT","OUT",AK36/AK32*$X$8/2*AK34^2) -> OUT | AL37: =IF(AL36="OUT","OUT",AL36/AL32*$X$8/2*AL34^2) -> OUT | AM37: =IF(AM36="OUT","OUT",AM36/AM32*$X$8/2*AM34^2) -> OUT | AN37: =IF(AN36="OUT","OUT",AN36/AN32*$X$8/2*AN34^2) -> OUT | AO37: =IF(AO36="OUT","OUT",AO36/AO32*$X$8/2*AO34^2) -> OUT | AP37: =IF(AP36="OUT","OUT",AP36/AP32*$X$8/2*AP34^2) -> OUT | AQ37: =IF(AQ36="OUT","OUT",AQ36/AQ32*$X$8/2*AQ34^2) -> OUT | AR37: =IF(AR36="OUT","OUT",AR36/AR32*$X$8/2*AR34^2) -> OUT | AS37: =IF(AS36="OUT","OUT",AS36/AS32*$X$8/2*AS34^2) -> OUT | AT37: =IF(AT36="OUT","OUT",AT36/AT32*$X$8/2*AT34^2) -> OUT | AU37: =IF(AU36="OUT","OUT",AU36/AU32*$X$8/2*AU34^2) -> OUT | AV37: =IF(AV36="OUT","OUT",AV36/AV32*$X$8/2*AV34^2) -> OUT | AW37: =IF(AW36="OUT","OUT",AW36/AW32*$X$8/2*AW34^2) -> OUT | AX37: =IF(AX36="OUT","OUT",AX36/AX32*$X$8/2*AX34^2) -> OUT | AY37: =IF(AY36="OUT","OUT",AY36/AY32*$X$8/2*AY34^2) -> OUT | AZ37: =IF(AZ36="OUT","OUT",AZ36/AZ32*$X$8/2*AZ34^2) -> OUT | BA37: =IF(BA36="OUT","OUT",BA36/BA32*$X$8/2*BA34^2) -> OUT | BB37: =IF(BB36="OUT","OUT",BB36/BB32*$X$8/2*BB34^2) -> OUT | BC37: =IF(BC36="OUT","OUT",BC36/BC32*$X$8/2*BC34^2) -> OUT | BD37: =IF(BD36="OUT","OUT",BD36/BD32*$X$8/2*BD34^2) -> OUT | BE37: =IF(BE36="OUT","OUT",BE36/BE32*$X$8/2*BE34^2) -> OUT | BF37: =IF(BF36="OUT","OUT",BF36/BF32*$X$8/2*BF34^2) -> OUT | BG37: =IF(BG36="OUT","OUT",BG36/BG32*$X$8/2*BG34^2) -> OUT | BH37: =IF(BH36="OUT","OUT",BH36/BH32*$X$8/2*BH34^2) -> OUT | BI37: =IF(BI36="OUT","OUT",BI36/BI32*$X$8/2*BI34^2) -> OUT | BJ37: =IF(BJ36="OUT","OUT",BJ36/BJ32*$X$8/2*BJ34^2) -> OUT | BK37: =IF(BK36="OUT","OUT",BK36/BK32*$X$8/2*BK34^2) -> OUT | BL37: =IF(BL36="OUT","OUT",BL36/BL32*$X$8/2*BL34^2) -> OUT | BM37: =IF(BM36="OUT","OUT",BM36/BM32*$X$8/2*BM34^2) -> OUT | BN37: =IF(BN36="OUT","OUT",BN36/BN32*$X$8/2*BN34^2) -> OUT | BO37: =IF(BO36="OUT","OUT",BO36/BO32*$X$8/2*BO34^2) -> OUT | BP37: =IF(BP36="OUT","OUT",BP36/BP32*$X$8/2*BP34^2) -> OUT | BV37: 800x250 | BW37: 0.381 | BX37: 800x250
C38: =Langage!A$43 -> Débit | D38: =Langage!A$69 -> Longueur droite | E38: =Langage!A$70 -> Coude 90° | F38: =Langage!A$71 -> Coude 45° | G38: =Langage!A$88 -> Dimensions | H38: =Langage!A$73 -> Options | I38: =Langage!A$94 -> Minimum | J38: =Langage!A$72 -> Perte de pression | V38: Perte de pression linéaire | W38: Pa | X38: =IF(X37="OUT","OUT",X37*$D25) -> OUT | Y38: =IF(Y37="OUT","OUT",Y37*$D25) -> OUT | Z38: =IF(Z37="OUT","OUT",Z37*$D25) -> OUT | AA38: =IF(AA37="OUT","OUT",AA37*$D25) -> OUT | AB38: =IF(AB37="OUT","OUT",AB37*$D25) -> OUT | AC38: =IF(AC37="OUT","OUT",AC37*$D25) -> OUT | AD38: =IF(AD37="OUT","OUT",AD37*$D25) -> OUT | AE38: =IF(AE37="OUT","OUT",AE37*$D25) -> OUT | AF38: =IF(AF37="OUT","OUT",AF37*$D25) -> OUT | AG38: =IF(AG37="OUT","OUT",AG37*$D25) -> OUT | AH38: =IF(AH37="OUT","OUT",AH37*$D25) -> OUT | AI38: =IF(AI37="OUT","OUT",AI37*$D25) -> OUT | AJ38: =IF(AJ37="OUT","OUT",AJ37*$D25) -> OUT | AK38: =IF(AK37="OUT","OUT",AK37*$D25) -> OUT | AL38: =IF(AL37="OUT","OUT",AL37*$D25) -> OUT | AM38: =IF(AM37="OUT","OUT",AM37*$D25) -> OUT | AN38: =IF(AN37="OUT","OUT",AN37*$D25) -> OUT | AO38: =IF(AO37="OUT","OUT",AO37*$D25) -> OUT | AP38: =IF(AP37="OUT","OUT",AP37*$D25) -> OUT | AQ38: =IF(AQ37="OUT","OUT",AQ37*$D25) -> OUT | AR38: =IF(AR37="OUT","OUT",AR37*$D25) -> OUT | AS38: =IF(AS37="OUT","OUT",AS37*$D25) -> OUT | AT38: =IF(AT37="OUT","OUT",AT37*$D25) -> OUT | AU38: =IF(AU37="OUT","OUT",AU37*$D25) -> OUT | AV38: =IF(AV37="OUT","OUT",AV37*$D25) -> OUT | AW38: =IF(AW37="OUT","OUT",AW37*$D25) -> OUT | AX38: =IF(AX37="OUT","OUT",AX37*$D25) -> OUT | AY38: =IF(AY37="OUT","OUT",AY37*$D25) -> OUT | AZ38: =IF(AZ37="OUT","OUT",AZ37*$D25) -> OUT | BA38: =IF(BA37="OUT","OUT",BA37*$D25) -> OUT | BB38: =IF(BB37="OUT","OUT",BB37*$D25) -> OUT | BC38: =IF(BC37="OUT","OUT",BC37*$D25) -> OUT | BD38: =IF(BD37="OUT","OUT",BD37*$D25) -> OUT | BE38: =IF(BE37="OUT","OUT",BE37*$D25) -> OUT | BF38: =IF(BF37="OUT","OUT",BF37*$D25) -> OUT | BG38: =IF(BG37="OUT","OUT",BG37*$D25) -> OUT | BH38: =IF(BH37="OUT","OUT",BH37*$D25) -> OUT | BI38: =IF(BI37="OUT","OUT",BI37*$D25) -> OUT | BJ38: =IF(BJ37="OUT","OUT",BJ37*$D25) -> OUT | BK38: =IF(BK37="OUT","OUT",BK37*$D25) -> OUT | BL38: =IF(BL37="OUT","OUT",BL37*$D25) -> OUT | BM38: =IF(BM37="OUT","OUT",BM37*$D25) -> OUT | BN38: =IF(BN37="OUT","OUT",BN37*$D25) -> OUT | BO38: =IF(BO37="OUT","OUT",BO37*$D25) -> OUT | BP38: =IF(BP37="OUT","OUT",BP37*$D25) -> OUT | BV38: 400x400 | BW38: 0.4 | BX38: 400x400
C39: m³/h | D39: m | E39: # | F39: # | G39: mm | I39: mm | J39: Pa | V39: Coude 90° r/D=1 | W39: - | X39: =X21 -> 0.25 | Y39: =Y21 -> 0.26 | Z39: =Z21 -> 0.26 | AA39: 0.27 | AB39: 0.23 | AC39: 0.23 | AD39: 0.21 | AE39: 0.25 | AF39: 0.26 | AG39: 0.23 | AH39: 0.27 | AI39: 0.24 | AJ39: 0.27 | AK39: 0.21 | AL39: 0.25 | AM39: 0.22 | AN39: 0.26 | AO39: 0.21 | AP39: 0.26 | AQ39: 0.24 | AR39: 0.27 | AS39: 0.25 | AT39: 0.23 | AU39: 0.26 | AV39: 0.24 | AW39: 0.27 | AX39: 0.21 | AY39: 0.25 | AZ39: 0.27 | BA39: 0.26 | BB39: 0.23 | BC39: 0.27 | BD39: 0.24 | BE39: 0.21 | BF39: 0.25 | BG39: 0.22 | BH39: 0.26 | BI39: 0.21 | BJ39: 0.24 | BK39: 0.25 | BL39: 0.23 | BM39: 0.24 | BN39: 0.21 | BO39: 0.23 | BP39: 0.21 | BV39: 600x300 | BW39: 0.4 | BX39: 600x300
I40: =IF(C40="","",HLOOKUP("OK",X48:BP63,2,FALSE)) ->  | J40: =IF(C40="","",HLOOKUP("OK",X48:BP63,16,FALSE)) ->  | V40: Perte de pression singulière | W40: Pa | X40: =IF(X35<3300,"OUT",$E25*X39*$X$8*X34^2/2) -> OUT | Y40: =IF(Y35<3300,"OUT",$E25*Y39*$X$8*Y34^2/2) -> OUT | Z40: =IF(Z35<3300,"OUT",$E25*Z39*$X$8*Z34^2/2) -> OUT | AA40: OUT | AB40: OUT | AC40: OUT | AD40: OUT | AE40: OUT | AF40: OUT | AG40: OUT | AH40: OUT | AI40: OUT | AJ40: OUT | AK40: OUT | AL40: OUT | AM40: OUT | AN40: OUT | AO40: OUT | AP40: OUT | AQ40: OUT | AR40: OUT | AS40: OUT | AT40: OUT | AU40: OUT | AV40: OUT | AW40: OUT | AX40: OUT | AY40: OUT | AZ40: OUT | BA40: OUT | BB40: OUT | BC40: OUT | BD40: OUT | BE40: OUT | BF40: OUT | BG40: OUT | BH40: OUT | BI40: OUT | BJ40: OUT | BK40: OUT | BL40: OUT | BM40: OUT | BN40: OUT | BO40: OUT | BP40: OUT | BV40: 1000x250 | BW40: 0.4 | BX40: 1000x250
I41: =IF(C40="","",VLOOKUP(T42,BW$12:BX$56,2,FALSE)) ->  | J41: =IF(C40="","",HLOOKUP(I41,X49:BP63,15,FALSE)) ->  | V41: Coude 45° r/D=1 | W41: - | X41: =0.6*X39 -> 0.15 | Y41: =0.6*Y39 -> 0.156 | Z41: =0.6*Z39 -> 0.156 | AA41: 0.162 | AB41: 0.138 | AC41: 0.138 | AD41: 0.126 | AE41: 0.15 | AF41: 0.156 | AG41: 0.138 | AH41: 0.162 | AI41: 0.144 | AJ41: 0.162 | AK41: 0.126 | AL41: 0.15 | AM41: 0.132 | AN41: 0.156 | AO41: 0.126 | AP41: 0.156 | AQ41: 0.144 | AR41: 0.162 | AS41: 0.15 | AT41: 0.138 | AU41: 0.156 | AV41: 0.144 | AW41: 0.162 | AX41: 0.126 | AY41: 0.15 | AZ41: 0.162 | BA41: 0.156 | BB41: 0.138 | BC41: 0.162 | BD41: 0.144 | BE41: 0.126 | BF41: 0.15 | BG41: 0.132 | BH41: 0.156 | BI41: 0.126 | BJ41: 0.144 | BK41: 0.15 | BL41: 0.138 | BM41: 0.144 | BN41: 0.126 | BO41: 0.138 | BP41: 0.126 | BV41: 800x300 | BW41: 0.436 | BX41: 800x300
C42: =Langage!A$76 -> Bouche de rejet d'air | D42: =Langage!A$82 -> Données | E42: =IF(D45="","",VLOOKUP(D45,N44:S46,2,FALSE)) ->  | F42: =IF(D45="","",VLOOKUP(D45,N44:S46,4,FALSE)) ->  | I42: =IF(C40="","",VLOOKUP(U42,BW$12:BX$56,2,FALSE)) ->  | J42: =IF(C40="","",HLOOKUP(I42,X49:BP63,15,FALSE)) ->  | S42: =IF(I40="","",HLOOKUP(I40,X49:BP50,2,FALSE)) ->  | T42: =IF(C40="","",MIN(IF(X50:BP50>S42,X50:BP50))) ->  | U42: =IF(T42=0,0,IF(C40="","",MIN(IF(X50:BP50>T42,X50:BP50)))) ->  | V42: Perte de pression singulière | W42: Pa | X42: =IF(X35<3300,"OUT",$F25*X41*$X$8*X34^2/2) -> OUT | Y42: =IF(Y35<3300,"OUT",$F25*Y41*$X$8*Y34^2/2) -> OUT | Z42: =IF(Z35<3300,"OUT",$F25*Z41*$X$8*Z34^2/2) -> OUT | AA42: OUT | AB42: OUT | AC42: OUT | AD42: OUT | AE42: OUT | AF42: OUT | AG42: OUT | AH42: OUT | AI42: OUT | AJ42: OUT | AK42: OUT | AL42: OUT | AM42: OUT | AN42: OUT | AO42: OUT | AP42: OUT | AQ42: OUT | AR42: OUT | AS42: OUT | AT42: OUT | AU42: OUT | AV42: OUT | AW42: OUT | AX42: OUT | AY42: OUT | AZ42: OUT | BA42: OUT | BB42: OUT | BC42: OUT | BD42: OUT | BE42: OUT | BF42: OUT | BG42: OUT | BH42: OUT | BI42: OUT | BJ42: OUT | BK42: OUT | BL42: OUT | BM42: OUT | BN42: OUT | BO42: OUT | BP42: OUT | BV42: 500x400 | BW42: 0.444 | BX42: 500x400
S43: Perte de pression | T43: Vitesse | V43: Sortie libre du conduit | W43: - | X43: =X25 -> 1 | Y43: =Y25 -> 1 | Z43: =Z25 -> 1 | AA43: 1 | AB43: 1 | AC43: 1 | AD43: 1 | AE43: 1 | AF43: 1 | AG43: 1 | AH43: 1 | AI43: 1 | AJ43: 1 | AK43: 1 | AL43: 1 | AM43: 1 | AN43: 1 | AO43: 1 | AP43: 1 | AQ43: 1 | AR43: 1 | AS43: 1 | AT43: 1 | AU43: 1 | AV43: 1 | AW43: 1 | AX43: 1 | AY43: 1 | AZ43: 1 | BA43: 1 | BB43: 1 | BC43: 1 | BD43: 1 | BE43: 1 | BF43: 1 | BG43: 1 | BH43: 1 | BI43: 1 | BJ43: 1 | BK43: 1 | BL43: 1 | BM43: 1 | BN43: 1 | BO43: 1 | BP43: 1 | BV43: 1000x300 | BW43: 0.462 | BX43: 1000x300
E44: =IF(D45="","",VLOOKUP(D45,N44:S46,3,FALSE)) ->  | F44: =IF(D45="","",VLOOKUP(D45,N44:S46,5,FALSE)) ->  | I44: =Langage!A$96 -> Conduit | J44: =IF(OR(S49=0,S49=""),"",IF(S49="OUT","OUT",S49)) ->  | N44: Kout | O44: =Langage!A$78 -> Facteur K (extraction) | P44: - | S44: =IF(D45<>N44,"",E45*$X$8*T44^2/2) ->  | T44: =IF(G40="","",HLOOKUP(G40,X49:BP64,16,FALSE)) ->  | V44: Perte de pression singulière | W44: Pa | X44: =IF(X35<3300,"OUT",X43*$X$8*X34^2/2) -> OUT | Y44: =IF(Y35<3300,"OUT",Y43*$X$8*Y34^2/2) -> OUT | Z44: =IF(Z35<3300,"OUT",Z43*$X$8*Z34^2/2) -> OUT | AA44: =IF(AA35<3300,"OUT",AA43*$X$8*AA34^2/2) -> OUT | AB44: =IF(AB35<3300,"OUT",AB43*$X$8*AB34^2/2) -> OUT | AC44: =IF(AC35<3300,"OUT",AC43*$X$8*AC34^2/2) -> OUT | AD44: =IF(AD35<3300,"OUT",AD43*$X$8*AD34^2/2) -> OUT | AE44: =IF(AE35<3300,"OUT",AE43*$X$8*AE34^2/2) -> OUT | AF44: =IF(AF35<3300,"OUT",AF43*$X$8*AF34^2/2) -> OUT | AG44: =IF(AG35<3300,"OUT",AG43*$X$8*AG34^2/2) -> OUT | AH44: =IF(AH35<3300,"OUT",AH43*$X$8*AH34^2/2) -> OUT | AI44: =IF(AI35<3300,"OUT",AI43*$X$8*AI34^2/2) -> OUT | AJ44: =IF(AJ35<3300,"OUT",AJ43*$X$8*AJ34^2/2) -> OUT | AK44: =IF(AK35<3300,"OUT",AK43*$X$8*AK34^2/2) -> OUT | AL44: =IF(AL35<3300,"OUT",AL43*$X$8*AL34^2/2) -> OUT | AM44: =IF(AM35<3300,"OUT",AM43*$X$8*AM34^2/2) -> OUT | AN44: =IF(AN35<3300,"OUT",AN43*$X$8*AN34^2/2) -> OUT | AO44: =IF(AO35<3300,"OUT",AO43*$X$8*AO34^2/2) -> OUT | AP44: =IF(AP35<3300,"OUT",AP43*$X$8*AP34^2/2) -> OUT | AQ44: =IF(AQ35<3300,"OUT",AQ43*$X$8*AQ34^2/2) -> OUT | AR44: =IF(AR35<3300,"OUT",AR43*$X$8*AR34^2/2) -> OUT | AS44: =IF(AS35<3300,"OUT",AS43*$X$8*AS34^2/2) -> OUT | AT44: =IF(AT35<3300,"OUT",AT43*$X$8*AT34^2/2) -> OUT | AU44: =IF(AU35<3300,"OUT",AU43*$X$8*AU34^2/2) -> OUT | AV44: =IF(AV35<3300,"OUT",AV43*$X$8*AV34^2/2) -> OUT | AW44: =IF(AW35<3300,"OUT",AW43*$X$8*AW34^2/2) -> OUT | AX44: =IF(AX35<3300,"OUT",AX43*$X$8*AX34^2/2) -> OUT | AY44: =IF(AY35<3300,"OUT",AY43*$X$8*AY34^2/2) -> OUT | AZ44: =IF(AZ35<3300,"OUT",AZ43*$X$8*AZ34^2/2) -> OUT | BA44: =IF(BA35<3300,"OUT",BA43*$X$8*BA34^2/2) -> OUT | BB44: =IF(BB35<3300,"OUT",BB43*$X$8*BB34^2/2) -> OUT | BC44: =IF(BC35<3300,"OUT",BC43*$X$8*BC34^2/2) -> OUT | BD44: =IF(BD35<3300,"OUT",BD43*$X$8*BD34^2/2) -> OUT | BE44: =IF(BE35<3300,"OUT",BE43*$X$8*BE34^2/2) -> OUT | BF44: =IF(BF35<3300,"OUT",BF43*$X$8*BF34^2/2) -> OUT | BG44: =IF(BG35<3300,"OUT",BG43*$X$8*BG34^2/2) -> OUT | BH44: =IF(BH35<3300,"OUT",BH43*$X$8*BH34^2/2) -> OUT | BI44: =IF(BI35<3300,"OUT",BI43*$X$8*BI34^2/2) -> OUT | BJ44: =IF(BJ35<3300,"OUT",BJ43*$X$8*BJ34^2/2) -> OUT | BK44: =IF(BK35<3300,"OUT",BK43*$X$8*BK34^2/2) -> OUT | BL44: =IF(BL35<3300,"OUT",BL43*$X$8*BL34^2/2) -> OUT | BM44: =IF(BM35<3300,"OUT",BM43*$X$8*BM34^2/2) -> OUT | BN44: =IF(BN35<3300,"OUT",BN43*$X$8*BN34^2/2) -> OUT | BO44: =IF(BO35<3300,"OUT",BO43*$X$8*BO34^2/2) -> OUT | BP44: =IF(BP35<3300,"OUT",BP43*$X$8*BP34^2/2) -> OUT | BV44: 600x400 | BW44: 0.48 | BX44: 600x400
I45: =Langage!A$97 -> Bouche | J45: =IF(D45="","",VLOOKUP(D45,N44:S46,6,FALSE)) ->  | N45: q/Dp | O45: =Langage!A$83 -> Différence de pression | P45: Pa | Q45: =Langage!$A$43 -> Débit | R45: m³/h | S45: =IF(D45<>N45,"",(C40/F45)^2*E45) ->  | V45: Perte de pression partielle | W45: Pa | X45: =IF(OR($D25="",$D25=0),0,IF(X35<3300,"OUT",X38+X40+X42+X44)) -> 0 | Y45: =IF(OR($D25="",$D25=0),0,IF(Y35<3300,"OUT",Y38+Y40+Y42+Y44)) -> 0 | Z45: =IF(OR($D25="",$D25=0),0,IF(Z35<3300,"OUT",Z38+Z40+Z42+Z44)) -> 0 | AA45: =IF(OR($D25="",$D25=0),0,IF(AA35<3300,"OUT",AA38+AA40+AA42+AA44)) -> 0 | AB45: =IF(OR($D25="",$D25=0),0,IF(AB35<3300,"OUT",AB38+AB40+AB42+AB44)) -> 0 | AC45: =IF(OR($D25="",$D25=0),0,IF(AC35<3300,"OUT",AC38+AC40+AC42+AC44)) -> 0 | AD45: =IF(OR($D25="",$D25=0),0,IF(AD35<3300,"OUT",AD38+AD40+AD42+AD44)) -> 0 | AE45: =IF(OR($D25="",$D25=0),0,IF(AE35<3300,"OUT",AE38+AE40+AE42+AE44)) -> 0 | AF45: =IF(OR($D25="",$D25=0),0,IF(AF35<3300,"OUT",AF38+AF40+AF42+AF44)) -> 0 | AG45: =IF(OR($D25="",$D25=0),0,IF(AG35<3300,"OUT",AG38+AG40+AG42+AG44)) -> 0 | AH45: =IF(OR($D25="",$D25=0),0,IF(AH35<3300,"OUT",AH38+AH40+AH42+AH44)) -> 0 | AI45: =IF(OR($D25="",$D25=0),0,IF(AI35<3300,"OUT",AI38+AI40+AI42+AI44)) -> 0 | AJ45: =IF(OR($D25="",$D25=0),0,IF(AJ35<3300,"OUT",AJ38+AJ40+AJ42+AJ44)) -> 0 | AK45: =IF(OR($D25="",$D25=0),0,IF(AK35<3300,"OUT",AK38+AK40+AK42+AK44)) -> 0 | AL45: =IF(OR($D25="",$D25=0),0,IF(AL35<3300,"OUT",AL38+AL40+AL42+AL44)) -> 0 | AM45: =IF(OR($D25="",$D25=0),0,IF(AM35<3300,"OUT",AM38+AM40+AM42+AM44)) -> 0 | AN45: =IF(OR($D25="",$D25=0),0,IF(AN35<3300,"OUT",AN38+AN40+AN42+AN44)) -> 0 | AO45: =IF(OR($D25="",$D25=0),0,IF(AO35<3300,"OUT",AO38+AO40+AO42+AO44)) -> 0 | AP45: =IF(OR($D25="",$D25=0),0,IF(AP35<3300,"OUT",AP38+AP40+AP42+AP44)) -> 0 | AQ45: =IF(OR($D25="",$D25=0),0,IF(AQ35<3300,"OUT",AQ38+AQ40+AQ42+AQ44)) -> 0 | AR45: =IF(OR($D25="",$D25=0),0,IF(AR35<3300,"OUT",AR38+AR40+AR42+AR44)) -> 0 | AS45: =IF(OR($D25="",$D25=0),0,IF(AS35<3300,"OUT",AS38+AS40+AS42+AS44)) -> 0 | AT45: =IF(OR($D25="",$D25=0),0,IF(AT35<3300,"OUT",AT38+AT40+AT42+AT44)) -> 0 | AU45: =IF(OR($D25="",$D25=0),0,IF(AU35<3300,"OUT",AU38+AU40+AU42+AU44)) -> 0 | AV45: =IF(OR($D25="",$D25=0),0,IF(AV35<3300,"OUT",AV38+AV40+AV42+AV44)) -> 0 | AW45: =IF(OR($D25="",$D25=0),0,IF(AW35<3300,"OUT",AW38+AW40+AW42+AW44)) -> 0 | AX45: =IF(OR($D25="",$D25=0),0,IF(AX35<3300,"OUT",AX38+AX40+AX42+AX44)) -> 0 | AY45: =IF(OR($D25="",$D25=0),0,IF(AY35<3300,"OUT",AY38+AY40+AY42+AY44)) -> 0 | AZ45: =IF(OR($D25="",$D25=0),0,IF(AZ35<3300,"OUT",AZ38+AZ40+AZ42+AZ44)) -> 0 | BA45: =IF(OR($D25="",$D25=0),0,IF(BA35<3300,"OUT",BA38+BA40+BA42+BA44)) -> 0 | BB45: =IF(OR($D25="",$D25=0),0,IF(BB35<3300,"OUT",BB38+BB40+BB42+BB44)) -> 0 | BC45: =IF(OR($D25="",$D25=0),0,IF(BC35<3300,"OUT",BC38+BC40+BC42+BC44)) -> 0 | BD45: =IF(OR($D25="",$D25=0),0,IF(BD35<3300,"OUT",BD38+BD40+BD42+BD44)) -> 0 | BE45: =IF(OR($D25="",$D25=0),0,IF(BE35<3300,"OUT",BE38+BE40+BE42+BE44)) -> 0 | BF45: =IF(OR($D25="",$D25=0),0,IF(BF35<3300,"OUT",BF38+BF40+BF42+BF44)) -> 0 | BG45: =IF(OR($D25="",$D25=0),0,IF(BG35<3300,"OUT",BG38+BG40+BG42+BG44)) -> 0 | BH45: =IF(OR($D25="",$D25=0),0,IF(BH35<3300,"OUT",BH38+BH40+BH42+BH44)) -> 0 | BI45: =IF(OR($D25="",$D25=0),0,IF(BI35<3300,"OUT",BI38+BI40+BI42+BI44)) -> 0 | BJ45: =IF(OR($D25="",$D25=0),0,IF(BJ35<3300,"OUT",BJ38+BJ40+BJ42+BJ44)) -> 0 | BK45: =IF(OR($D25="",$D25=0),0,IF(BK35<3300,"OUT",BK38+BK40+BK42+BK44)) -> 0 | BL45: =IF(OR($D25="",$D25=0),0,IF(BL35<3300,"OUT",BL38+BL40+BL42+BL44)) -> 0 | BM45: =IF(OR($D25="",$D25=0),0,IF(BM35<3300,"OUT",BM38+BM40+BM42+BM44)) -> 0 | BN45: =IF(OR($D25="",$D25=0),0,IF(BN35<3300,"OUT",BN38+BN40+BN42+BN44)) -> 0 | BO45: =IF(OR($D25="",$D25=0),0,IF(BO35<3300,"OUT",BO38+BO40+BO42+BO44)) -> 0 | BP45: =IF(OR($D25="",$D25=0),0,IF(BP35<3300,"OUT",BP38+BP40+BP42+BP44)) -> 0 | BV45: 500x500 | BW45: 0.5 | BX45: 500x500
N46: CD | O46: =Langage!A$81 -> Coefficient de perte de décharge | P46: - | S46: =IF(D45<>N46,"",1/E45^2*$X$8*T44^2/2) ->  | T46: =IF(G40="","",HLOOKUP(G40,X49:BP64,16,FALSE)) ->  | V46: Vitesse réelle | W46: m/s | X46: =$C25/(0.2*0.1)/3600 -> 0 | Y46: =$C25/(0.25*0.1)/3600 -> 0 | Z46: =$C25/(0.3*0.1)/3600 -> 0 | AA46: =$C25/(0.4*0.1)/3600 -> 0 | AB46: =$C25/(0.2*0.15)/3600 -> 0 | AC46: =$C25/(0.25*0.15)/3600 -> 0 | AD46: =$C25/(0.2*0.2)/3600 -> 0 | AE46: =$C25/(0.3*0.15)/3600 -> 0 | AF46: =$C25/(0.4*0.15)/3600 -> 0 | AG46: =$C25/(0.25*0.2)/3600 -> 0 | AH46: =$C25/(0.5*0.15)/3600 -> 0 | AI46: =$C25/(0.3*0.2)/3600 -> 0 | AJ46: =$C25/(0.6*0.15)/3600 -> 0 | AK46: =$C25/(0.25*0.25)/3600 -> 0 | AL46: =$C25/(0.4*0.2)/3600 -> 0 | AM46: =$C25/(0.3*0.25)/3600 -> 0 | AN46: =$C25/(0.5*0.2)/3600 -> 0 | AO46: =$C25/(0.3*0.3)/3600 -> 0 | AP46: =$C25/(0.6*0.2)/3600 -> 0 | AQ46: =$C25/(0.4*0.25)/3600 -> 0 | AR46: =$C25/(0.8*0.2)/3600 -> 0 | AS46: =$C25/(0.5*0.25)/3600 -> 0 | AT46: =$C25/(0.4*0.3)/3600 -> 0 | AU46: =$C25/(0.6*0.25)/3600 -> 0 | AV46: =$C25/(0.5*0.3)/3600 -> 0 | AW46: =$C25/(0.8*0.25)/3600 -> 0 | AX46: =$C25/(0.4*0.4)/3600 -> 0 | AY46: =$C25/(0.6*0.3)/3600 -> 0 | AZ46: =$C25/(1*0.25)/3600 -> 0 | BA46: =$C25/(0.8*0.3)/3600 -> 0 | BB46: =$C25/(0.5*0.4)/3600 -> 0 | BC46: =$C25/(1*0.3)/3600 -> 0 | BD46: =$C25/(0.6*0.4)/3600 -> 0 | BE46: =$C25/(0.5*0.5)/3600 -> 0 | BF46: =$C25/(0.8*0.4)/3600 -> 0 | BG46: =$C25/(0.6*0.5)/3600 -> 0 | BH46: =$C25/(1*0.4)/3600 -> 0 | BI46: =$C25/(0.6*0.6)/3600 -> 0 | BJ46: =$C25/(0.8*0.5)/3600 -> 0 | BK46: =$C25/(1*0.5)/3600 -> 0 | BL46: =$C25/(0.8*0.6)/3600 -> 0 | BM46: =$C25/(1*0.6)/3600 -> 0 | BN46: =$C25/(0.8*0.8)/3600 -> 0 | BO46: =$C25/(1*0.8)/3600 -> 0 | BP46: =$C25/(1*1)/3600 -> 0 | BV46: 800x400 | BW46: 0.533 | BX46: 800x400
I47: =Langage!A$84 -> Cumulée | J47: =IF(OR(S49=0,S49="",J45=0,J45=""),"",IF(S49="OUT","OUT",S49+J45)) ->  | BV47: 600x500 | BW47: 0.545 | BX47: 600x500
S48: Perte de pression conduit | V48: Evacuation d'air | X48: =IF(OR(X63="OUT",X63>$X$6),"OUT","OK") -> OK | Y48: =IF(OR(Y63="OUT",Y63>$X$6),"OUT","OK") -> OK | Z48: =IF(OR(Z63="OUT",Z63>$X$6),"OUT","OK") -> OK | AA48: OK | AB48: OK | AC48: OK | AD48: OK | AE48: OK | AF48: OK | AG48: OK | AH48: OK | AI48: OK | AJ48: OK | AK48: OK | AL48: OK | AM48: OK | AN48: OK | AO48: OK | AP48: OK | AQ48: OK | AR48: OK | AS48: OK | AT48: OK | AU48: OK | AV48: OK | AW48: OK | AX48: OK | AY48: OK | AZ48: OK | BA48: OK | BB48: OK | BC48: OK | BD48: OK | BE48: OK | BF48: OK | BG48: OK | BH48: OK | BI48: OK | BJ48: OK | BK48: OK | BL48: OK | BM48: OK | BN48: OK | BO48: OK | BP48: OK | BV48: 1000x400 | BW48: 0.571 | BX48: 1000x400
J49: =Langage!$A$93 -> Max. 3.0 Pa | S49: =IF(G40="","",HLOOKUP(G40,X49:BP63,15,FALSE)) ->  | V49: Dimensions possibles | W49: mm | X49: =X13 -> 200x100 | Y49: =Y13 -> 250x100 | Z49: =Z13 -> 300x100 | AA49: 400x100 | AB49: 200x150 | AC49: 250x150 | AD49: 200x200 | AE49: 300x150 | AF49: 400x150 | AG49: 250x200 | AH49: 500x150 | AI49: 300x200 | AJ49: 600x150 | AK49: 250x250 | AL49: 400x200 | AM49: 300x250 | AN49: 500x200 | AO49: 300x300 | AP49: 600x200 | AQ49: 400x250 | AR49: 800x200 | AS49: 500x250 | AT49: 400x300 | AU49: 600x250 | AV49: 500x300 | AW49: 800x250 | AX49: 400x400 | AY49: 600x300 | AZ49: 1000x250 | BA49: 800x300 | BB49: 500x400 | BC49: 1000x300 | BD49: 600x400 | BE49: 500x500 | BF49: 800x400 | BG49: 600x500 | BH49: 1000x400 | BI49: 600x600 | BJ49: 800x500 | BK49: 1000x500 | BL49: 800x600 | BM49: 1000x600 | BN49: 800x800 | BO49: 1000x800 | BP49: 1000x1000 | BV49: 600x600 | BW49: 0.6 | BX49: 600x600
V50: Diamètre hydraulique | W50: mm | X50: =X14 -> 0.133 | Y50: =Y14 -> 0.143 | Z50: =Z14 -> 0.15 | AA50: 0.16 | AB50: 0.171 | AC50: 0.188 | AD50: 0.2 | AE50: 0.2 | AF50: 0.218 | AG50: 0.222 | AH50: 0.231 | AI50: 0.24 | AJ50: 0.24 | AK50: 0.25 | AL50: 0.267 | AM50: 0.273 | AN50: 0.286 | AO50: 0.3 | AP50: 0.3 | AQ50: 0.308 | AR50: 0.32 | AS50: 0.333 | AT50: 0.343 | AU50: 0.353 | AV50: 0.375 | AW50: 0.381 | AX50: 0.4 | AY50: 0.4 | AZ50: 0.4 | BA50: 0.436 | BB50: 0.444 | BC50: 0.462 | BD50: 0.48 | BE50: 0.5 | BF50: 0.533 | BG50: 0.545 | BH50: 0.571 | BI50: 0.6 | BJ50: 0.615 | BK50: 0.667 | BL50: 0.686 | BM50: 0.75 | BN50: 0.8 | BO50: 0.889 | BP50: 1 | BV50: 800x500 | BW50: 0.615 | BX50: 800x500
V51: Section | W51: m² | BV51: 1000x500 | BW51: 0.667 | BX51: 1000x500
V52: Vitesse réelle | W52: m/s | X52: =X64 -> 0 | Y52: =Y64 -> 0 | Z52: 0 | AA52: 0 | AB52: 0 | AC52: 0 | AD52: 0 | AE52: 0 | AF52: 0 | AG52: 0 | AH52: 0 | AI52: 0 | AJ52: 0 | AK52: 0 | AL52: 0 | AM52: 0 | AN52: 0 | AO52: 0 | AP52: 0 | AQ52: 0 | AR52: 0 | AS52: 0 | AT52: 0 | AU52: 0 | AV52: 0 | AW52: 0 | AX52: 0 | AY52: 0 | AZ52: 0 | BA52: 0 | BB52: 0 | BC52: 0 | BD52: 0 | BE52: 0 | BF52: 0 | BG52: 0 | BH52: 0 | BI52: 0 | BJ52: 0 | BK52: 0 | BL52: 0 | BM52: 0 | BN52: 0 | BO52: 0 | BP52: 0 | BV52: 800x600 | BW52: 0.686 | BX52: 800x600
V53: Nombre de Reynolds | W53: - | X53: =X52*X50/$X$9 -> 0 | Y53: =Y52*Y50/$X$9 -> 0 | Z53: =Z52*Z50/$X$9 -> 0 | AA53: =AA52*AA50/$X$9 -> 0 | AB53: =AB52*AB50/$X$9 -> 0 | AC53: =AC52*AC50/$X$9 -> 0 | AD53: =AD52*AD50/$X$9 -> 0 | AE53: =AE52*AE50/$X$9 -> 0 | AF53: =AF52*AF50/$X$9 -> 0 | AG53: =AG52*AG50/$X$9 -> 0 | AH53: =AH52*AH50/$X$9 -> 0 | AI53: =AI52*AI50/$X$9 -> 0 | AJ53: =AJ52*AJ50/$X$9 -> 0 | AK53: =AK52*AK50/$X$9 -> 0 | AL53: =AL52*AL50/$X$9 -> 0 | AM53: =AM52*AM50/$X$9 -> 0 | AN53: =AN52*AN50/$X$9 -> 0 | AO53: =AO52*AO50/$X$9 -> 0 | AP53: =AP52*AP50/$X$9 -> 0 | AQ53: =AQ52*AQ50/$X$9 -> 0 | AR53: =AR52*AR50/$X$9 -> 0 | AS53: =AS52*AS50/$X$9 -> 0 | AT53: =AT52*AT50/$X$9 -> 0 | AU53: =AU52*AU50/$X$9 -> 0 | AV53: =AV52*AV50/$X$9 -> 0 | AW53: =AW52*AW50/$X$9 -> 0 | AX53: =AX52*AX50/$X$9 -> 0 | AY53: =AY52*AY50/$X$9 -> 0 | AZ53: =AZ52*AZ50/$X$9 -> 0 | BA53: =BA52*BA50/$X$9 -> 0 | BB53: =BB52*BB50/$X$9 -> 0 | BC53: =BC52*BC50/$X$9 -> 0 | BD53: =BD52*BD50/$X$9 -> 0 | BE53: =BE52*BE50/$X$9 -> 0 | BF53: =BF52*BF50/$X$9 -> 0 | BG53: =BG52*BG50/$X$9 -> 0 | BH53: =BH52*BH50/$X$9 -> 0 | BI53: =BI52*BI50/$X$9 -> 0 | BJ53: =BJ52*BJ50/$X$9 -> 0 | BK53: =BK52*BK50/$X$9 -> 0 | BL53: =BL52*BL50/$X$9 -> 0 | BM53: =BM52*BM50/$X$9 -> 0 | BN53: =BN52*BN50/$X$9 -> 0 | BO53: =BO52*BO50/$X$9 -> 0 | BP53: =BP52*BP50/$X$9 -> 0 | BV53: 1000x600 | BW53: 0.75 | BX53: 1000x600
V54: Coefficient de frottement | W54: - | X54: =IF(X53<3300,"OUT",0.25/(LOG($X$10/X50/3.7+5.74/X53^0.9))^2) -> OUT | Y54: =IF(Y53<3300,"OUT",0.25/(LOG($X$10/Y50/3.7+5.74/Y53^0.9))^2) -> OUT | Z54: =IF(Z53<3300,"OUT",0.25/(LOG($X$10/Z50/3.7+5.74/Z53^0.9))^2) -> OUT | AA54: =IF(AA53<3300,"OUT",0.25/(LOG($X$10/AA50/3.7+5.74/AA53^0.9))^2) -> OUT | AB54: =IF(AB53<3300,"OUT",0.25/(LOG($X$10/AB50/3.7+5.74/AB53^0.9))^2) -> OUT | AC54: =IF(AC53<3300,"OUT",0.25/(LOG($X$10/AC50/3.7+5.74/AC53^0.9))^2) -> OUT | AD54: =IF(AD53<3300,"OUT",0.25/(LOG($X$10/AD50/3.7+5.74/AD53^0.9))^2) -> OUT | AE54: =IF(AE53<3300,"OUT",0.25/(LOG($X$10/AE50/3.7+5.74/AE53^0.9))^2) -> OUT | AF54: =IF(AF53<3300,"OUT",0.25/(LOG($X$10/AF50/3.7+5.74/AF53^0.9))^2) -> OUT | AG54: =IF(AG53<3300,"OUT",0.25/(LOG($X$10/AG50/3.7+5.74/AG53^0.9))^2) -> OUT | AH54: =IF(AH53<3300,"OUT",0.25/(LOG($X$10/AH50/3.7+5.74/AH53^0.9))^2) -> OUT | AI54: =IF(AI53<3300,"OUT",0.25/(LOG($X$10/AI50/3.7+5.74/AI53^0.9))^2) -> OUT | AJ54: =IF(AJ53<3300,"OUT",0.25/(LOG($X$10/AJ50/3.7+5.74/AJ53^0.9))^2) -> OUT | AK54: =IF(AK53<3300,"OUT",0.25/(LOG($X$10/AK50/3.7+5.74/AK53^0.9))^2) -> OUT | AL54: =IF(AL53<3300,"OUT",0.25/(LOG($X$10/AL50/3.7+5.74/AL53^0.9))^2) -> OUT | AM54: =IF(AM53<3300,"OUT",0.25/(LOG($X$10/AM50/3.7+5.74/AM53^0.9))^2) -> OUT | AN54: =IF(AN53<3300,"OUT",0.25/(LOG($X$10/AN50/3.7+5.74/AN53^0.9))^2) -> OUT | AO54: =IF(AO53<3300,"OUT",0.25/(LOG($X$10/AO50/3.7+5.74/AO53^0.9))^2) -> OUT | AP54: =IF(AP53<3300,"OUT",0.25/(LOG($X$10/AP50/3.7+5.74/AP53^0.9))^2) -> OUT | AQ54: =IF(AQ53<3300,"OUT",0.25/(LOG($X$10/AQ50/3.7+5.74/AQ53^0.9))^2) -> OUT | AR54: =IF(AR53<3300,"OUT",0.25/(LOG($X$10/AR50/3.7+5.74/AR53^0.9))^2) -> OUT | AS54: =IF(AS53<3300,"OUT",0.25/(LOG($X$10/AS50/3.7+5.74/AS53^0.9))^2) -> OUT | AT54: =IF(AT53<3300,"OUT",0.25/(LOG($X$10/AT50/3.7+5.74/AT53^0.9))^2) -> OUT | AU54: =IF(AU53<3300,"OUT",0.25/(LOG($X$10/AU50/3.7+5.74/AU53^0.9))^2) -> OUT | AV54: =IF(AV53<3300,"OUT",0.25/(LOG($X$10/AV50/3.7+5.74/AV53^0.9))^2) -> OUT | AW54: =IF(AW53<3300,"OUT",0.25/(LOG($X$10/AW50/3.7+5.74/AW53^0.9))^2) -> OUT | AX54: =IF(AX53<3300,"OUT",0.25/(LOG($X$10/AX50/3.7+5.74/AX53^0.9))^2) -> OUT | AY54: =IF(AY53<3300,"OUT",0.25/(LOG($X$10/AY50/3.7+5.74/AY53^0.9))^2) -> OUT | AZ54: =IF(AZ53<3300,"OUT",0.25/(LOG($X$10/AZ50/3.7+5.74/AZ53^0.9))^2) -> OUT | BA54: =IF(BA53<3300,"OUT",0.25/(LOG($X$10/BA50/3.7+5.74/BA53^0.9))^2) -> OUT | BB54: =IF(BB53<3300,"OUT",0.25/(LOG($X$10/BB50/3.7+5.74/BB53^0.9))^2) -> OUT | BC54: =IF(BC53<3300,"OUT",0.25/(LOG($X$10/BC50/3.7+5.74/BC53^0.9))^2) -> OUT | BD54: =IF(BD53<3300,"OUT",0.25/(LOG($X$10/BD50/3.7+5.74/BD53^0.9))^2) -> OUT | BE54: =IF(BE53<3300,"OUT",0.25/(LOG($X$10/BE50/3.7+5.74/BE53^0.9))^2) -> OUT | BF54: =IF(BF53<3300,"OUT",0.25/(LOG($X$10/BF50/3.7+5.74/BF53^0.9))^2) -> OUT | BG54: =IF(BG53<3300,"OUT",0.25/(LOG($X$10/BG50/3.7+5.74/BG53^0.9))^2) -> OUT | BH54: =IF(BH53<3300,"OUT",0.25/(LOG($X$10/BH50/3.7+5.74/BH53^0.9))^2) -> OUT | BI54: =IF(BI53<3300,"OUT",0.25/(LOG($X$10/BI50/3.7+5.74/BI53^0.9))^2) -> OUT | BJ54: =IF(BJ53<3300,"OUT",0.25/(LOG($X$10/BJ50/3.7+5.74/BJ53^0.9))^2) -> OUT | BK54: =IF(BK53<3300,"OUT",0.25/(LOG($X$10/BK50/3.7+5.74/BK53^0.9))^2) -> OUT | BL54: =IF(BL53<3300,"OUT",0.25/(LOG($X$10/BL50/3.7+5.74/BL53^0.9))^2) -> OUT | BM54: =IF(BM53<3300,"OUT",0.25/(LOG($X$10/BM50/3.7+5.74/BM53^0.9))^2) -> OUT | BN54: =IF(BN53<3300,"OUT",0.25/(LOG($X$10/BN50/3.7+5.74/BN53^0.9))^2) -> OUT | BO54: =IF(BO53<3300,"OUT",0.25/(LOG($X$10/BO50/3.7+5.74/BO53^0.9))^2) -> OUT | BP54: =IF(BP53<3300,"OUT",0.25/(LOG($X$10/BP50/3.7+5.74/BP53^0.9))^2) -> OUT | BV54: 800x800 | BW54: 0.8 | BX54: 800x800
V55: Perte de pression linéique | W55: Pa/m | X55: =IF(X54="OUT","OUT",X54/X50*$X$8/2*X52^2) -> OUT | Y55: =IF(Y54="OUT","OUT",Y54/Y50*$X$8/2*Y52^2) -> OUT | Z55: =IF(Z54="OUT","OUT",Z54/Z50*$X$8/2*Z52^2) -> OUT | AA55: =IF(AA54="OUT","OUT",AA54/AA50*$X$8/2*AA52^2) -> OUT | AB55: =IF(AB54="OUT","OUT",AB54/AB50*$X$8/2*AB52^2) -> OUT | AC55: =IF(AC54="OUT","OUT",AC54/AC50*$X$8/2*AC52^2) -> OUT | AD55: =IF(AD54="OUT","OUT",AD54/AD50*$X$8/2*AD52^2) -> OUT | AE55: =IF(AE54="OUT","OUT",AE54/AE50*$X$8/2*AE52^2) -> OUT | AF55: =IF(AF54="OUT","OUT",AF54/AF50*$X$8/2*AF52^2) -> OUT | AG55: =IF(AG54="OUT","OUT",AG54/AG50*$X$8/2*AG52^2) -> OUT | AH55: =IF(AH54="OUT","OUT",AH54/AH50*$X$8/2*AH52^2) -> OUT | AI55: =IF(AI54="OUT","OUT",AI54/AI50*$X$8/2*AI52^2) -> OUT | AJ55: =IF(AJ54="OUT","OUT",AJ54/AJ50*$X$8/2*AJ52^2) -> OUT | AK55: =IF(AK54="OUT","OUT",AK54/AK50*$X$8/2*AK52^2) -> OUT | AL55: =IF(AL54="OUT","OUT",AL54/AL50*$X$8/2*AL52^2) -> OUT | AM55: =IF(AM54="OUT","OUT",AM54/AM50*$X$8/2*AM52^2) -> OUT | AN55: =IF(AN54="OUT","OUT",AN54/AN50*$X$8/2*AN52^2) -> OUT | AO55: =IF(AO54="OUT","OUT",AO54/AO50*$X$8/2*AO52^2) -> OUT | AP55: =IF(AP54="OUT","OUT",AP54/AP50*$X$8/2*AP52^2) -> OUT | AQ55: =IF(AQ54="OUT","OUT",AQ54/AQ50*$X$8/2*AQ52^2) -> OUT | AR55: =IF(AR54="OUT","OUT",AR54/AR50*$X$8/2*AR52^2) -> OUT | AS55: =IF(AS54="OUT","OUT",AS54/AS50*$X$8/2*AS52^2) -> OUT | AT55: =IF(AT54="OUT","OUT",AT54/AT50*$X$8/2*AT52^2) -> OUT | AU55: =IF(AU54="OUT","OUT",AU54/AU50*$X$8/2*AU52^2) -> OUT | AV55: =IF(AV54="OUT","OUT",AV54/AV50*$X$8/2*AV52^2) -> OUT | AW55: =IF(AW54="OUT","OUT",AW54/AW50*$X$8/2*AW52^2) -> OUT | AX55: =IF(AX54="OUT","OUT",AX54/AX50*$X$8/2*AX52^2) -> OUT | AY55: =IF(AY54="OUT","OUT",AY54/AY50*$X$8/2*AY52^2) -> OUT | AZ55: =IF(AZ54="OUT","OUT",AZ54/AZ50*$X$8/2*AZ52^2) -> OUT | BA55: =IF(BA54="OUT","OUT",BA54/BA50*$X$8/2*BA52^2) -> OUT | BB55: =IF(BB54="OUT","OUT",BB54/BB50*$X$8/2*BB52^2) -> OUT | BC55: =IF(BC54="OUT","OUT",BC54/BC50*$X$8/2*BC52^2) -> OUT | BD55: =IF(BD54="OUT","OUT",BD54/BD50*$X$8/2*BD52^2) -> OUT | BE55: =IF(BE54="OUT","OUT",BE54/BE50*$X$8/2*BE52^2) -> OUT | BF55: =IF(BF54="OUT","OUT",BF54/BF50*$X$8/2*BF52^2) -> OUT | BG55: =IF(BG54="OUT","OUT",BG54/BG50*$X$8/2*BG52^2) -> OUT | BH55: =IF(BH54="OUT","OUT",BH54/BH50*$X$8/2*BH52^2) -> OUT | BI55: =IF(BI54="OUT","OUT",BI54/BI50*$X$8/2*BI52^2) -> OUT | BJ55: =IF(BJ54="OUT","OUT",BJ54/BJ50*$X$8/2*BJ52^2) -> OUT | BK55: =IF(BK54="OUT","OUT",BK54/BK50*$X$8/2*BK52^2) -> OUT | BL55: =IF(BL54="OUT","OUT",BL54/BL50*$X$8/2*BL52^2) -> OUT | BM55: =IF(BM54="OUT","OUT",BM54/BM50*$X$8/2*BM52^2) -> OUT | BN55: =IF(BN54="OUT","OUT",BN54/BN50*$X$8/2*BN52^2) -> OUT | BO55: =IF(BO54="OUT","OUT",BO54/BO50*$X$8/2*BO52^2) -> OUT | BP55: =IF(BP54="OUT","OUT",BP54/BP50*$X$8/2*BP52^2) -> OUT | BV55: 1000x800 | BW55: 0.889 | BX55: 1000x800
V56: Perte de pression linéaire | W56: Pa | X56: =IF(X55="OUT","OUT",X55*$D40) -> OUT | Y56: =IF(Y55="OUT","OUT",Y55*$D40) -> OUT | Z56: =IF(Z55="OUT","OUT",Z55*$D40) -> OUT | AA56: OUT | AB56: OUT | AC56: OUT | AD56: OUT | AE56: OUT | AF56: OUT | AG56: OUT | AH56: OUT | AI56: OUT | AJ56: OUT | AK56: OUT | AL56: OUT | AM56: OUT | AN56: OUT | AO56: OUT | AP56: OUT | AQ56: OUT | AR56: OUT | AS56: OUT | AT56: OUT | AU56: OUT | AV56: OUT | AW56: OUT | AX56: OUT | AY56: OUT | AZ56: OUT | BA56: OUT | BB56: OUT | BC56: OUT | BD56: OUT | BE56: OUT | BF56: OUT | BG56: OUT | BH56: OUT | BI56: OUT | BJ56: OUT | BK56: OUT | BL56: OUT | BM56: OUT | BN56: OUT | BO56: OUT | BP56: OUT | BV56: 1000x1000 | BW56: 1 | BX56: 1000x1000
V57: Coude 90° r/D=1 | W57: - | X57: =X21 -> 0.25 | Y57: =Y21 -> 0.26 | Z57: =Z21 -> 0.26 | AA57: 0.27 | AB57: 0.23 | AC57: 0.23 | AD57: 0.21 | AE57: 0.25 | AF57: 0.26 | AG57: 0.23 | AH57: 0.27 | AI57: 0.24 | AJ57: 0.27 | AK57: 0.21 | AL57: 0.25 | AM57: 0.22 | AN57: 0.26 | AO57: 0.21 | AP57: 0.26 | AQ57: 0.24 | AR57: 0.27 | AS57: 0.25 | AT57: 0.23 | AU57: 0.26 | AV57: 0.24 | AW57: 0.27 | AX57: 0.21 | AY57: 0.25 | AZ57: 0.27 | BA57: 0.26 | BB57: 0.23 | BC57: 0.27 | BD57: 0.24 | BE57: 0.21 | BF57: 0.25 | BG57: 0.22 | BH57: 0.26 | BI57: 0.21 | BJ57: 0.24 | BK57: 0.25 | BL57: 0.23 | BM57: 0.24 | BN57: 0.21 | BO57: 0.23 | BP57: 0.21
V58: Perte de pression singulière | W58: Pa | X58: =IF(X53<3300,"OUT",$E40*X57*$X$8*X52^2/2) -> OUT | Y58: =IF(Y53<3300,"OUT",$E40*Y57*$X$8*Y52^2/2) -> OUT | Z58: =IF(Z53<3300,"OUT",$E40*Z57*$X$8*Z52^2/2) -> OUT | AA58: OUT | AB58: OUT | AC58: OUT | AD58: OUT | AE58: OUT | AF58: OUT | AG58: OUT | AH58: OUT | AI58: OUT | AJ58: OUT | AK58: OUT | AL58: OUT | AM58: OUT | AN58: OUT | AO58: OUT | AP58: OUT | AQ58: OUT | AR58: OUT | AS58: OUT | AT58: OUT | AU58: OUT | AV58: OUT | AW58: OUT | AX58: OUT | AY58: OUT | AZ58: OUT | BA58: OUT | BB58: OUT | BC58: OUT | BD58: OUT | BE58: OUT | BF58: OUT | BG58: OUT | BH58: OUT | BI58: OUT | BJ58: OUT | BK58: OUT | BL58: OUT | BM58: OUT | BN58: OUT | BO58: OUT | BP58: OUT
V59: Coude 45° r/D=1 | W59: - | X59: =0.6*X57 -> 0.15 | Y59: =0.6*Y57 -> 0.156 | Z59: =0.6*Z57 -> 0.156 | AA59: 0.162 | AB59: 0.138 | AC59: 0.138 | AD59: 0.126 | AE59: 0.15 | AF59: 0.156 | AG59: 0.138 | AH59: 0.162 | AI59: 0.144 | AJ59: 0.162 | AK59: 0.126 | AL59: 0.15 | AM59: 0.132 | AN59: 0.156 | AO59: 0.126 | AP59: 0.156 | AQ59: 0.144 | AR59: 0.162 | AS59: 0.15 | AT59: 0.138 | AU59: 0.156 | AV59: 0.144 | AW59: 0.162 | AX59: 0.126 | AY59: 0.15 | AZ59: 0.162 | BA59: 0.156 | BB59: 0.138 | BC59: 0.162 | BD59: 0.144 | BE59: 0.126 | BF59: 0.15 | BG59: 0.132 | BH59: 0.156 | BI59: 0.126 | BJ59: 0.144 | BK59: 0.15 | BL59: 0.138 | BM59: 0.144 | BN59: 0.126 | BO59: 0.138 | BP59: 0.126
V60: Perte de pression singulière | W60: Pa | X60: =IF(X53<3300,"OUT",$F40*X59*$X$8*X52^2/2) -> OUT | Y60: =IF(Y53<3300,"OUT",$F40*Y59*$X$8*Y52^2/2) -> OUT | Z60: =IF(Z53<3300,"OUT",$F40*Z59*$X$8*Z52^2/2) -> OUT | AA60: OUT | AB60: OUT | AC60: OUT | AD60: OUT | AE60: OUT | AF60: OUT | AG60: OUT | AH60: OUT | AI60: OUT | AJ60: OUT | AK60: OUT | AL60: OUT | AM60: OUT | AN60: OUT | AO60: OUT | AP60: OUT | AQ60: OUT | AR60: OUT | AS60: OUT | AT60: OUT | AU60: OUT | AV60: OUT | AW60: OUT | AX60: OUT | AY60: OUT | AZ60: OUT | BA60: OUT | BB60: OUT | BC60: OUT | BD60: OUT | BE60: OUT | BF60: OUT | BG60: OUT | BH60: OUT | BI60: OUT | BJ60: OUT | BK60: OUT | BL60: OUT | BM60: OUT | BN60: OUT | BO60: OUT | BP60: OUT
V61: Entrée libre du conduit | W61: - | X61: =X25 -> 1 | Y61: =Y25 -> 1 | Z61: =Z25 -> 1 | AA61: 1 | AB61: 1 | AC61: 1 | AD61: 1 | AE61: 1 | AF61: 1 | AG61: 1 | AH61: 1 | AI61: 1 | AJ61: 1 | AK61: 1 | AL61: 1 | AM61: 1 | AN61: 1 | AO61: 1 | AP61: 1 | AQ61: 1 | AR61: 1 | AS61: 1 | AT61: 1 | AU61: 1 | AV61: 1 | AW61: 1 | AX61: 1 | AY61: 1 | AZ61: 1 | BA61: 1 | BB61: 1 | BC61: 1 | BD61: 1 | BE61: 1 | BF61: 1 | BG61: 1 | BH61: 1 | BI61: 1 | BJ61: 1 | BK61: 1 | BL61: 1 | BM61: 1 | BN61: 1 | BO61: 1 | BP61: 1
V62: Perte de pression singulière | W62: Pa | X62: =IF(X53<3300,"OUT",X61*$X$8*X52^2/2) -> OUT | Y62: =IF(Y53<3300,"OUT",Y61*$X$8*Y52^2/2) -> OUT | Z62: =IF(Z53<3300,"OUT",Z61*$X$8*Z52^2/2) -> OUT | AA62: =IF(AA53<3300,"OUT",AA61*$X$8*AA52^2/2) -> OUT | AB62: =IF(AB53<3300,"OUT",AB61*$X$8*AB52^2/2) -> OUT | AC62: =IF(AC53<3300,"OUT",AC61*$X$8*AC52^2/2) -> OUT | AD62: =IF(AD53<3300,"OUT",AD61*$X$8*AD52^2/2) -> OUT | AE62: =IF(AE53<3300,"OUT",AE61*$X$8*AE52^2/2) -> OUT | AF62: =IF(AF53<3300,"OUT",AF61*$X$8*AF52^2/2) -> OUT | AG62: =IF(AG53<3300,"OUT",AG61*$X$8*AG52^2/2) -> OUT | AH62: =IF(AH53<3300,"OUT",AH61*$X$8*AH52^2/2) -> OUT | AI62: =IF(AI53<3300,"OUT",AI61*$X$8*AI52^2/2) -> OUT | AJ62: =IF(AJ53<3300,"OUT",AJ61*$X$8*AJ52^2/2) -> OUT | AK62: =IF(AK53<3300,"OUT",AK61*$X$8*AK52^2/2) -> OUT | AL62: =IF(AL53<3300,"OUT",AL61*$X$8*AL52^2/2) -> OUT | AM62: =IF(AM53<3300,"OUT",AM61*$X$8*AM52^2/2) -> OUT | AN62: =IF(AN53<3300,"OUT",AN61*$X$8*AN52^2/2) -> OUT | AO62: =IF(AO53<3300,"OUT",AO61*$X$8*AO52^2/2) -> OUT | AP62: =IF(AP53<3300,"OUT",AP61*$X$8*AP52^2/2) -> OUT | AQ62: =IF(AQ53<3300,"OUT",AQ61*$X$8*AQ52^2/2) -> OUT | AR62: =IF(AR53<3300,"OUT",AR61*$X$8*AR52^2/2) -> OUT | AS62: =IF(AS53<3300,"OUT",AS61*$X$8*AS52^2/2) -> OUT | AT62: =IF(AT53<3300,"OUT",AT61*$X$8*AT52^2/2) -> OUT | AU62: =IF(AU53<3300,"OUT",AU61*$X$8*AU52^2/2) -> OUT | AV62: =IF(AV53<3300,"OUT",AV61*$X$8*AV52^2/2) -> OUT | AW62: =IF(AW53<3300,"OUT",AW61*$X$8*AW52^2/2) -> OUT | AX62: =IF(AX53<3300,"OUT",AX61*$X$8*AX52^2/2) -> OUT | AY62: =IF(AY53<3300,"OUT",AY61*$X$8*AY52^2/2) -> OUT | AZ62: =IF(AZ53<3300,"OUT",AZ61*$X$8*AZ52^2/2) -> OUT | BA62: =IF(BA53<3300,"OUT",BA61*$X$8*BA52^2/2) -> OUT | BB62: =IF(BB53<3300,"OUT",BB61*$X$8*BB52^2/2) -> OUT | BC62: =IF(BC53<3300,"OUT",BC61*$X$8*BC52^2/2) -> OUT | BD62: =IF(BD53<3300,"OUT",BD61*$X$8*BD52^2/2) -> OUT | BE62: =IF(BE53<3300,"OUT",BE61*$X$8*BE52^2/2) -> OUT | BF62: =IF(BF53<3300,"OUT",BF61*$X$8*BF52^2/2) -> OUT | BG62: =IF(BG53<3300,"OUT",BG61*$X$8*BG52^2/2) -> OUT | BH62: =IF(BH53<3300,"OUT",BH61*$X$8*BH52^2/2) -> OUT | BI62: =IF(BI53<3300,"OUT",BI61*$X$8*BI52^2/2) -> OUT | BJ62: =IF(BJ53<3300,"OUT",BJ61*$X$8*BJ52^2/2) -> OUT | BK62: =IF(BK53<3300,"OUT",BK61*$X$8*BK52^2/2) -> OUT | BL62: =IF(BL53<3300,"OUT",BL61*$X$8*BL52^2/2) -> OUT | BM62: =IF(BM53<3300,"OUT",BM61*$X$8*BM52^2/2) -> OUT | BN62: =IF(BN53<3300,"OUT",BN61*$X$8*BN52^2/2) -> OUT | BO62: =IF(BO53<3300,"OUT",BO61*$X$8*BO52^2/2) -> OUT | BP62: =IF(BP53<3300,"OUT",BP61*$X$8*BP52^2/2) -> OUT
V63: Perte de pression partielle | W63: Pa | X63: =IF(OR($D40="",$D40=0),0,IF(X53<3300,"OUT",X56+X58+X60+X62)) -> 0 | Y63: =IF(OR($D40="",$D40=0),0,IF(Y53<3300,"OUT",Y56+Y58+Y60+Y62)) -> 0 | Z63: =IF(OR($D40="",$D40=0),0,IF(Z53<3300,"OUT",Z56+Z58+Z60+Z62)) -> 0 | AA63: 0 | AB63: 0 | AC63: 0 | AD63: 0 | AE63: 0 | AF63: 0 | AG63: 0 | AH63: 0 | AI63: 0 | AJ63: 0 | AK63: 0 | AL63: 0 | AM63: 0 | AN63: 0 | AO63: 0 | AP63: 0 | AQ63: 0 | AR63: 0 | AS63: 0 | AT63: 0 | AU63: 0 | AV63: 0 | AW63: 0 | AX63: 0 | AY63: 0 | AZ63: 0 | BA63: 0 | BB63: 0 | BC63: 0 | BD63: 0 | BE63: 0 | BF63: 0 | BG63: 0 | BH63: 0 | BI63: 0 | BJ63: 0 | BK63: 0 | BL63: 0 | BM63: 0 | BN63: 0 | BO63: 0 | BP63: 0
V64: Vitesse réelle | W64: m/s | X64: =$C40/(0.2*0.1)/3600 -> 0 | Y64: =$C40/(0.25*0.1)/3600 -> 0 | Z64: =$C40/(0.3*0.1)/3600 -> 0 | AA64: =$C40/(0.4*0.1)/3600 -> 0 | AB64: =$C40/(0.2*0.15)/3600 -> 0 | AC64: =$C40/(0.25*0.15)/3600 -> 0 | AD64: =$C40/(0.2*0.2)/3600 -> 0 | AE64: =$C40/(0.3*0.15)/3600 -> 0 | AF64: =$C40/(0.4*0.15)/3600 -> 0 | AG64: =$C40/(0.25*0.2)/3600 -> 0 | AH64: =$C40/(0.5*0.15)/3600 -> 0 | AI64: =$C40/(0.3*0.2)/3600 -> 0 | AJ64: =$C40/(0.6*0.15)/3600 -> 0 | AK64: =$C40/(0.25*0.25)/3600 -> 0 | AL64: =$C40/(0.4*0.2)/3600 -> 0 | AM64: =$C40/(0.3*0.25)/3600 -> 0 | AN64: =$C40/(0.5*0.2)/3600 -> 0 | AO64: =$C40/(0.3*0.3)/3600 -> 0 | AP64: =$C40/(0.6*0.2)/3600 -> 0 | AQ64: =$C40/(0.4*0.25)/3600 -> 0 | AR64: =$C40/(0.8*0.2)/3600 -> 0 | AS64: =$C40/(0.5*0.25)/3600 -> 0 | AT64: =$C40/(0.4*0.3)/3600 -> 0 | AU64: =$C40/(0.6*0.25)/3600 -> 0 | AV64: =$C40/(0.5*0.3)/3600 -> 0 | AW64: =$C40/(0.8*0.25)/3600 -> 0 | AX64: =$C40/(0.4*0.4)/3600 -> 0 | AY64: =$C40/(0.6*0.3)/3600 -> 0 | AZ64: =$C40/(1*0.25)/3600 -> 0 | BA64: =$C40/(0.8*0.3)/3600 -> 0 | BB64: =$C40/(0.5*0.4)/3600 -> 0 | BC64: =$C40/(1*0.3)/3600 -> 0 | BD64: =$C40/(0.6*0.4)/3600 -> 0 | BE64: =$C40/(0.5*0.5)/3600 -> 0 | BF64: =$C40/(0.8*0.4)/3600 -> 0 | BG64: =$C40/(0.6*0.5)/3600 -> 0 | BH64: =$C40/(1*0.4)/3600 -> 0 | BI64: =$C40/(0.6*0.6)/3600 -> 0 | BJ64: =$C40/(0.8*0.5)/3600 -> 0 | BK64: =$C40/(1*0.5)/3600 -> 0 | BL64: =$C40/(0.8*0.6)/3600 -> 0 | BM64: =$C40/(1*0.6)/3600 -> 0 | BN64: =$C40/(0.8*0.8)/3600 -> 0 | BO64: =$C40/(1*0.8)/3600 -> 0 | BP64: =$C40/(1*1)/3600 -> 0

Sheet Ducts Round
B4: =Langage!A68 -> Conduits de ventilation - Circulaires - Acier galvanisé à joint spiral
B6: =Langage!A36 -> Air comburant | V6: Critère d'acceptation | W6: Pa | X6: 3
C8: =Langage!A43 -> Débit | D8: =Langage!A69 -> Longueur droite | E8: =Langage!A70 -> Coude 90° | F8: =Langage!A71 -> Coude 45° | G8: =Langage!A74 -> Diamètre | H8: =Langage!A73 -> Options | I8: =Langage!A94 -> Minimum | J8: =Langage!A72 -> Perte de pression | M8: q/Dp | N8: q/Dp | V8: Masse volumique air 20°C | W8: kg/m³ | X8: 1.204
C9: m³/h | D9: m | E9: # | F9: # | G9: mm | I9: mm | J9: Pa | M9: CE | N9: CD | V9: Viscosité cinématique air 20°C | W9: m²/s | X9: =0.000015 -> 1.5e-05
I10: =IF(C10="","",HLOOKUP("OK",X12:AQ27,2,FALSE)) ->  | J10: =IF(C10="","",HLOOKUP("OK",X12:AQ27,16,FALSE)) ->  | M10: Kin | N10: Kout | V10: Rugosité absolue | W10: m | X10: =0.00009 -> 9e-05 | AA10: Acier à joint spiral
I11: =IF(C10="","",MIN(IF(X13:AQ13>I10,X13:AQ13))) ->  | J11: =IF(C10="","",HLOOKUP(I11,X13:AQ27,15,FALSE)) -> 
C12: =Langage!A75 -> Bouche de prise d'air | D12: =Langage!A82 -> Données | E12: =IF(D15="","",VLOOKUP(D15,N14:S16,2,FALSE)) ->  | F12: =IF(D15="","",VLOOKUP(D15,N14:S16,4,FALSE)) ->  | I12: =IF(I11=0,0,IF(C10="","",MIN(IF(X13:AQ13>I11,X13:AQ13)))) ->  | J12: =IF(C10="","",HLOOKUP(I12,X13:AQ27,15,FALSE)) ->  | V12: Air comburant | X12: =IF(OR(X27="OUT",X27>$X$6),"OUT","OK") -> OK | Y12: =IF(OR(Y27="OUT",Y27>$X$6),"OUT","OK") -> OK | Z12: OK | AA12: OK | AB12: OK | AC12: OK | AD12: OK | AE12: OK | AF12: OK | AG12: OK | AH12: OK | AI12: OK | AJ12: OK | AK12: OK | AL12: OK | AM12: OK | AN12: OK | AO12: OK | AP12: OK | AQ12: OK
S13: Perte de pression | T13: Vitesse | V13: Diamètres possibles | W13: mm | X13: 100 | Y13: 125 | Z13: 150 | AA13: 160 | AB13: 200 | AC13: 250 | AD13: 300 | AE13: 315 | AF13: 355 | AG13: 400 | AH13: 450 | AI13: 500 | AJ13: 560 | AK13: 630 | AL13: 710 | AM13: 800 | AN13: 900 | AO13: 1000 | AP13: 1120 | AQ13: 1250
E14: =IF(D15="","",VLOOKUP(D15,N14:S16,3,FALSE)) ->  | F14: =IF(D15="","",VLOOKUP(D15,N14:S16,5,FALSE)) ->  | I14: =Langage!A$96 -> Conduit | J14: =IF(OR(S19=0,S19=""),"",IF(S19="OUT","OUT",S19)) ->  | N14: Kin | O14: =Langage!A$77 -> Facteur K (aspiration) | P14: - | S14: =IF(D15<>N14,"",E15*X8*T14^2/2) ->  | T14: =IF(G10="","",HLOOKUP(G10,X13:AQ27,4,FALSE)) ->  | V14: Diamètre | W14: mm | X14: =X13/1000 -> 0.1 | Y14: 0.125 | Z14: =Z13/1000 -> 0.15 | AA14: 0.16 | AB14: 0.2 | AC14: 0.25 | AD14: 0.3 | AE14: 0.315 | AF14: 0.355 | AG14: 0.4 | AH14: 0.45 | AI14: 0.5 | AJ14: 0.56 | AK14: 0.63 | AL14: 0.71 | AM14: 0.8 | AN14: 0.9 | AO14: 1 | AP14: 1.12 | AQ14: 1.25
I15: =Langage!A$97 -> Bouche | J15: =IF(D15="","",VLOOKUP(D15,N14:S16,6,FALSE)) ->  | N15: q/Dp | O15: =Langage!A$83 -> Différence de pression | P15: Pa | Q15: =Langage!$A$43 -> Débit | R15: m³/h | S15: =IF(D15<>N15,"",(C10/F15)^2*E15) ->  | V15: Section | W15: m² | X15: =PI()*(X14)^2/4 -> 0.007853981634 | Y15: 0.0122718463 | Z15: =PI()*(Z14)^2/4 -> 0.01767145868 | AA15: 0.02010619298 | AB15: 0.03141592654 | AC15: 0.04908738521 | AD15: 0.07068583471 | AE15: 0.07793113276 | AF15: 0.09897980354 | AG15: 0.1256637061 | AH15: 0.1590431281 | AI15: 0.1963495408 | AJ15: 0.246300864 | AK15: 0.3117245311 | AL15: 0.3959192142 | AM15: 0.5026548246 | AN15: 0.6361725124 | AO15: 0.7853981634 | AP15: 0.9852034562 | AQ15: 1.22718463
N16: CE | O16: =Langage!A$80 -> Coefficient de perte d'entrée | P16: - | S16: =IF(D15<>N16,"",1/E15^2*X8*T14^2/2) ->  | T16: =IF(G10="","",HLOOKUP(G10,X13:AQ27,4,FALSE)) ->  | V16: Vitesse | W16: m/s | X16: =$C10/X15/3600 -> 0 | Y16: 0 | Z16: =$C10/Z15/3600 -> 0 | AA16: 0 | AB16: 0 | AC16: 0 | AD16: 0 | AE16: 0 | AF16: 0 | AG16: 0 | AH16: 0 | AI16: 0 | AJ16: 0 | AK16: 0 | AL16: 0 | AM16: 0 | AN16: 0 | AO16: 0 | AP16: 0 | AQ16: 0
I17: =Langage!A$84 -> Cumulée | J17: =IF(OR(S19=0,S19="",J15=0,J15=""),"",IF(S19="OUT","OUT",S19+J15)) ->  | V17: Nombre de Reynolds | W17: - | X17: =X16*X14/$X$9 -> 0 | Y17: =Y16*Y14/$X$9 -> 0 | Z17: =Z16*Z14/$X$9 -> 0 | AA17: 0 | AB17: 0 | AC17: 0 | AD17: 0 | AE17: 0 | AF17: 0 | AG17: 0 | AH17: 0 | AI17: 0 | AJ17: 0 | AK17: 0 | AL17: 0 | AM17: 0 | AN17: 0 | AO17: 0 | AP17: 0 | AQ17: 0
S18: Perte de pression conduit | V18: Coefficient de frottement | W18: - | X18: =IF(X17<3300,"OUT",0.25/(LOG($X$10/X14/3.7+5.74/X17^0.9))^2) -> OUT | Y18: =IF(Y17<3300,"OUT",0.25/(LOG($X$10/Y14/3.7+5.74/Y17^0.9))^2) -> OUT | Z18: =IF(Z17<3300,"OUT",0.25/(LOG($X$10/Z14/3.7+5.74/Z17^0.9))^2) -> OUT | AA18: OUT | AB18: OUT | AC18: OUT | AD18: OUT | AE18: OUT | AF18: OUT | AG18: OUT | AH18: OUT | AI18: OUT | AJ18: OUT | AK18: OUT | AL18: OUT | AM18: OUT | AN18: OUT | AO18: OUT | AP18: OUT | AQ18: OUT
J19: =Langage!$A$93 -> Max. 3.0 Pa | S19: =IF(G10="","",HLOOKUP(G10,X13:AQ27,15,FALSE)) ->  | V19: Perte de pression linéique | W19: Pa/m | X19: =IF(X18="OUT","OUT",X18/X14*$X$8/2*X16^2) -> OUT | Y19: =IF(Y18="OUT","OUT",Y18/Y14*$X$8/2*Y16^2) -> OUT | Z19: =IF(Z18="OUT","OUT",Z18/Z14*$X$8/2*Z16^2) -> OUT | AA19: OUT | AB19: OUT | AC19: OUT | AD19: OUT | AE19: OUT | AF19: OUT | AG19: OUT | AH19: OUT | AI19: OUT | AJ19: OUT | AK19: OUT | AL19: OUT | AM19: OUT | AN19: OUT | AO19: OUT | AP19: OUT | AQ19: OUT
V20: Perte de pression linéaire | W20: Pa | X20: =IF(X19="OUT","OUT",X19*$D10) -> OUT | Y20: =IF(Y19="OUT","OUT",Y19*$D10) -> OUT | Z20: =IF(Z19="OUT","OUT",Z19*$D10) -> OUT | AA20: OUT | AB20: OUT | AC20: OUT | AD20: OUT | AE20: OUT | AF20: OUT | AG20: OUT | AH20: OUT | AI20: OUT | AJ20: OUT | AK20: OUT | AL20: OUT | AM20: OUT | AN20: OUT | AO20: OUT | AP20: OUT | AQ20: OUT
B21: =Langage!A$37 -> Amenée d’air | V21: Coude 90° r/D=1 | W21: - | X21: 0.37 | Y21: 0.3 | Z21: 0.25 | AA21: 0.25 | AB21: 0.24 | AC21: 0.24 | AD21: 0.29 | AE21: 0.28 | AF21: 0.27 | AG21: 0.25 | AH21: 0.24 | AI21: 0.23 | AJ21: 0.21 | AK21: 0.2 | AL21: 0.19 | AM21: 0.18 | AN21: 0.17 | AO21: 0.16 | AP21: 0.16 | AQ21: 0.15
V22: Perte de pression singulière | W22: Pa | X22: =IF(X17<3300,"OUT",$E10*X21*$X$8*X16^2/2) -> OUT | Y22: OUT | Z22: OUT | AA22: OUT | AB22: OUT | AC22: OUT | AD22: OUT | AE22: OUT | AF22: OUT | AG22: OUT | AH22: OUT | AI22: OUT | AJ22: OUT | AK22: OUT | AL22: OUT | AM22: OUT | AN22: OUT | AO22: OUT | AP22: OUT | AQ22: OUT
C23: =Langage!A$43 -> Débit | D23: =Langage!A$69 -> Longueur droite | E23: =Langage!A$70 -> Coude 90° | F23: =Langage!A$71 -> Coude 45° | G23: =Langage!A$74 -> Diamètre | H23: =Langage!A$73 -> Options | I23: =Langage!A$94 -> Minimum | J23: =Langage!A$72 -> Perte de pression | V23: Coude 45° r/D=1 | W23: - | X23: 0.17 | Y23: 0.14 | Z23: 0.11 | AA23: 0.11 | AB23: 0.11 | AC23: 0.11 | AD23: 0.11 | AE23: 0.11 | AF23: 0.11 | AG23: 0.1 | AH23: 0.09 | AI23: 0.08 | AJ23: 0.08 | AK23: 0.08 | AL23: 0.07 | AM23: 0.07 | AN23: 0.07 | AO23: 0.07 | AP23: 0.07 | AQ23: 0.07
C24: m³/h | D24: m | E24: # | F24: # | G24: mm | I24: mm | J24: Pa | V24: Perte de pression singulière | W24: Pa | X24: =IF(X17<3300,"OUT",$F10*X23*$X$8*X16^2/2) -> OUT | Y24: OUT | Z24: OUT | AA24: OUT | AB24: OUT | AC24: OUT | AD24: OUT | AE24: OUT | AF24: OUT | AG24: OUT | AH24: OUT | AI24: OUT | AJ24: OUT | AK24: OUT | AL24: OUT | AM24: OUT | AN24: OUT | AO24: OUT | AP24: OUT | AQ24: OUT
I25: =IF(C25="","",HLOOKUP("OK",X30:AQ45,2,FALSE)) ->  | J25: =IF(C25="","",HLOOKUP("OK",X30:AQ45,16,FALSE)) ->  | V25: Sortie libre du conduit | W25: - | X25: 1 | Y25: 1 | Z25: 1 | AA25: 1 | AB25: 1 | AC25: 1 | AD25: 1 | AE25: 1 | AF25: 1 | AG25: 1 | AH25: 1 | AI25: 1 | AJ25: 1 | AK25: 1 | AL25: 1 | AM25: 1 | AN25: 1 | AO25: 1 | AP25: 1 | AQ25: 1
I26: =IF(C25="","",MIN(IF(X31:AQ31>I25,X31:AQ31))) ->  | J26: =IF(C25="","",HLOOKUP(I26,X31:AQ45,15,FALSE)) ->  | V26: Perte de pression singulière | W26: Pa | X26: =IF(X17<3300,"OUT",X25*$X$8*X16^2/2) -> OUT | Y26: =IF(Y17<3300,"OUT",Y25*$X$8*Y16^2/2) -> OUT | Z26: =IF(Z17<3300,"OUT",Z25*$X$8*Z16^2/2) -> OUT | AA26: OUT | AB26: OUT | AC26: OUT | AD26: OUT | AE26: OUT | AF26: OUT | AG26: OUT | AH26: OUT | AI26: OUT | AJ26: OUT | AK26: OUT | AL26: OUT | AM26: OUT | AN26: OUT | AO26: OUT | AP26: OUT | AQ26: OUT
C27: =Langage!A$75 -> Bouche de prise d'air | D27: =Langage!A$82 -> Données | E27: =IF(D30="","",VLOOKUP(D30,N29:S31,2,FALSE)) ->  | F27: =IF(D30="","",VLOOKUP(D30,N29:S31,4,FALSE)) ->  | I27: =IF(I26=0,0,IF(C25="","",MIN(IF(X31:AQ31>I26,X31:AQ31)))) ->  | J27: =IF(C25="","",HLOOKUP(I27,X31:AQ45,15,FALSE)) ->  | V27: Perte de pression partielle | W27: Pa | X27: =IF(OR($D10="",$D10=0),0,IF(X17<3300,"OUT",X20+X22+X24+X26)) -> 0 | Y27: =IF(OR($D10="",$D10=0),0,IF(Y17<3300,"OUT",Y20+Y22+Y24+Y26)) -> 0 | Z27: =IF(OR($D10="",$D10=0),0,IF(Z17<3300,"OUT",Z20+Z22+Z24+Z26)) -> 0 | AA27: 0 | AB27: 0 | AC27: 0 | AD27: 0 | AE27: 0 | AF27: 0 | AG27: 0 | AH27: 0 | AI27: 0 | AJ27: 0 | AK27: 0 | AL27: 0 | AM27: 0 | AN27: 0 | AO27: 0 | AP27: 0 | AQ27: 0
S28: Perte de pression | T28: Vitesse
E29: =IF(D30="","",VLOOKUP(D30,N29:S31,3,FALSE)) ->  | F29: =IF(D30="","",VLOOKUP(D30,N29:S31,5,FALSE)) ->  | I29: =Langage!A$96 -> Conduit | J29: =IF(OR(S34=0,S34=""),"",IF(S34="OUT","OUT",S34)) ->  | N29: Kin | O29: =Langage!A$77 -> Facteur K (aspiration) | P29: - | S29: =IF(D30<>N29,"",E30*$X$8*T29^2/2) ->  | T29: =IF(G25="","",HLOOKUP(G25,X31:AQ45,4,FALSE)) -> 
I30: =Langage!A$97 -> Bouche | J30: =IF(D30="","",VLOOKUP(D30,N29:S31,6,FALSE)) ->  | N30: q/Dp | O30: =Langage!A$83 -> Différence de pression | P30: Pa | Q30: =Langage!$A$43 -> Débit | R30: m³/h | S30: =IF(D30<>N30,"",(C25/F30)^2*E30) ->  | V30: Amenée d'air | X30: =IF(OR(X45="OUT",X45>$X$6),"OUT","OK") -> OK | Y30: =IF(OR(Y45="OUT",Y45>$X$6),"OUT","OK") -> OK | Z30: OK | AA30: OK | AB30: OK | AC30: OK | AD30: OK | AE30: OK | AF30: OK | AG30: OK | AH30: OK | AI30: OK | AJ30: OK | AK30: OK | AL30: OK | AM30: OK | AN30: OK | AO30: OK | AP30: OK | AQ30: OK
N31: CE | O31: =Langage!A$80 -> Coefficient de perte d'entrée | P31: - | S31: =IF(D30<>N31,"",1/E30^2*$X$8*T29^2/2) ->  | T31: =IF(G25="","",HLOOKUP(G25,X31:AQ45,4,FALSE)) ->  | V31: Diamètres possibles | W31: mm | X31: =X13 -> 100 | Y31: =Y13 -> 125 | Z31: 150 | AA31: 160 | AB31: 200 | AC31: 250 | AD31: 300 | AE31: 315 | AF31: 355 | AG31: 400 | AH31: 450 | AI31: 500 | AJ31: 560 | AK31: 630 | AL31: 710 | AM31: 800 | AN31: 900 | AO31: 1000 | AP31: 1120 | AQ31: 1250
I32: =Langage!A$84 -> Cumulée | J32: =IF(OR(S34=0,S34="",J30=0,J30=""),"",IF(S34="OUT","OUT",S34+J30)) ->  | V32: Diamètre | W32: mm | X32: =X31/1000 -> 0.1 | Y32: 0.125 | Z32: 0.15 | AA32: 0.16 | AB32: 0.2 | AC32: 0.25 | AD32: 0.3 | AE32: 0.315 | AF32: 0.355 | AG32: 0.4 | AH32: 0.45 | AI32: 0.5 | AJ32: 0.56 | AK32: 0.63 | AL32: 0.71 | AM32: 0.8 | AN32: 0.9 | AO32: 1 | AP32: 1.12 | AQ32: 1.25
S33: Perte de pression conduit | V33: Section | W33: m² | X33: =PI()*(X32)^2/4 -> 0.007853981634 | Y33: =PI()*(Y32)^2/4 -> 0.0122718463 | Z33: 0.01767145868 | AA33: 0.02010619298 | AB33: 0.03141592654 | AC33: 0.04908738521 | AD33: 0.07068583471 | AE33: 0.07793113276 | AF33: 0.09897980354 | AG33: 0.1256637061 | AH33: 0.1590431281 | AI33: 0.1963495408 | AJ33: 0.246300864 | AK33: 0.3117245311 | AL33: 0.3959192142 | AM33: 0.5026548246 | AN33: 0.6361725124 | AO33: 0.7853981634 | AP33: 0.9852034562 | AQ33: 1.22718463
J34: =Langage!$A$93 -> Max. 3.0 Pa | S34: =IF(G25="","",HLOOKUP(G25,X31:AQ45,15,FALSE)) ->  | V34: Vitesse | W34: m/s | X34: =$C25/X33/3600 -> 0 | Y34: =$C25/Y33/3600 -> 0 | Z34: 0 | AA34: 0 | AB34: 0 | AC34: 0 | AD34: 0 | AE34: 0 | AF34: 0 | AG34: 0 | AH34: 0 | AI34: 0 | AJ34: 0 | AK34: 0 | AL34: 0 | AM34: 0 | AN34: 0 | AO34: 0 | AP34: 0 | AQ34: 0
V35: Nombre de Reynolds | W35: - | X35: =X34*X32/$X$9 -> 0 | Y35: =Y34*Y32/$X$9 -> 0 | Z35: 0 | AA35: 0 | AB35: 0 | AC35: 0 | AD35: 0 | AE35: 0 | AF35: 0 | AG35: 0 | AH35: 0 | AI35: 0 | AJ35: 0 | AK35: 0 | AL35: 0 | AM35: 0 | AN35: 0 | AO35: 0 | AP35: 0 | AQ35: 0
B36: =Langage!A$38 -> Evacuation d’air | V36: Coefficient de frottement | W36: - | X36: =IF(X35<3300,"OUT",0.25/(LOG($X$10/X32/3.7+5.74/X35^0.9))^2) -> OUT | Y36: =IF(Y35<3300,"OUT",0.25/(LOG($X$10/Y32/3.7+5.74/Y35^0.9))^2) -> OUT | Z36: OUT | AA36: OUT | AB36: OUT | AC36: OUT | AD36: OUT | AE36: OUT | AF36: OUT | AG36: OUT | AH36: OUT | AI36: OUT | AJ36: OUT | AK36: OUT | AL36: OUT | AM36: OUT | AN36: OUT | AO36: OUT | AP36: OUT | AQ36: OUT
V37: Perte de pression linéique | W37: Pa/m | X37: =IF(X36="OUT","OUT",X36/X32*$X$8/2*X34^2) -> OUT | Y37: =IF(Y36="OUT","OUT",Y36/Y32*$X$8/2*Y34^2) -> OUT | Z37: OUT | AA37: OUT | AB37: OUT | AC37: OUT | AD37: OUT | AE37: OUT | AF37: OUT | AG37: OUT | AH37: OUT | AI37: OUT | AJ37: OUT | AK37: OUT | AL37: OUT | AM37: OUT | AN37: OUT | AO37: OUT | AP37: OUT | AQ37: OUT
C38: =Langage!A$43 -> Débit | D38: =Langage!A$69 -> Longueur droite | E38: =Langage!A$70 -> Coude 90° | F38: =Langage!A$71 -> Coude 45° | G38: =Langage!A$74 -> Diamètre | H38: =Langage!A$73 -> Options | I38: =Langage!A$94 -> Minimum | J38: =Langage!A$72 -> Perte de pression | V38: Perte de pression linéaire | W38: Pa | X38: =IF(X37="OUT","OUT",X37*$D25) -> OUT | Y38: =IF(Y37="OUT","OUT",Y37*$D25) -> OUT | Z38: OUT | AA38: OUT | AB38: OUT | AC38: OUT | AD38: OUT | AE38: OUT | AF38: OUT | AG38: OUT | AH38: OUT | AI38: OUT | AJ38: OUT | AK38: OUT | AL38: OUT | AM38: OUT | AN38: OUT | AO38: OUT | AP38: OUT | AQ38: OUT
C39: m³/h | D39: m | E39: # | F39: # | G39: mm | I39: mm | J39: Pa | V39: Coude 90° r/D=1 | W39: - | X39: =X21 -> 0.37 | Y39: =Y21 -> 0.3 | Z39: 0.25 | AA39: 0.25 | AB39: 0.24 | AC39: 0.24 | AD39: 0.29 | AE39: 0.28 | AF39: 0.27 | AG39: 0.25 | AH39: 0.24 | AI39: 0.23 | AJ39: 0.21 | AK39: 0.2 | AL39: 0.19 | AM39: 0.18 | AN39: 0.17 | AO39: 0.16 | AP39: 0.16 | AQ39: 0.15
I40: =IF(C40="","",HLOOKUP("OK",X48:AQ63,2,FALSE)) ->  | J40: =IF(C40="","",HLOOKUP("OK",X48:AQ63,16,FALSE)) ->  | V40: Perte de pression singulière | W40: Pa | X40: =IF(X35<3300,"OUT",$E25*X39*$X$8*X34^2/2) -> OUT | Y40: =IF(Y35<3300,"OUT",$E25*Y39*$X$8*Y34^2/2) -> OUT | Z40: OUT | AA40: OUT | AB40: OUT | AC40: OUT | AD40: OUT | AE40: OUT | AF40: OUT | AG40: OUT | AH40: OUT | AI40: OUT | AJ40: OUT | AK40: OUT | AL40: OUT | AM40: OUT | AN40: OUT | AO40: OUT | AP40: OUT | AQ40: OUT
I41: =IF(C40="","",MIN(IF(X49:AQ49>I40,X49:AQ49))) ->  | J41: =IF(C40="","",HLOOKUP(I41,X49:AQ63,15,FALSE)) ->  | V41: Coude 45° r/D=1 | W41: - | X41: =X23 -> 0.17 | Y41: =Y23 -> 0.14 | Z41: 0.11 | AA41: 0.11 | AB41: 0.11 | AC41: 0.11 | AD41: 0.11 | AE41: 0.11 | AF41: 0.11 | AG41: 0.1 | AH41: 0.09 | AI41: 0.08 | AJ41: 0.08 | AK41: 0.08 | AL41: 0.07 | AM41: 0.07 | AN41: 0.07 | AO41: 0.07 | AP41: 0.07 | AQ41: 0.07
C42: =Langage!A$76 -> Bouche de rejet d'air | D42: =Langage!A$82 -> Données | E42: =IF(D45="","",VLOOKUP(D45,N44:S46,2,FALSE)) ->  | F42: =IF(D45="","",VLOOKUP(D45,N44:S46,4,FALSE)) ->  | I42: =IF(I41=0,0,IF(C40="","",MIN(IF(X49:AQ49>I41,X49:AQ49)))) ->  | J42: =IF(C40="","",HLOOKUP(I42,X49:AQ63,15,FALSE)) ->  | V42: Perte de pression singulière | W42: Pa | X42: =IF(X35<3300,"OUT",$F25*X41*$X$8*X34^2/2) -> OUT | Y42: =IF(Y35<3300,"OUT",$F25*Y41*$X$8*Y34^2/2) -> OUT | Z42: OUT | AA42: OUT | AB42: OUT | AC42: OUT | AD42: OUT | AE42: OUT | AF42: OUT | AG42: OUT | AH42: OUT | AI42: OUT | AJ42: OUT | AK42: OUT | AL42: OUT | AM42: OUT | AN42: OUT | AO42: OUT | AP42: OUT | AQ42: OUT
S43: Perte de pression | T43: Vitesse | V43: Sortie libre du conduit | W43: - | X43: =X25 -> 1 | Y43: =Y25 -> 1 | Z43: 1 | AA43: 1 | AB43: 1 | AC43: 1 | AD43: 1 | AE43: 1 | AF43: 1 | AG43: 1 | AH43: 1 | AI43: 1 | AJ43: 1 | AK43: 1 | AL43: 1 | AM43: 1 | AN43: 1 | AO43: 1 | AP43: 1 | AQ43: 1
E44: =IF(D45="","",VLOOKUP(D45,N44:S46,3,FALSE)) ->  | F44: =IF(D45="","",VLOOKUP(D45,N44:S46,5,FALSE)) ->  | I44: =Langage!A$96 -> Conduit | J44: =IF(OR(S49=0,S49=""),"",IF(S49="OUT","OUT",S49)) ->  | N44: Kout | O44: =Langage!A$78 -> Facteur K (extraction) | P44: - | S44: =IF(D45<>N44,"",E45*$X$8*T44^2/2) ->  | T44: =IF(G40="","",HLOOKUP(G40,X49:AQ63,4,FALSE)) ->  | V44: Perte de pression singulière | W44: Pa | X44: =IF(X35<3300,"OUT",X43*$X$8*X34^2/2) -> OUT | Y44: =IF(Y35<3300,"OUT",Y43*$X$8*Y34^2/2) -> OUT | Z44: OUT | AA44: OUT | AB44: OUT | AC44: OUT | AD44: OUT | AE44: OUT | AF44: OUT | AG44: OUT | AH44: OUT | AI44: OUT | AJ44: OUT | AK44: OUT | AL44: OUT | AM44: OUT | AN44: OUT | AO44: OUT | AP44: OUT | AQ44: OUT
I45: =Langage!A$97 -> Bouche | J45: =IF(D45="","",VLOOKUP(D45,N44:S46,6,FALSE)) ->  | N45: q/Dp | O45: =Langage!A$83 -> Différence de pression | P45: Pa | Q45: =Langage!$A$43 -> Débit | R45: m³/h | S45: =IF(D45<>N45,"",(C40/F45)^2*E45) ->  | V45: Perte de pression partielle | W45: Pa | X45: =IF(OR($D25="",$D25=0),0,IF(X35<3300,"OUT",X38+X40+X42+X44)) -> 0 | Y45: =IF(OR($D25="",$D25=0),0,IF(Y35<3300,"OUT",Y38+Y40+Y42+Y44)) -> 0 | Z45: 0 | AA45: 0 | AB45: 0 | AC45: 0 | AD45: 0 | AE45: 0 | AF45: 0 | AG45: 0 | AH45: 0 | AI45: 0 | AJ45: 0 | AK45: 0 | AL45: 0 | AM45: 0 | AN45: 0 | AO45: 0 | AP45: 0 | AQ45: 0
N46: CD | O46: =Langage!A$81 -> Coefficient de perte de décharge | P46: - | S46: =IF(D45<>N46,"",1/E45^2*$X$8*T44^2/2) ->  | T46: =IF(G40="","",HLOOKUP(G40,X49:AQ63,4,FALSE)) -> 
I47: =Langage!A$84 -> Cumulée | J47: =IF(OR(S49=0,S49="",J45=0,J45=""),"",IF(S49="OUT","OUT",S49+J45)) -> 
S48: Perte de pression conduit | V48: Evacuation d'air | X48: =IF(OR(X63="OUT",X63>$X$6),"OUT","OK") -> OK | Y48: =IF(OR(Y63="OUT",Y63>$X$6),"OUT","OK") -> OK | Z48: OK | AA48: OK | AB48: OK | AC48: OK | AD48: OK | AE48: OK | AF48: OK | AG48: OK | AH48: OK | AI48: OK | AJ48: OK | AK48: OK | AL48: OK | AM48: OK | AN48: OK | AO48: OK | AP48: OK | AQ48: OK
J49: =Langage!$A$93 -> Max. 3.0 Pa | S49: =IF(G40="","",HLOOKUP(G40,X49:AQ63,15,FALSE)) ->  | V49: Diamètres possibles | W49: mm | X49: =X13 -> 100 | Y49: =Y13 -> 125 | Z49: 150 | AA49: 160 | AB49: 200 | AC49: 250 | AD49: 300 | AE49: 315 | AF49: 355 | AG49: 400 | AH49: 450 | AI49: 500 | AJ49: 560 | AK49: 630 | AL49: 710 | AM49: 800 | AN49: 900 | AO49: 1000 | AP49: 1120 | AQ49: 1250
V50: Diamètre | W50: mm | X50: =X49/1000 -> 0.1 | Y50: =Y49/1000 -> 0.125 | Z50: 0.15 | AA50: 0.16 | AB50: 0.2 | AC50: 0.25 | AD50: 0.3 | AE50: 0.315 | AF50: 0.355 | AG50: 0.4 | AH50: 0.45 | AI50: 0.5 | AJ50: 0.56 | AK50: 0.63 | AL50: 0.71 | AM50: 0.8 | AN50: 0.9 | AO50: 1 | AP50: 1.12 | AQ50: 1.25
V51: Section | W51: m² | X51: =PI()*(X50)^2/4 -> 0.007853981634 | Y51: =PI()*(Y50)^2/4 -> 0.0122718463 | Z51: 0.01767145868 | AA51: 0.02010619298 | AB51: 0.03141592654 | AC51: 0.04908738521 | AD51: 0.07068583471 | AE51: 0.07793113276 | AF51: 0.09897980354 | AG51: 0.1256637061 | AH51: 0.1590431281 | AI51: 0.1963495408 | AJ51: 0.246300864 | AK51: 0.3117245311 | AL51: 0.3959192142 | AM51: 0.5026548246 | AN51: 0.6361725124 | AO51: 0.7853981634 | AP51: 0.9852034562 | AQ51: 1.22718463
V52: Vitesse | W52: m/s | X52: =$C40/X51/3600 -> 0 | Y52: =$C40/Y51/3600 -> 0 | Z52: 0 | AA52: 0 | AB52: 0 | AC52: 0 | AD52: 0 | AE52: 0 | AF52: 0 | AG52: 0 | AH52: 0 | AI52: 0 | AJ52: 0 | AK52: 0 | AL52: 0 | AM52: 0 | AN52: 0 | AO52: 0 | AP52: 0 | AQ52: 0
V53: Nombre de Reynolds | W53: - | X53: =X52*X50/$X$9 -> 0 | Y53: =Y52*Y50/$X$9 -> 0 | Z53: 0 | AA53: 0 | AB53: 0 | AC53: 0 | AD53: 0 | AE53: 0 | AF53: 0 | AG53: 0 | AH53: 0 | AI53: 0 | AJ53: 0 | AK53: 0 | AL53: 0 | AM53: 0 | AN53: 0 | AO53: 0 | AP53: 0 | AQ53: 0
V54: Coefficient de frottement | W54: - | X54: =IF(X53<3300,"OUT",0.25/(LOG($X$10/X50/3.7+5.74/X53^0.9))^2) -> OUT | Y54: =IF(Y53<3300,"OUT",0.25/(LOG($X$10/Y50/3.7+5.74/Y53^0.9))^2) -> OUT | Z54: OUT | AA54: OUT | AB54: OUT | AC54: OUT | AD54: OUT | AE54: OUT | AF54: OUT | AG54: OUT | AH54: OUT | AI54: OUT | AJ54: OUT | AK54: OUT | AL54: OUT | AM54: OUT | AN54: OUT | AO54: OUT | AP54: OUT | AQ54: OUT
V55: Perte de pression linéique | W55: Pa/m | X55: =IF(X54="OUT","OUT",X54/X50*$X$8/2*X52^2) -> OUT | Y55: =IF(Y54="OUT","OUT",Y54/Y50*$X$8/2*Y52^2) -> OUT | Z55: OUT | AA55: OUT | AB55: OUT | AC55: OUT | AD55: OUT | AE55: OUT | AF55: OUT | AG55: OUT | AH55: OUT | AI55: OUT | AJ55: OUT | AK55: OUT | AL55: OUT | AM55: OUT | AN55: OUT | AO55: OUT | AP55: OUT | AQ55: OUT
V56: Perte de pression linéaire | W56: Pa | X56: =IF(X55="OUT","OUT",X55*$D40) -> OUT | Y56: =IF(Y55="OUT","OUT",Y55*$D40) -> OUT | Z56: OUT | AA56: OUT | AB56: OUT | AC56: OUT | AD56: OUT | AE56: OUT | AF56: OUT | AG56: OUT | AH56: OUT | AI56: OUT | AJ56: OUT | AK56: OUT | AL56: OUT | AM56: OUT | AN56: OUT | AO56: OUT | AP56: OUT | AQ56: OUT
V57: Coude 90° r/D=1 | W57: - | X57: =X21 -> 0.37 | Y57: =Y21 -> 0.3 | Z57: 0.25 | AA57: 0.25 | AB57: 0.24 | AC57: 0.24 | AD57: 0.29 | AE57: 0.28 | AF57: 0.27 | AG57: 0.25 | AH57: 0.24 | AI57: 0.23 | AJ57: 0.21 | AK57: 0.2 | AL57: 0.19 | AM57: 0.18 | AN57: 0.17 | AO57: 0.16 | AP57: 0.16 | AQ57: 0.15
V58: Perte de pression singulière | W58: Pa | X58: =IF(X53<3300,"OUT",$E40*X57*$X$8*X52^2/2) -> OUT | Y58: =IF(Y53<3300,"OUT",$E40*Y57*$X$8*Y52^2/2) -> OUT | Z58: OUT | AA58: OUT | AB58: OUT | AC58: OUT | AD58: OUT | AE58: OUT | AF58: OUT | AG58: OUT | AH58: OUT | AI58: OUT | AJ58: OUT | AK58: OUT | AL58: OUT | AM58: OUT | AN58: OUT | AO58: OUT | AP58: OUT | AQ58: OUT
V59: Coude 45° r/D=1 | W59: - | X59: =X23 -> 0.17 | Y59: =Y23 -> 0.14 | Z59: 0.11 | AA59: 0.11 | AB59: 0.11 | AC59: 0.11 | AD59: 0.11 | AE59: 0.11 | AF59: 0.11 | AG59: 0.1 | AH59: 0.09 | AI59: 0.08 | AJ59: 0.08 | AK59: 0.08 | AL59: 0.07 | AM59: 0.07 | AN59: 0.07 | AO59: 0.07 | AP59: 0.07 | AQ59: 0.07
V60: Perte de pression singulière | W60: Pa | X60: =IF(X53<3300,"OUT",$F40*X59*$X$8*X52^2/2) -> OUT | Y60: =IF(Y53<3300,"OUT",$F40*Y59*$X$8*Y52^2/2) -> OUT | Z60: OUT | AA60: OUT | AB60: OUT | AC60: OUT | AD60: OUT | AE60: OUT | AF60: OUT | AG60: OUT | AH60: OUT | AI60: OUT | AJ60: OUT | AK60: OUT | AL60: OUT | AM60: OUT | AN60: OUT | AO60: OUT | AP60: OUT | AQ60: OUT
V61: Entrée libre du conduit | W61: - | X61: =X25 -> 1 | Y61: =Y25 -> 1 | Z61: 1 | AA61: 1 | AB61: 1 | AC61: 1 | AD61: 1 | AE61: 1 | AF61: 1 | AG61: 1 | AH61: 1 | AI61: 1 | AJ61: 1 | AK61: 1 | AL61: 1 | AM61: 1 | AN61: 1 | AO61: 1 | AP61: 1 | AQ61: 1
V62: Perte de pression singulière | W62: Pa | X62: =IF(X53<3300,"OUT",X61*$X$8*X52^2/2) -> OUT | Y62: =IF(Y53<3300,"OUT",Y61*$X$8*Y52^2/2) -> OUT | Z62: OUT | AA62: OUT | AB62: OUT | AC62: OUT | AD62: OUT | AE62: OUT | AF62: OUT | AG62: OUT | AH62: OUT | AI62: OUT | AJ62: OUT | AK62: OUT | AL62: OUT | AM62: OUT | AN62: OUT | AO62: OUT | AP62: OUT | AQ62: OUT
V63: Perte de pression partielle | W63: Pa | X63: =IF(OR($D40="",$D40=0),0,IF(X53<3300,"OUT",X56+X58+X60+X62)) -> 0 | Y63: =IF(OR($D40="",$D40=0),0,IF(Y53<3300,"OUT",Y56+Y58+Y60+Y62)) -> 0 | Z63: 0 | AA63: 0 | AB63: 0 | AC63: 0 | AD63: 0 | AE63: 0 | AF63: 0 | AG63: 0 | AH63: 0 | AI63: 0 | AJ63: 0 | AK63: 0 | AL63: 0 | AM63: 0 | AN63: 0 | AO63: 0 | AP63: 0 | AQ63: 0

Sheet Tab 2 (hidden)
A1: NBN B 61-001/002 - Tableau 2
A3: Code | D3: Combustible | E3: Type d'appareil de combustion | F3: Débit d'air comburant spécifique
A4: NG | B4: BWI | C4: HI | D4: Gaz naturel de type H ou L | E4: Brûleur avec coupe-tirage | F4: 2.9 | I4: Natural gas | J4: Burner with draught diverter
A5: NG | B5: BWO | C5: HI | D5: Gaz naturel de type H ou L | E5: Brûleur sans coupe-tirage | F5: 1.34 | J5: Burner without draught diverter
A6: NG | B6: ICE | C6: HI | D6: Gaz naturel de type H ou L | E6: Moteur à combustion interne | F6: 1.34 | J6: Internal combustion engine
A7: LPG | B7: BWI | C7: HI | D7: Propane / Butane | E7: Brûleur avec coupe-tirage | F7: 2.9 | I7: Liquefied Petroleum Gas
A8: LPG | B8: BWO | C8: HI | D8: Propane / Butane | E8: Brûleur sans coupe-tirage | F8: 1.34
A9: LPG | B9: ICE | C9: HI | D9: Propane / Butane | E9: Moteur à combustion interne | F9: 1.34
A10: HO | C10: HI | D10: Gasoil de chauffage | E10: Brûleur ou moteur à combustion interne | F10: 1.33 | I10: Heating oil
A11: CO | C11: HI | D11: Coke | F11: 1.71 | I11: Coke
A12: KE | C12: HI | D12: Pétrole lampant | F12: 1.41 | I12: Kerosene
A13: SC | C13: HI | D13: Charbon (anthracite) | F13: 1.67 | I13: Stone coal (anthracite)
A14: BC | C14: HI | D14: Lignite | F14: 1.72 | I14: Brown coal
A15: WL | C15: HI | D15: Bois (bûches) | F15: 2.9 | I15: Wood (logs)
A16: WP | C16: HI | D16: Bois (granulés) | F16: 2 | I16: Wood (pellets)
A17: NG | B17: BWI | C17: HS | D17: Gaz naturel de type H ou L | E17: Brûleur avec coupe-tirage | F17: 2.6
A18: NG | B18: BWO | C18: HS | D18: Gaz naturel de type H ou L | E18: Brûleur sans coupe-tirage | F18: 1.21
A19: NG | B19: ICE | C19: HS | D19: Gaz naturel de type H ou L | E19: Moteur à combustion interne | F19: 1.21
A20: LPG | B20: BWI | C20: HS | D20: Propane / Butane | E20: Brûleur avec coupe-tirage | F20: 2.6
A21: LPG | B21: BWO | C21: HS | D21: Propane / Butane | E21: Brûleur sans coupe-tirage | F21: 1.21
A22: LPG | B22: ICE | C22: HS | D22: Propane / Butane | E22: Moteur à combustion interne | F22: 1.21
A23: HO | C23: HS | D23: Gasoil de chauffage | E23: Brûleur ou moteur à combustion interne | F23: 1.24
A24: CO | C24: HS | D24: Coke | F24: 1.57
A25: KE | C25: HS | D25: Pétrole lampant | F25: 1.32
A26: SC | C26: HS | D26: Charbon (anthracite) | F26: 1.61
A27: BC | C27: HS | D27: Lignite | F27: 1.64
A28: WL | C28: HS | D28: Bois (bûches) | F28: 2.7
A29: WP | C29: HS | D29: Bois (granulés) | F29: 1.9

Sheet Langage (hidden)
A1: Choix de la langue
B2: 1 | C2: 2 | D2: 3 | E2: 4
A3: =Data!D2 -> Français | B3: Français | C3: Nederlands | D3: English | E3: Deutsch
A5: =IF(A$3=B$3,B5,IF(A$3=C$3,C5,IF(A$3=D$3,D5,E5))) -> Données techniques | B5: Données techniques | C5: Technische gegevens
A6: Total | B6: Total | C6: Totaal | D6: Total | E6: Gesamt
A7: Entité de bâtiment | B7: Entité de bâtiment | C7: Gebouwentiteit | D7: Building entity | E7: Baukörper
A8: Données relatives aux appareils de combustion | B8: Données relatives aux appareils de combustion | C8: Gegevens betreffende de verbrandingstoestellen
A9: Circuit de combustion | B9: Circuit de combustion | C9: Verbrandingskring
A10: Appareil | B10: Appareil | C10: Toestel | D10: Device
A11: Puissance nominale | B11: Puissance nominale | C11: Nominaal vermogen
A12: Surface au sol | B12: Surface au sol | C12: Vloeroppervlakte
A13: Débit de l'amenée d'air | B13: Débit de l'amenée d'air | C13: luchttoevoerdebiet
A14: Débit de l'évacuation d'air | B14: Débit de l'évacuation d'air | C14: luchtafvoerdebiet
A15: Type | B15: Type | C15: Type
A16: Nature | B16: Nature | C16: Aard
A17: Ouverture franche | B17: Ouverture franche | C17: Ongehinderde opening
A18: Choix d'un dispositif de transfert | B18: Choix d'un dispositif de transfert | C18: Keuze van een luchtrooster
A19: Dp catalogue | B19: Dp catalogue | C19: Dp catalogus
A20: Débit catalogue | B20: Débit catalogue | C20: Debiet catalogus
A21: =IF(A$3=B$3,B21,IF(A$3=C$3,C21,IF(A$3=D$3,D21,E21))) -> Dossier | B21: Dossier | C21: Dossier | D21: File | E21: Dossier
A22: Nom | B22: Nom | C22: Naam | D22: Name | E22: Name
A23: Adresse | B23: Adresse | C23: Adres | D23: Address | E23: Adresse
A24: Commune | B24: Commune | C24: Gemeente | D24: City | E24: Gemeinde
A25: Commentaire | B25: Commentaire | C25: Commentaar | D25: Comment | E25: Kommentar
A26: Date | B26: Date | C26: Datum | D26: Date | E26: Datum
A27: Références | B27: Références | C27: Referentie | D27: Reference | E27: Referenzen
A28: Données administratives | B28: Données administratives | C28: Administratieve gegevens | D28: Administrative data | E28: Verwaltungsangaben
A29: Bâtiment | B29: Bâtiment | C29: Gebouw | D29: Building | E29: Gebäude
A30: Installateur | B30: Installateur | C30: Installateur | D30: Installer | E30: Installateur
A31: Conception des chaufferies | B31: Conception des chaufferies | C31: Ontwerp van stookafdelingen | D31: Design of boiler rooms | E31: Heizungsraumgestaltung
A32: NBN B 61-001/002:2019 | B32: NBN B 61-001/002:2019 | C32: NBN B 61-001/002:2019 | D32: NBN B 61-001/002:2019 | E32: NBN B 61-001/002:2019
A33: Nouveau calcul | B33: Nouveau calcul | C33: Nieuwe berekening | D33: New calculation | E33: Neue Berechnung
A34: Ventilation du local de chauffe | B34: Ventilation du local de chauffe | C34: Ventilatie van het stooklokaal
A35: Dispositions techniques | B35: Dispositions techniques | C35: Technische bepalingen
A36: Air comburant | B36: Air comburant | C36: Verbrandingslucht
A37: Amenée d’air | B37: Amenée d’air | C37: Luchttoevoer
A38: Evacuation d’air | B38: Evacuation d’air | C38: Luchtafvoer
A39: Naturelle | B39: Naturelle | C39: Natuurlijk
A40: Mecanique | B40: Mecanique | C40: Mechanisch
A41: Dispositif de transfert | B41: Dispositif de transfert | C41: Luchtrooster
A42: Conduit | B42: Conduit | C42: Kanaal
A43: Débit | B43: Débit | C43: Debiet
A44: Etanche | B44: Etanche | C44: Gesloten | D44: Roomsealed
A45: Non-étanche | B45: Non-étanche | C45: Open | D45: Non-roomsealed
A46: Débit d’air comburant | B46: Débit d’air comburant | C46: Verbrandings- luchtdebiet
A47: Débit d’air comburant spécifique | B47: Débit d’air comburant spécifique | C47: Specifiek verbrandings- luchtdebiet
A48: Combustible | B48: Combustible | C48: Brandstof
A49: Brûleur | B49: Brûleur | C49: Brander
A50: Débit calorifique nominal sur Hs | B50: Débit calorifique nominal sur Hs | C50: Nominaal calorisch debiet op Hs
A51: Débit calorifique nominal sur Hi | B51: Débit calorifique nominal sur Hi | C51: Nominaal calorisch debiet op Hi
A52: Référence | B52: Référence | C52: Referentie
A53: =IF(A$3=B$3,B53,IF(A$3=C$3,C53,IF(A$3=D$3,D53,E53))) -> Gaz naturel | B53: Gaz naturel | C53: Aardgas
A54: Propane - Butane | B54: Propane - Butane | C54: Propaan - Butaan
A55: Gasoil de chauffage | B55: Gasoil de chauffage | C55: Verwarmingsgasolie
A56: Coke | B56: Coke | C56: Cokes
A57: Pétrole lampant | B57: Pétrole lampant | C57: Lampolie
A58: Charbon | B58: Charbon | C58: Steenkool
A59: Lignite | B59: Lignite | C59: Bruinkool
A60: Bois (bûches) | B60: Bois (bûches) | C60: Hout (houtblokken)
A61: Bois (granulés) | B61: Bois (granulés) | C61: Hout (pellets)
A62: Brûleur avec coupe-tirage | B62: Brûleur avec coupe-tirage | C62: Brander met trekonderbreker
A63: Brûleur sans coupe-tirage | B63: Brûleur sans coupe-tirage | C63: Brander zonder trekonderbreker
A64: Moteur à combustion interne | B64: Moteur à combustion interne | C64: Inwendige verbrandingsmotor
A65: Pouvoir calorifique inférieur | B65: Pouvoir calorifique inférieur | C65: Onderste verbrandingswaarde
A66: Pouvoir calorifique supérieur | B66: Pouvoir calorifique supérieur | C66: Bovenste verbrandingswaarde
A67: Norme applicable | B67: Norme applicable | C67: Toepasbare norm
A68: Conduits de ventilation - Circulaires - Acier galvanisé à joint spiral | B68: Conduits de ventilation - Circulaires - Acier galvanisé à joint spiral | C68: Ventilatiekanalen - Cirkelvormige - Gegalvaniseerd staal met een spiraalnaad
A69: Longueur droite | B69: Longueur droite | C69: Rechte lengte
A70: Coude 90° | B70: Coude 90° | C70: Bocht 90°
A71: Coude 45° | B71: Coude 45° | C71: Bocht 45°
A72: Perte de pression | B72: Perte de pression | C72: Drukverlies
A73: Options | B73: Options | C73: Opties
A74: Diamètre | B74: Diamètre | C74: Diameter
A75: Bouche de prise d'air | B75: Bouche de prise d'air | C75: Inlaat luchtventiel
A76: Bouche de rejet d'air | B76: Bouche de rejet d'air | C76: Uitlaat luchtventiel
A77: Facteur K (aspiration) | B77: Facteur K (aspiration) | C77: K-factor (aanzuig)
A78: Facteur K (extraction) | B78: Facteur K (extraction) | C78: K-factor (uitblaas)
A79: Couple Débit / Pression | B79: Couple Débit / Pression | C79: Debiet / Druk koppel
A80: Coefficient de perte d'entrée | B80: Coefficient de perte d'entrée | C80: Inlaat verliescoëfficiënt
A81: Coefficient de perte de décharge | B81: Coefficient de perte de décharge | C81: Uitlaat verliescoëfficiënt
A82: Données | B82: Données | C82: Gegevens
A83: Différence de pression | B83: Différence de pression | C83: Drukverschil
A84: Cumulée | B84: Cumulée | C84: Gecumuleerd
A85: Conduits de ventilation - Rectangulaires - Tôle d'acier galvanisé | B85: Conduits de ventilation - Rectangulaires - Tôle d'acier galvanisé | C85: Ventilatiekanalen - Rechthoekige - Gegalvaniseerd plaatstaal
A86: Dispositif de transfert d’air monté dans une paroi extérieure du local | B86: Dispositif de transfert d’air monté dans une paroi extérieure du local | C86: Luchtrooster in een buitenwand van het lokaal
A87: Dispositif de transfert d’air | B87: Dispositif de transfert d’air | C87: Luchtrooster
A88: Dimensions | B88: Dimensions | C88: Afmetingen
A89: Surface | B89: Surface | C89: Oppervlakte
A90: =IF(A$3=B$3,B90,IF(A$3=C$3,C90,IF(A$3=D$3,D90,E90))) -> Surface minimum | B90: Surface minimum | C90: Minimum oppervlakte
A91: Débit minimum | B91: Débit minimum | C91: Minimum debiet
A92: Débit nominal | B92: Débit nominal | C92: Nominaal debiet
A93: Max. 3.0 Pa | B93: Max. 3.0 Pa | C93: Max. 3.0 Pa
A94: Minimum | B94: Minimum | C94: Minimum
A95: Dimensions = Largeur x Hauteur | B95: Dimensions = Largeur x Hauteur | C95: Afmetingen = Breedte x Hoogte
A96: Conduit | B96: Conduit | C96: Kanaal
A97: Bouche | B97: Bouche | C97: Ventiel
A98: Sigles | B98: Sigles | C98: Afkortingen
A99: Débit calorifique nominal sur Hs ou sur Hi (indiquer un des deux) | B99: Débit calorifique nominal sur Hs ou sur Hi (indiquer un des deux) | C99: Nominaal calorisch debiet op Hs of op Hi (één van de twee aangeven)
A100: 0

Sheet Versions (hidden)
A1: Liste des versions successives
A3: v1.0 | B3: 2019-12-13 | C3: Original
A4: v1.1 | B4: 2020-03-12 | C4: Correction d'une erreur de recherche dans le tableau des conduits rectangulaires (tableau de recherche pas complet)
C5: Correction du calcul de la vitesse d'air dans les grilles des conduits rectangulaires (vitesse calculée avec la section hydraulique et pas la section réelle)
C6: Modification de la fonction de recherche de la 3ème section possible
A7: v1.2 | B7: 2020-03-26 | C7: Correction d'un lien erroné vers une autre feuille de calcul (pas d'influence sur les résultats)
C8: Correction de la mise en forme conditionnelle de cellules
C9: Correction de la dénomination des bouches pour le rejet d'air.
A10: v2.1 | B10: 2020-05-25 | C10: Modification de la forme d'introduction du débit calorifique
C11: Elargissement du choix des conduits circulaires et rectangulaires (toutes les dimensions normalisées pour les conduits circulaires + toutes les dimensions normalisées jusque 1000 mm pour les conduits rectangulaires)
C12: Elargissement du choix aux coefficients CD et CE pour les grilles et les bouches
C13: Rassemblement de tous les sigles dans l'onglet Devices
C14: Suppression des générations d'erreur quand on introduit une valeur pas nécessaire dans les caractéristiques des générateurs de chaleur
A15: v2.2 | B15: 2020-09-19 | C15: Correction du calcul de la vitesse d'air dans les conduits rectangulaires (vitesse calculée avec la section hydraulique et pas la section réelle)
A19: Avertissements
A21: Il y a des feuilles cachées qui comportent des tableaux
A22: Il y a des colonnes cachées qui contiennent des informations et valeurs intermédiaires
B23: On ne peut donc pas simplement ajouter ou supprimer des lignes
A24: Il y a des fonctions de recherche dans les tableaux
B25: Ces fonctions sont mises à jour automatiquement en cas d'ajout de ligne ou de colonne mais il faut rester très vigilant
A27: Mode d'emploi
A29: Lire la norme de référence
A30: Remplir les cellules oranges. Les autres cellules ne peuvent pas être modifiées.
A33: Possibilités d'amélioration
A35: Possibilité de choisir le matériau des conduits
A36: Possibilité d'inverser la largeur et la hauteur des conduits rectangulaires (ça influence la perte de pression des coudes)
A37: Possibilité de choisir la perte de pression à l'entrée (ou la sortie) libre des conduits
